Transaction Reference,Supplier Name,Line Value,Department,Category,Transaction Date,Year/Period,SME,Costs split between Mid Suffolk and Babergh District Councils Y/N,% of transaction apportioned to Babergh District Council
0000367521,MID SUFFOLK GROWTH LTD,"1,300.00",New Bld/acquisition,Prof & Consultancy Fees,31 Mar 2023,2324/04,SME,N,
0000367576,ALAN CONISBEE & ASSOCIATES LTD,"3,250.00",SHELF Project,Prof & Consultancy Fees,31 Mar 2023,2324/04,SME,N,
0000368413,TILE HILL INTERIM & EXECUTIVE LTD,"11,250.00",Organisational Devt,Agency Staff,06 Apr 2023,2324/04,SME,Y,50%
0000368458,TILE HILL INTERIM & EXECUTIVE LTD,"12,375.00",Organisational Devt,Agency Staff,09 May 2023,2324/04,SME,Y,50%
0000368485,WINDIMAN LTD,"1,560.00",Window & Door Rplcmts,Repairs,09 May 2023,2324/04,SME,N,
0000368486,WINDIMAN LTD,"1,380.00",Window & Door Rplcmts,Repairs,09 May 2023,2324/04,SME,N,
0000368593,SUFFOLK COUNTY COUNCIL,561.10,Organisational Devt,Recruitment,11 May 2023,2324/04,LGE,Y,50%
0000368869,FELLBRIDGE BUILDING SERVICES,"5,560.65",Building Services,Repairs,22 May 2023,2324/04,SME,N,
0000368890,CHIPSIDE LTD,"1,014.33",C Parks General,Contracted Services,30 Apr 2023,2324/04,SME,N,
0000368922,WINDIMAN LTD,"1,600.00",Building Services,Repairs,23 May 2023,2324/04,SME,N,
0000368994,TANKCHANGE LTD,"2,245.00",Central Heating,Improvements,12 May 2023,2324/04,SME,N,
0000369056,GHB ROOFING,"13,142.50",Major Imps,Improvements,30 May 2023,2324/04,SME,N,
0000369057,GHB ROOFING,"13,142.50",Major Imps,Improvements,30 May 2023,2324/04,SME,N,
0000369058,GHB ROOFING,"3,730.00",Building Services,Repairs,30 May 2023,2324/05,SME,N,
0000369152,FELLBRIDGE BUILDING SERVICES,"2,323.92",Insulation Imps,Repairs,01 Jun 2023,2324/04,SME,N,
0000369302,WEST DEVON BOROUGH COUNCIL,"3,294.90",Management Team,Subscriptions,05 Jun 2023,2324/04,LGE,N,
0000369319,REID PLUMBING & HEATING CONTRACTORS LTD,"23,704.08",Central Heating,Major Contracts,07 Jun 2023,2324/04,SME,N,
0000369332,SUFFOLK COUNTY COUNCIL,"1,380.00",Land Chgs,Contracted Services,06 Jun 2023,2324/04,LGE,N,
0000369355,SUFFOLK DOORS & WINDOWS LTD,"1,150.00",Building Services,Repairs,26 Apr 2023,2324/05,SME,N,
0000369408,SUFFOLK DOORS & WINDOWS LTD,"1,125.00",Building Services,Repairs,09 Jun 2023,2324/04,SME,N,
0000369412,CHIPSIDE LTD,"1,009.00",C Parks General,Contracted Services,31 May 2023,2324/04,SME,N,
0000369430,THE STOWMARKET GLASS COMPANY LTD,"1,430.00",Building Services,Repairs,19 Apr 2023,2324/04,SME,N,
0000369434,THE STOWMARKET GLASS COMPANY LTD,"2,015.00",Building Services,Repairs,25 Apr 2023,2324/04,SME,N,
0000369435,THE STOWMARKET GLASS COMPANY LTD,"1,628.72",Building Services,Repairs,26 Apr 2023,2324/04,SME,N,
0000369440,THE STOWMARKET GLASS COMPANY LTD,"1,983.65",Building Services,Repairs,05 Apr 2023,2324/04,SME,N,
0000369444,THE STOWMARKET GLASS COMPANY LTD,"1,625.00",Building Services,Repairs,05 Apr 2023,2324/04,SME,N,
0000369451,THE STOWMARKET GLASS COMPANY LTD,"1,225.70",Building Services,Repairs,03 Apr 2023,2324/04,SME,N,
0000369546,L A C CLEANING CONTRACTORS LIMITED,"1,390.50",Voids Maintenance,Repairs,13 Jun 2023,2324/04,SME,N,
0000369560,GIPPING CONSTRUCTION LTD,"13,005.51",Regen Fund - HQ Sites,Prof & Consultancy Fees,01 Jun 2023,2324/04,SME,N,
0000369560,GIPPING CONSTRUCTION LTD,"170,265.42",Needham Market Middle School,Prof & Consultancy Fees,01 Jun 2023,2324/04,SME,N,
0000369584,THOMPSON COOPER LTD,"1,373.00",Street & Major Road Cleansing,"Equipment, Tools & Materials",02 May 2023,2324/04,SME,N,
0000369589,REID PLUMBING & HEATING CONTRACTORS LTD,"20,363.80",Central Heating,Major Contracts,14 Jun 2023,2324/04,SME,N,
0000369613,OXBURY CHARTERED SURVEYORS,"1,530.00","Framlingham Road, Laxfield",Prof & Consultancy Fees,15 Jun 2023,2324/04,SME,N,
0000369650,RESIDENTIALLY CHARTERED SURVEYORS,800.00,"Cedars Park C & D, Stowmarket",Prof & Consultancy Fees,12 Jun 2023,2324/04,SME,N,
0000369651,FELLBRIDGE BUILDING SERVICES,"32,389.47",Major Imps,Repairs,19 Jun 2023,2324/04,SME,N,
0000369671,GRANTHAM INDUSTRIES LTD T/A GBM DEMOLITI,"178,180.10",Paddock House Eye,Annual Bldg Maint Contracts,16 Jun 2023,2324/04,SME,N,
0000369678,STOWMARKET TOWN COUNCIL,"10,000.00",Community Safety-General,"Equipment, Tools & Materials",20 Jun 2023,2324/04,SME,N,
0000369679,ABBEYCROFT LEISURE,"1,886.42",Holiday Activity Fund,"Equipment, Tools & Materials",31 Mar 2023,2324/06,LGE,N,
0000369682,ANGLIAN WATER,"2,804.23",Sheltered Accommodation,Water Rates - Metered,13 Jun 2023,2324/04,LGE,N,
0000369684,MB TREES (EAST ANGLIA) LTD,"1,600.00",Amenity Areas,Tree felling/maintenance,20 Jun 2023,2324/04,SME,N,
0000369711,REID PLUMBING & HEATING CONTRACTORS LTD,"14,444.41",Central Heating,Major Contracts,21 Jun 2023,2324/04,SME,N,
0000369719,VERTAS GROUP LTD,"1,840.00",Cost of Democracy,Food & Drink,20 Jun 2023,2324/04,SME,Y,50%
0000369739,FELLBRIDGE BUILDING SERVICES,"9,742.36",Major Imps,Repairs,22 Jun 2023,2324/04,SME,N,
0000369740,FELLBRIDGE BUILDING SERVICES,"2,610.96",Voids Maintenance,Repairs,22 Jun 2023,2324/04,SME,N,
0000369742,FELLBRIDGE BUILDING SERVICES,"1,323.96",Voids Maintenance,Repairs,22 Jun 2023,2324/04,SME,N,
0000369750,THERMATECH,450.00,Sheltered Accommodation,Fire Prevention,22 Jun 2023,2324/04,SME,N,
0000369750,THERMATECH,450.00,Sheltered Accommodation,Fire Prevention,22 Jun 2023,2324/04,SME,N,
0000369750,THERMATECH,450.00,Sheltered Accommodation,Fire Prevention,22 Jun 2023,2324/04,SME,N,
0000369750,THERMATECH,450.00,Sheltered Accommodation,Fire Prevention,22 Jun 2023,2324/04,SME,N,
0000369750,THERMATECH,450.00,Sheltered Accommodation,Fire Prevention,22 Jun 2023,2324/04,SME,N,
0000369750,THERMATECH,450.00,Sheltered Accommodation,Fire Prevention,22 Jun 2023,2324/04,SME,N,
0000369750,THERMATECH,450.00,Sheltered Accommodation,Fire Prevention,22 Jun 2023,2324/04,SME,N,
0000369750,THERMATECH,450.00,Sheltered Accommodation,Fire Prevention,22 Jun 2023,2324/04,SME,N,
0000369772,ANGLIAN WATER,"1,471.98",Sheltered Accommodation,Water Rates - Metered,14 Jun 2023,2324/04,LGE,N,
0000369775,CHAPPLE SIGNS LTD,502.98,Street & Major Road Cleansing,"Equipment, Tools & Materials",23 Jun 2023,2324/04,SME,N,
0000369777,PRO-FLAT SPECIALIST SERVICES LTD,971.00,Building Services,Repairs,23 Jun 2023,2324/04,SME,N,
0000369781,ORSIS UK LTD,"4,930.50",PV Panels,Contracted Services,26 Jun 2023,2324/04,SME,N,
0000369787,HUDSON MEDIA PARTNERSHIP LTD,"1,000.00",Housing Standards,Protective clothing,26 Jun 2023,2324/04,SME,Y,50%
0000369792,TANKCHANGE LTD,"2,495.00",Central Heating,Improvements,19 Jun 2023,2324/04,SME,N,
0000369793,JMP SERVICES LTD,870.00,Street & Major Road Cleansing,Contracted Services,27 Jun 2023,2324/04,SME,N,
0000369794,JMP SERVICES LTD,580.00,Street & Major Road Cleansing,Contracted Services,27 Jun 2023,2324/04,SME,N,
0000369800,L A C CLEANING CONTRACTORS LIMITED,865.58,Temporary Accommodation,General Cleaning,26 Jun 2023,2324/04,SME,N,
0000369801,TRUCKEAST LTD,947.10,Street & Major Road Cleansing,Plant & Vehicle - Other costs,27 Jun 2023,2324/04,LGE,N,
0000369804,INSOLUTIONS LTD,"1,500.00",Building Services,Miscellaneous Insurances,27 Jun 2023,2324/04,SME,N,
0000369806,PRO-FLAT SPECIALIST SERVICES LTD,"1,049.00",Building Services,Repairs,26 Jun 2023,2324/04,SME,N,
0000369829,TANKCHANGE LTD,"1,375.00",Central Heating,Improvements,19 Jun 2023,2324/04,SME,N,
0000369836,ELLISONS SOLICITORS,"15,000.00",Loraine Way Bramford  S106,Misc Legal Expenses,16 May 2023,2324/04,SME,N,
0000369843,ANGLIA COMMERCIAL FLOORING LTD,"1,540.80",Voids Maintenance,Repairs,21 Jun 2023,2324/04,SME,N,
0000369844,ANGLIA COMMERCIAL FLOORING LTD,"1,128.47",Voids Maintenance,Repairs,21 Jun 2023,2324/04,SME,N,
0000369845,ANGLIA COMMERCIAL FLOORING LTD,644.76,Voids Maintenance,Repairs,21 Jun 2023,2324/04,SME,N,
0000369846,ANGLIA COMMERCIAL FLOORING LTD,"1,052.48",Voids Maintenance,Repairs,21 Jun 2023,2324/04,SME,N,
0000369847,ANGLIA COMMERCIAL FLOORING LTD,657.89,Building Services,Repairs,21 Jun 2023,2324/04,SME,N,
0000369849,OXBURY CHARTERED SURVEYORS,"2,850.00","Aspall Road, Debenham, Stowmar",Prof & Consultancy Fees,27 Jun 2023,2324/04,SME,N,
0000369853,ORWELL REMOVALS & STORAGE LTD,978.00,Homeless Prevention Fund,Removal Expenses,27 Jun 2023,2324/05,SME,N,
0000369854,THE OYSTER PARTNERSHIP LTD,"2,063.45",Building Servs Tech Staff,Agency Staff,28 Jun 2023,2324/04,SME,Y,50%
0000369855,THE OYSTER PARTNERSHIP LTD,784.00,Building Services,Agency Staff,28 Jun 2023,2324/04,SME,Y,50%
0000369856,THE OYSTER PARTNERSHIP LTD,"2,656.25",Building Servs Tech Staff,Agency Staff,28 Jun 2023,2324/04,SME,Y,50%
0000369857,THE OYSTER PARTNERSHIP LTD,923.25,Building Services,Agency Staff,28 Jun 2023,2324/04,SME,Y,50%
0000369858,THE OYSTER PARTNERSHIP LTD,"3,650.00",HRA Strategic Property,Agency Staff,28 Jun 2023,2324/04,SME,Y,50%
0000369861,REID PLUMBING & HEATING CONTRACTORS LTD,"10,899.90",Central Heating,Major Contracts,28 Jun 2023,2324/04,SME,N,
0000369863,DALROD (UK) LTD,"1,700.00",Creeting Rd Depot,Grounds & Site Maintenance,28 Jun 2023,2324/04,SME,Y,50%
0000369866,M3 HOUSING,"3,225.00",Building Services,Software Licnse (Line of Bus) ,13 Jun 2023,2324/04,SME,Y,5%
0000369867,REID PLUMBING & HEATING CONTRACTORS LTD,"5,484.14",Central Heating,Major Contracts,28 Jun 2023,2324/04,SME,N,
0000369879,NEEDHAM MARKET AERIALS LTD,883.00,Tenancy Services,Repairs,28 Jun 2023,2324/04,SME,N,
0000369882,ANGLIA COMMERCIAL FLOORING LTD,688.61,Voids Maintenance,Repairs,27 Jun 2023,2324/04,SME,N,
0000369883,WOOLPIT CHILDCARE CENTRE LTD(WOOLPITARC),972.00,Holiday Activity Fund,"Equipment, Tools & Materials",29 Jun 2023,2324/04,SME,N,
0000369884,SUFFOLK COUNTY COUNCIL,"3,773.00",Organisational Devt,Recruitment,28 Jun 2023,2324/06,LGE,Y,50%
0000369886,ANGLIA COMMERCIAL FLOORING LTD,775.90,Voids Maintenance,Repairs,18 May 2023,2324/04,SME,N,
0000369887,ANGLIA COMMERCIAL FLOORING LTD,673.41,Voids Maintenance,Repairs,18 May 2023,2324/04,SME,N,
0000369888,ANGLIA COMMERCIAL FLOORING LTD,958.51,Voids Maintenance,Repairs,18 May 2023,2324/04,SME,N,
0000369889,OPUS PEOPLE SOLUTIONS LTD,334.88,Homeless Prevention Fund,Agency Staff,28 Jun 2023,2324/04,SME,N,
0000369889,OPUS PEOPLE SOLUTIONS LTD,395.91,Devt Management - Apps,Agency Staff,28 Jun 2023,2324/04,SME,N,
0000369889,OPUS PEOPLE SOLUTIONS LTD,507.38,Climate Change and Sustainabil,Agency Staff,28 Jun 2023,2324/04,SME,N,
0000369889,OPUS PEOPLE SOLUTIONS LTD,880.46,Organisational Devt,Agency Staff,28 Jun 2023,2324/04,SME,N,
0000369889,OPUS PEOPLE SOLUTIONS LTD,278.69,Health & Safety,Agency Staff,28 Jun 2023,2324/04,SME,N,
0000369889,OPUS PEOPLE SOLUTIONS LTD,342.73,Building Services,Agency Staff,28 Jun 2023,2324/04,SME,N,
0000369890,IPSERV LTD,"2,297.43",Communications,Commercial Printing,31 Mar 2023,2324/04,SME,N,
0000369890,IPSERV LTD,525.50,Central Printing,Commercial Printing,31 Mar 2023,2324/04,SME,N,
0000369893,M & H CIVIL ENGINEERING LTD,"1,027.50",Building Services,Repairs,29 Jun 2023,2324/04,SME,N,
0000369895,FELLBRIDGE BUILDING SERVICES,613.28,Building Services,Repairs,29 Jun 2023,2324/04,SME,N,
0000369896,ACUITY RESEARCH & PRACTICE LTD,670.75,Software/ICT Projects/Surveys,Improvements,28 Jun 2023,2324/04,SME,Y,50%
0000369898,KICKS & TRICKS LTD,"11,400.00",Holiday Activity Fund,"Equipment, Tools & Materials",29 Jun 2023,2324/04,SME,N,
0000369899,GCS COMPLIANCE LTD,"1,120.26",Building Services,Prof & Consultancy Fees,28 Jun 2023,2324/04,SME,N,
0000369906,FELLBRIDGE BUILDING SERVICES,657.91,Building Services,Repairs,28 Jun 2023,2324/04,SME,N,
0000369909,J COOK CARPENTRY LTD,760.00,Temporary Accommodation,Fire Prevention,27 Jun 2023,2324/04,SME,N,
0000369923,BELLWAY HOMES LTD (EASTERN COUNTIES),"1,382,616.86","Cedars Park C & D, Stowmarket",Major Contracts,26 Jun 2023,2324/04,LGE,N,
0000369924,ORWELL REMOVALS & STORAGE LTD,575.00,Homeless Prevention Fund,Removal Expenses,28 Jun 2023,2324/04,SME,N,
0000369925,PRIMADONNA FESTIVAL CIC,"3,000.00",Grants & Contrbns,Contributions & Donations,28 Jun 2023,2324/04,SME,N,
0000369926,THE FRESSINGFIELD SHED,"1,000.00",Grants & Contrbns,Contributions & Donations,29 Jun 2023,2324/04,SME,N,
0000369928,PRIVATE LANDLORD,"1,300.00",Guaranteed Rent Scheme,Rent Payable,03 Jul 2023,2324/04,ST,N,
0000369929,DUDLEY SMITH PARTNERSHIP LTD,900.00,Cross Street Tech Hub,Prof & Consultancy Fees,30 Jun 2023,2324/04,SME,N,
0000369930,HAMILTON SMITH LETTINGS,590.00,Guaranteed Rent Scheme,Rent Payable,03 Jul 2023,2324/04,SME,N,
0000369931,APTL ENTERPRISES LTD,830.00,Building Services,Repairs,03 Jul 2023,2324/04,SME,N,
0000369933,PAUL WRIGHT & CO,775.00,Guaranteed Rent Scheme,Rent Payable,03 Jul 2023,2324/04,SME,N,
0000369934,3 POINT PROPERTY MANAGEMENT LTD,895.00,Guaranteed Rent Scheme,Rent Payable,03 Jul 2023,2324/04,SME,N,
0000369935,D W ADAMS LTD,"1,728.00",Building Services,Repairs,03 Jul 2023,2324/04,SME,N,
0000369936,IAN BOOTH CONSULTANT ENGINEER LTD,640.00,Strategic Assets,Prof & Consultancy Fees,30 Jun 2023,2324/04,SME,N,
0000369939,SUFFOLK COUNTY COUNCIL,"26,875.00",Endeavour House - HQ,Contracted Services,01 Jul 2023,2324/04,LGE,Y,50%
0000369939,SUFFOLK COUNTY COUNCIL,"20,500.00",Endeavour House - HQ,Operating Lease Payments,01 Jul 2023,2324/04,LGE,Y,50%
0000369940,WINDIMAN LTD,760.00,Voids Maintenance,Repairs,29 Jun 2023,2324/04,SME,N,
0000369941,REID PLUMBING & HEATING CONTRACTORS LTD,"10,947.05",Central Heating,Major Contracts,04 Jul 2023,2324/05,SME,N,
0000369942,WINDIMAN LTD,"1,605.00",Building Services,Repairs,29 Jun 2023,2324/04,SME,N,
0000369943,WINDIMAN LTD,"1,180.00",Building Services,Repairs,29 Jun 2023,2324/04,SME,N,
0000369951,GIPPING OCCUPATIONAL HEALTH LTD,645.00,Organisational Devt,Contracted Services,09 Jun 2023,2324/04,SME,Y,50%
0000369953,APTL ENTERPRISES LTD,"4,326.67",PV Panels,Contracted Services,30 Jun 2023,2324/04,SME,N,
0000369957,WORKWEAR (EAST ANGLIA) LTD,893.76,Building Services,Protective clothing,26 Jun 2023,2324/04,SME,Y,50%
0000369958,MID SUFFOLK GROWTH LTD,"2,363.40","Cedars Park C & D, Stowmarket",Prof & Consultancy Fees,30 Jun 2023,2324/04,SME,N,
0000369963,PRIVATE LANDLORD,900.00,Guaranteed Rent Scheme,Rent Payable,03 Jul 2023,2324/04,ST,N,
0000369965,MARCHDELL LTD,715.00,Guaranteed Rent Scheme,Rent Payable,03 Jun 2023,2324/04,SME,N,
0000369973,HAMILTON SMITH LETTINGS,550.00,Guaranteed Rent Scheme,Rent Payable,03 Jul 2023,2324/04,SME,N,
0000369975,DGL QUALITY MANAGEMENT LTD,"1,092.00",Stowmarket Middle School,Prof & Consultancy Fees,30 Jun 2023,2324/04,SME,N,
0000369976,STUDLEY CAPITAL LIMITED,593.75,MSM Feasibility & Match Fundin,Prof & Consultancy Fees,03 Jul 2023,2324/04,ST,N,
0000369978,STUDLEY CAPITAL LIMITED,712.50,MSM Skills & Innovation Centre,Prof & Consultancy Fees,03 Jul 2023,2324/04,ST,N,
0000369980,3 POINT PROPERTY MANAGEMENT LTD,595.00,Guaranteed Rent Scheme,Rent Payable,03 Jul 2023,2324/04,SME,N,
0000369984,TREVOR BENTON CONSTRUCTION LTD,"6,850.00",Mand Disabled Facilities Grant,Grants,30 Jun 2023,2324/04,SME,N,
0000369985,DRISCOLL KINGSTON SOLICITORS,900.00,Building Services,Payments to Tenants,30 Jun 2023,2324/04,SME,N,
0000369986,AESTIMA LTD,560.00,Building Services,Payments to Tenants,30 Jun 2023,2324/04,SME,N,
0000370006,VERTAS GROUP LTD,997.59,Cost of Democracy,Food & Drink,28 Jun 2023,2324/04,SME,Y,50%
0000370010,DENBURY HOMES LTD,"1,308.35","The Broadway, Badwell Ash",Purchase of Land & Buildings,31 May 2023,2324/04,SME,N,
0000370012,FELGAINS CARE CENTRE,"1,239.00",Council House Adaptions,Improvements,30 Jun 2023,2324/04,SME,N,
0000370013,SACKERS LTD,"4,020.35",Building Services,Waste Disposal,30 Jun 2023,2324/04,SME,Y,50%
0000370015,FELGAINS CARE CENTRE,"3,205.00",Mand Disabled Facilities Grant,Grants,03 Jul 2023,2324/04,SME,N,
0000370017,MATERIAL CHANGE COMPOSTING LTD,79.72,Open Spaces,"Equipment, Tools & Materials",30 Jun 2023,2324/04,LGE,N,
0000370017,MATERIAL CHANGE COMPOSTING LTD,"1,166.55",Open Spaces,Waste Disposal,30 Jun 2023,2324/04,LGE,N,
0000370018,SUFFOLK POWER EQUIPMENT,"1,275.00",Open Spaces,"Equipment, Tools & Materials",01 Jul 2023,2324/04,ST,N,
0000370020,SUFFOLK POWER EQUIPMENT,812.21,Open Spaces,"Equipment, Tools & Materials",01 Jul 2023,2324/04,ST,N,
0000370021,SUFFOLK POWER EQUIPMENT,"1,365.22",Open Spaces,"Equipment, Tools & Materials",01 Jul 2023,2324/04,ST,N,
0000370029,SIGNIX LTD,"1,328.00",Sheltered Accommodation,Repairs,30 Jun 2023,2324/04,SME,N,
0000370031,SIGNIX LTD,"1,019.00",Sheltered Accommodation,Repairs,30 Jun 2023,2324/04,SME,N,
0000370032,SIGNIX LTD,719.00,Sheltered Accommodation,Repairs,30 Jun 2023,2324/04,SME,N,
0000370033,SIGNIX LTD,"1,328.00",Sheltered Accommodation,Repairs,30 Jun 2023,2324/04,SME,N,
0000370034,SIGNIX LTD,719.00,Tenancy Services,Repairs,30 Jun 2023,2324/04,SME,N,
0000370035,SIGNIX LTD,"2,041.00",Sheltered Accommodation,Repairs,30 Jun 2023,2324/04,SME,N,
0000370046,SIGNIX LTD,"2,568.00",Sheltered Accommodation,Repairs,30 Jun 2023,2324/04,SME,N,
0000370047,SIGNIX LTD,"1,328.00",Tenancy Services,Repairs,30 Jun 2023,2324/04,SME,N,
0000370055,L A C CLEANING CONTRACTORS LIMITED,760.50,Voids Maintenance,Repairs,04 Jul 2023,2324/04,SME,N,
0000370057,SUFFOLK COUNTY COUNCIL,"3,307.00",Stowmarket CAP,Contracted Services,01 Jul 2023,2324/04,LGE,Y,50%
0000370057,SUFFOLK COUNTY COUNCIL,"4,557.00",Stowmarket CAP,Operating Lease Payments,01 Jul 2023,2324/04,LGE,Y,50%
0000370063,THE STOWMARKET GLASS COMPANY LTD,972.34,Building Services,Repairs,07 Jun 2023,2324/04,SME,N,
0000370065,CORNERSTONE BARRISTERS,"3,000.00",Devt Management - Apps,Legal Expenses,05 Jul 2023,2324/04,SME,N,
0000370066,WINDIMAN LTD,800.00,Window & Door Rplcmts,Repairs,30 Jun 2023,2324/04,SME,N,
0000370067,WINDIMAN LTD,650.00,Building Services,Repairs,30 Jun 2023,2324/04,SME,N,
0000370068,WINDIMAN LTD,"3,600.00",Building Services,Repairs,30 Jun 2023,2324/04,SME,N,
0000370074,BOWER FULLER,"1,374.00",Tenancy Services,Fire Prevention,30 Jun 2023,2324/04,SME,N,
0000370075,BOWER FULLER,288.76,Sheltered Accommodation,Repairs,30 Jun 2023,2324/04,SME,N,
0000370075,BOWER FULLER,"1,524.55",Sheltered Accommodation,Repairs,30 Jun 2023,2324/04,SME,N,
0000370078,MIXBROW LTD,"6,797.69",Council House Adaptions,Improvements,05 Jul 2023,2324/04,SME,N,
0000370079,BOWER FULLER,540.00,Sheltered Accommodation,Fire Prevention,30 Jun 2023,2324/04,SME,N,
0000370081,BOWER FULLER,"1,405.08",Building Services,Repairs,30 Jun 2023,2324/04,SME,N,
0000370082,THE KINETIC SCIENCE FOUNDATION,"9,031.20",Holiday Activity Fund,"Equipment, Tools & Materials",29 Jun 2023,2324/04,SME,N,
0000370084,SUFFOLK COUNTY COUNCIL,"1,540.00",Land Chgs,Contracted Services,05 Jul 2023,2324/04,LGE,N,
0000370085,CEDARS HOTEL LTD,"83,812.00",Homelessness Private Sector,B&B Costs,06 Jul 2023,2324/04,SME,Y,50%
0000370088,PARK AVENUE RECRUITMENT LTD,"1,675.00",Devt Management - Apps,Prof & Consultancy Fees,04 Jul 2023,2324/04,SME,Y,45%
0000370089,ORIGIN AMENITY SOLUTIONS LTD,540.00,Open Spaces,"Equipment, Tools & Materials",04 Jul 2023,2324/04,SME,N,
0000370090,GALLAGHER CAR & VAN RENTALS LTD,588.00,Domestic Waste,Refuse Contract,04 Jul 2023,2324/04,LGE,N,
0000370091,REED SPECIALIST RECRUITMENT LTD,697.11,Organisational Devt,Agency Staff,04 Jul 2023,2324/04,LGE,Y,50%
0000370092,REED SPECIALIST RECRUITMENT LTD,905.02,Organisational Devt,Agency Staff,23 Jun 2023,2324/04,LGE,Y,50%
0000370093,ALAN CONISBEE & ASSOCIATES LTD,"1,625.00",SHELF Project,Prof & Consultancy Fees,30 Jun 2023,2324/04,SME,N,
0000370094,SUFFOLK LIBRARIES IPS LTD IPSWICH,"3,582.00",Customer Servs,Contracted Services,29 Jun 2023,2324/05,LGE,N,
0000370096,FELLBRIDGE BUILDING SERVICES,"19,650.57",Major Imps,Repairs,05 Jul 2023,2324/04,SME,N,
0000370098,BOWER FULLER,"9,308.00",Tenancy Services,Fire Prevention,06 Jul 2023,2324/04,SME,N,
0000370101,SANCTUARY HOUSING ASSOCIATION,600.00,Homeless Prevention Fund,Misc Supplies & Services Costs,03 Jul 2023,2324/04,SME,N,
0000370103,THE OYSTER PARTNERSHIP LTD,"2,033.75",Building Servs Tech Staff,Agency Staff,05 Jul 2023,2324/04,SME,Y,50%
0000370104,THE OYSTER PARTNERSHIP LTD,923.25,Building Services,Agency Staff,05 Jul 2023,2324/04,SME,Y,50%
0000370105,NEWSQUEST MEDIA GROUP,700.40,Devt Management - Apps,Advertising&mkting (non-staff),06 Jul 2023,2324/04,LGE,N,
0000370106,THE OYSTER PARTNERSHIP LTD,777.00,Building Services,Agency Staff,05 Jul 2023,2324/04,SME,Y,50%
0000370107,THE OYSTER PARTNERSHIP LTD,"2,302.20",Building Servs Tech Staff,Agency Staff,05 Jul 2023,2324/04,SME,Y,50%
0000370108,THE OYSTER PARTNERSHIP LTD,"2,656.25",Building Servs Tech Staff,Agency Staff,05 Jul 2023,2324/04,SME,Y,50%
0000370109,MIXBROW LTD,"6,812.69",Council House Adaptions,Improvements,03 Jul 2023,2324/04,SME,N,
0000370110,BAREFOOT & GILLES LTD,900.00,Cross Street Tech Hub,Prof & Consultancy Fees,30 Jun 2023,2324/04,SME,N,
0000370111,ENGLISH SECURITY,300.00,Sheltered Accommodation,Fire Prevention,06 Jul 2023,2324/04,SME,N,
0000370111,ENGLISH SECURITY,243.02,Sheltered Accommodation,Fire Prevention,06 Jul 2023,2324/04,SME,N,
0000370113,LOUISE FAIERS,910.00,Needham Market Middle School,Major Contracts,05 Jul 2023,2324/04,ST,N,
0000370114,ENGLISH SECURITY,564.02,Sheltered Accommodation,Fire Prevention,06 Jul 2023,2324/04,SME,N,
0000370115,ENGLISH SECURITY,621.70,Sheltered Accommodation,Fire Prevention,06 Jul 2023,2324/04,SME,N,
0000370116,TILE HILL INTERIM & EXECUTIVE LTD,"7,020.00",Financial Servs,Agency Staff,06 Jul 2023,2324/04,SME,Y,50%
0000370117,TILE HILL INTERIM & EXECUTIVE LTD,"16,500.00",Organisational Devt,Agency Staff,06 Jul 2023,2324/04,SME,Y,50%
0000370119,L A C CLEANING CONTRACTORS LIMITED,"1,995.25",Voids Maintenance,Repairs,04 Jul 2023,2324/04,SME,N,
0000370120,OSBORNE RICHARDSON LTD,"1,665.00",Environmental Protection,Agency Staff,30 May 2023,2324/04,SME,Y,50%
0000370121,OSBORNE RICHARDSON LTD,"1,462.50",Environmental Protection,Agency Staff,07 Jun 2023,2324/04,SME,Y,50%
0000370123,OSBORNE RICHARDSON LTD,"1,665.00",Environmental Protection,Agency Staff,14 Jun 2023,2324/04,SME,Y,50%
0000370124,OSBORNE RICHARDSON LTD,"1,665.00",Environmental Protection,Agency Staff,21 Jun 2023,2324/04,SME,Y,50%
0000370125,SUFFOLK POWER EQUIPMENT,"1,340.00",Open Spaces,"Equipment, Tools & Materials",04 Jul 2023,2324/04,ST,N,
0000370126,OSBORNE RICHARDSON LTD,"1,665.00",Environmental Protection,Agency Staff,28 Jun 2023,2324/04,SME,Y,50%
0000370127,OSBORNE RICHARDSON LTD,"1,665.00",Environmental Protection,Agency Staff,05 Jul 2023,2324/04,SME,Y,50%
0000370128,CHIPSIDE LTD,"1,057.08",C Parks General,Contracted Services,30 Jun 2023,2324/04,SME,N,
0000370132,SUFFOLK CONTEMPORARY DANCE,844.90,Holiday Activity Fund,"Equipment, Tools & Materials",06 Jul 2023,2324/04,ST,N,
0000370133,GLASSTAP LIMITED,"2,330.00",Organisational Devt,Corporate Training,03 Jul 2023,2324/04,SME,Y,50%
0000370136,D W ADAMS LTD,"5,866.00",Council House Adaptions,Improvements,07 Jul 2023,2324/04,SME,N,
0000370137,OPUS PEOPLE SOLUTIONS LTD,305.66,Homeless Prevention Fund,Agency Staff,06 Jul 2023,2324/04,SME,N,
0000370137,OPUS PEOPLE SOLUTIONS LTD,484.29,Devt Management - Apps,Agency Staff,06 Jul 2023,2324/04,SME,N,
0000370137,OPUS PEOPLE SOLUTIONS LTD,445.50,Climate Change and Sustainabil,Agency Staff,06 Jul 2023,2324/04,SME,N,
0000370137,OPUS PEOPLE SOLUTIONS LTD,"1,880.09",Organisational Devt,Agency Staff,06 Jul 2023,2324/04,SME,N,
0000370137,OPUS PEOPLE SOLUTIONS LTD,352.13,Building Services,Agency Staff,06 Jul 2023,2324/04,SME,N,
0000370138,TAILOR MADE TIMBER SERVICES LTD,"2,500.00",Business Innovation Grants,Grants,07 Jul 2023,2324/04,SME,N,
0000370140,ASSOCIATION OF ELECTORAL ADMINISTRATORS,"3,232.62",Elections,Prof & Consultancy Fees,04 Jul 2023,2324/04,SME,Y,50%
0000370142,ARMSTRONG YORK ASBESTOS ENVIRONMENTAL,"10,421.61",Asbestos Survey & Reinspection,Prof & Consultancy Fees,30 Jun 2023,2324/04,SME,N,
0000370143,FOURWAYS VEHICLE SOLUTIONS LTD,644.00,Building Services,Vehicle Hire,29 Jun 2023,2324/04,SME,Y,50%
0000370148,OLD NEWTON VILLAGE HALL,"1,328.39",Community Fund Projects-Grants,Grants,05 Jul 2023,2324/04,SME,N,
0000370149,EYE TOWN COUNCIL,"4,120.00",S106 Open Spaces Expenditure,Grants,05 Jul 2023,2324/04,SME,N,
0000370153,TRAVIS PERKINS TRADING CO LTD,"65,991.77",Building Services,"Equipment, Tools & Materials",30 Jun 2023,2324/04,LGE,Y,31%
0000370154,MB TREES (EAST ANGLIA) LTD,"9,160.00",Public Tree Programme,Tree felling/maintenance,07 Jul 2023,2324/04,SME,N,
0000370155,ANGLIA CAR CHARGING,"19,513.08",EV Charge Points Car parks,Misc Supplies & Services Costs,30 Jun 2023,2324/04,SME,Y,50%
0000370156,SUREFIX,950.00,Window & Door Rplcmts,Repairs,03 Jul 2023,2324/04,SME,N,
0000370158,IPSERV LTD,171.70,Central Printing,Commercial Printing,30 Jun 2023,2324/04,SME,N,
0000370158,IPSERV LTD,"1,933.24",Communications,Commercial Printing,30 Jun 2023,2324/04,SME,N,
0000370159,WHYBROW PROPERTY SOLUTIONS LTD,"8,078.75",Major Imps,Repairs,30 Jun 2023,2324/04,SME,N,
0000370160,SEAGER HOME SOLUTIONS,"66,266.58",Kitchens/Bathrooms,Major Contracts,06 Jul 2023,2324/04,SME,N,
0000370163,PRIVATE LANDLORD,875.00,Guaranteed Rent Scheme,Rent Payable,10 Jul 2023,2324/04,ST,N,
0000370171,MAP LETTINGS & PROPERTY MANAGEMENT,200.00,Homeless Prevention Fund,Misc Supplies & Services Costs,10 Jul 2023,2324/04,SME,N,
0000370171,MAP LETTINGS & PROPERTY MANAGEMENT,"1,050.00",Guaranteed Rent Scheme,Rent Payable,10 Jul 2023,2324/04,SME,N,
0000370172,LOFTY HEIGHTS LTD,680.00,Tenancy Services,Contracted Services,12 Jun 2023,2324/04,SME,N,
0000370173,LOFTY HEIGHTS LTD,"2,440.00",Tenancy Services,Contracted Services,09 Jun 2023,2324/04,SME,N,
0000370177,CREATIVE VEHICLE WRAPPING LIMITED,"2,320.00",Jnt Waste Contract,"Equipment, Tools & Materials",11 Jul 2023,2324/04,SME,N,
0000370179,MIXBROW LTD,"14,000.00",Voids Maintenance,Repairs,30 Jun 2023,2324/05,SME,N,
0000370182,PRIVATE LANDLORD,895.00,Guaranteed Rent Scheme,Rent Payable,10 Jul 2023,2324/04,ST,N,
0000370183,PRIVATE LANDLORD,880.00,Guaranteed Rent Scheme,Rent Payable,10 Jul 2023,2324/04,ST,N,
0000370184,EASTEC UK LTD,925.00,Open Spaces,Training,07 Jul 2023,2324/04,SME,N,
0000370185,HUDSON MEDIA PARTNERSHIP LTD,940.00,Guaranteed Rent Scheme,"Equipment, Tools & Materials",10 Jul 2023,2324/04,SME,Y,50%
0000370186,PRIVATE LANDLORD,555.00,Guaranteed Rent Scheme,Rent Payable,10 Jul 2023,2324/04,ST,N,
0000370188,AE WHITE SURFACING,"2,500.00",C Parks General,Repairs,08 Jul 2023,2324/04,SME,N,
0000370202,E.ON NEXT,821.81,HRA Strategic Property,Electricity,27 Jun 2023,2324/04,LGE,N,
0000370202,E.ON NEXT,73.00,HRA Strategic Property,Gas,27 Jun 2023,2324/04,LGE,N,
0000370205,EAST OF ENGLAND LGA,900.00,Commissioning & Procurement,Prof & Consultancy Fees,31 Mar 2023,2324/04,SME,Y,50%
0000370207,BUCHER MUNICIPAL LTD,509.71,Street & Major Road Cleansing,Plant & Vehicle - Other costs,07 Jul 2023,2324/04,LGE,N,
0000370210,BELL DECORATING GROUP LTD,"2,772.79",Planned Maint - Ext Painting,Major Contracts,27 Jun 2023,2324/04,LGE,N,
0000370211,NATHANIEL LICHFIELD & PARTNERS LTD,"3,500.00",Devt Management - Appeals,Prof & Consultancy Fees,07 Jul 2023,2324/04,SME,N,
0000370211,NATHANIEL LICHFIELD & PARTNERS LTD,"4,093.75",Devt Management - Appeals,Prof & Consultancy Fees,07 Jul 2023,2324/04,SME,N,
0000370212,FOURWAYS VEHICLE SOLUTIONS LTD,644.00,Building Services,Vehicle Hire,18 Apr 2023,2324/04,SME,Y,50%
0000370213,FOURWAYS VEHICLE SOLUTIONS LTD,644.00,Building Services,Vehicle Hire,18 Apr 2023,2324/04,SME,Y,50%
0000370214,FOURWAYS VEHICLE SOLUTIONS LTD,672.00,Building Services,Vehicle Hire,30 May 2023,2324/04,SME,Y,50%
0000370215,FOURWAYS VEHICLE SOLUTIONS LTD,644.00,Building Services,Vehicle Hire,13 Jun 2023,2324/04,SME,Y,50%
0000370216,FOURWAYS VEHICLE SOLUTIONS LTD,644.00,Building Services,Plant & Vehicle Fuel,13 Jun 2023,2324/04,SME,Y,50%
0000370217,FOURWAYS VEHICLE SOLUTIONS LTD,644.00,Building Services,Vehicle Hire,12 Jun 2023,2324/04,SME,Y,50%
0000370218,FOURWAYS VEHICLE SOLUTIONS LTD,644.00,Building Services,Vehicle Hire,07 Jun 2023,2324/04,SME,Y,50%
0000370219,FOURWAYS VEHICLE SOLUTIONS LTD,726.60,Open Spaces,Plant & Vehicle - Other costs,22 Jun 2023,2324/04,SME,N,50%
0000370221,G4S CASH SOLUTIONS LTD,"1,756.93",C Parks General,Contracted Services,31 May 2023,2324/04,LGE,N,
0000370222,EAST OF ENGLAND LGA,"10,507.36",Management Team,Subscriptions,13 Jun 2023,2324/04,SME,N,
0000370224,THE OYSTER PARTNERSHIP LTD,923.25,Building Services,Agency Staff,12 Jul 2023,2324/04,SME,Y,50%
0000370226,THE OYSTER PARTNERSHIP LTD,"2,656.25",Building Servs Tech Staff,Agency Staff,12 Jul 2023,2324/04,SME,Y,50%
0000370227,THE OYSTER PARTNERSHIP LTD,"3,650.00",HRA Strategic Property,Agency Staff,12 Jul 2023,2324/04,SME,Y,50%
0000370228,THE OYSTER PARTNERSHIP LTD,"2,046.35",Building Servs Tech Staff,Agency Staff,12 Jul 2023,2324/04,SME,Y,50%
0000370230,THE OYSTER PARTNERSHIP LTD,"1,106.00",Building Services,Agency Staff,12 Jul 2023,2324/04,SME,Y,50%
0000370231,THE OYSTER PARTNERSHIP LTD,"2,269.35",Building Servs Tech Staff,Agency Staff,12 Jul 2023,2324/04,SME,Y,50%
0000370234,ELLISONS SOLICITORS,"5,942.10","The Broadway, Badwell Ash",Misc Legal Expenses,16 May 2023,2324/04,SME,N,
0000370236,GIPPING CONSTRUCTION LTD,"60,504.95",Needham Market Middle School,Repairs,04 Jul 2023,2324/04,SME,N,
0000370237,REID PLUMBING & HEATING CONTRACTORS LTD,"10,762.38",Central Heating,Major Contracts,12 Jul 2023,2324/05,SME,N,
0000370238,TRADITION (UK) LTD,"2,520.55",Treasury Management,Prof & Consultancy Fees,30 Jun 2023,2324/04,LGE,N,
0000370243,DISSIGNS SIGNMAKERS,"1,155.00",CIL Funded REFCUS,Grants,12 Jul 2023,2324/04,SME,N,
0000370245,TRUCKEAST LTD,"3,432.56",Street & Major Road Cleansing,Plant & Vehicle - Other costs,14 Jun 2023,2324/04,LGE,N,
0000370247,PRO-FLAT SPECIALIST SERVICES LTD,"1,629.60",Building Services,Repairs,10 Jul 2023,2324/04,SME,N,
0000370254,HOXNE PAROCHIAL CHURCH COUNCIL,"4,560.00",CIL Funded REFCUS,Grants,12 Jul 2023,2324/04,SME,N,
0000370256,4PRINCIPLES CONSTRUCTION LTD,"7,086.66",Mand Disabled Facilities Grant,Grants,11 Jul 2023,2324/04,SME,N,
0000370257,GB ADAPTIONS LTD,"7,479.00",Mand Disabled Facilities Grant,Grants,11 Jul 2023,2324/04,SME,N,
0000370261,A C LEIGH (NORWICH) LTD,"1,187.40",Building Services,"Equipment, Tools & Materials",06 Jul 2023,2324/04,SME,N,
0000370267,PENTACO CONSTRUCTION LTD,"313,989.00",Stowmarket Middle School,Major Contracts,07 Jul 2023,2324/04,SME,N,
0000370270,3 POINT PROPERTY MANAGEMENT LTD,675.00,Guaranteed Rent Scheme,Rent Payable,10 Jul 2023,2324/04,SME,N,
0000370271,PRIVATE LANDLORD,650.00,Guaranteed Rent Scheme,Rent Payable,10 Jul 2023,2324/04,ST,N,
0000370272,BENICIA PROPERTIES LTD,575.00,Guaranteed Rent Scheme,Rent Payable,10 Jul 2023,2324/04,SME,N,
0000370273,PRIVATE LANDLORD,800.00,Guaranteed Rent Scheme,Rent Payable,10 Jul 2023,2324/04,ST,N,
0000370274,PRIVATE LANDLORD,786.50,Guaranteed Rent Scheme,Rent Payable,10 Jul 2023,2324/04,ST,N,
0000370281,OAKPARK SECURITY SYSTEMS LTD,"1,350.00",Temporary Accommodation,Misc Premises Costs,30 Jun 2023,2324/04,LGE,N,
0000370282,IPSWICH TOWN COMMUNITY TRUST,"2,066.67",Holiday Activity Fund,"Equipment, Tools & Materials",04 Jul 2023,2324/04,SME,N,
0000370295,WINDIMAN LTD,800.00,Building Services,Repairs,29 Jun 2023,2324/04,SME,N,
0000370296,G4S CASH SOLUTIONS LTD,"1,770.14",C Parks General,Contracted Services,30 Jun 2023,2324/04,LGE,N,
0000370297,COUNTRYSTYLE RECYCLING LTD,"5,066.89",Bring Sites,Contracted Services,30 Jun 2023,2324/04,SME,N,
0000370304,PERMISERV LIMITED,653.00,Jnt Waste Contract,"Equipment, Tools & Materials",31 May 2023,2324/04,SME,Y,50%
0000370305,ANGLIA COMMERCIAL FLOORING LTD,545.81,Voids Maintenance,Repairs,29 Jun 2023,2324/04,SME,N,
0000370306,ANGLIA COMMERCIAL FLOORING LTD,728.58,Voids Maintenance,Repairs,29 Jun 2023,2324/04,SME,N,
0000370307,ANGLIA COMMERCIAL FLOORING LTD,968.03,Voids Maintenance,Repairs,29 Jun 2023,2324/04,SME,N,
0000370308,ANGLIA COMMERCIAL FLOORING LTD,521.20,Building Services,Repairs,11 Jul 2023,2324/04,SME,N,
0000370309,ANGLIA COMMERCIAL FLOORING LTD,895.88,Building Services,Repairs,11 Jul 2023,2324/04,SME,N,
0000370310,ANGLIA COMMERCIAL FLOORING LTD,745.56,Building Services,Repairs,29 Jun 2023,2324/04,SME,N,
0000370311,ANGLIA COMMERCIAL FLOORING LTD,559.85,Building Services,Repairs,11 Jul 2023,2324/04,SME,N,
0000370312,OVO ENERGY,170.28,Other Temp Accommodation,Electricity,03 Jul 2023,2324/04,LGE,N,
0000370312,OVO ENERGY,675.56,Other Temp Accommodation,Gas,03 Jul 2023,2324/04,LGE,N,
0000370315,WORKWEAR (EAST ANGLIA) LTD,281.23,Open Spaces,Protective clothing,12 Jul 2023,2324/04,SME,N,
0000370315,WORKWEAR (EAST ANGLIA) LTD,281.23,Street & Major Road Cleansing,Protective clothing,12 Jul 2023,2324/04,SME,N,
0000370321,VERTAS GROUP LTD,"1,260.00",Assets & Development,Repairs,28 Mar 2023,2324/04,SME,N,
0000370322,VERTAS GROUP LTD,"1,440.00",Assets & Development,Repairs,30 Apr 2023,2324/04,SME,N,
0000370324,STANNAH STAIRLIFTS LTD,"6,990.00",Council House Adaptions,Improvements,13 Jul 2023,2324/04,LGE,N,
0000370325,FELLBRIDGE BUILDING SERVICES,"1,620.54",Building Services,Repairs,12 Jul 2023,2324/04,SME,N,
0000370329,PAY 360 LIMITED,"6,772.03",Bank Chgs,Bank Charges,12 Jul 2023,2324/04,LGE,N,
0000370330,LAPWING SUFFOLK LTD,"44,800.00",Shared Prosperity Fund,Contributions & Donations,12 Jul 2023,2324/04,SME,N,
0000370334,FRESSINGFIELD PLAYING FIELD MANAGEMENT,"14,352.60",Community Fund Projects-Grants,Grants,12 Jul 2023,2324/04,SME,N,
0000370335,L A C CLEANING CONTRACTORS LIMITED,"1,310.50",Voids Maintenance,Repairs,13 Jul 2023,2324/04,SME,N,
0000370336,OSBORNE RICHARDSON LTD,"1,665.00",Environmental Protection,Agency Staff,12 Jul 2023,2324/04,SME,Y,50%
0000370337,BEDINGFIELD VILLAGE HALL,"1,564.00",Community Fund Projects-Grants,Grants,12 Jul 2023,2324/04,SME,N,
0000370340,IPSWICH BOROUGH COUNCIL,"11,596.02",Shared Revenues Partnership,Contributions to other Bodies,11 Jul 2023,2324/04,LGE,N,
0000370341,IPSWICH BOROUGH COUNCIL,"-1,431.77",Shared Revenues Partnership,Contributions to other Bodies,11 Jul 2023,2324/04,LGE,N,
0000370349,FELLBRIDGE BUILDING SERVICES,"2,640.75",Building Services,Repairs,13 Jul 2023,2324/04,SME,N,
0000370350,FELLBRIDGE BUILDING SERVICES,"14,271.61",Major Imps,Repairs,05 Jul 2023,2324/04,SME,N,
0000370352,ABOVO BUSINESS SERVICES LTD,"11,000.00",Software/ICT Projects/Surveys,Prof & Consultancy Fees,13 Jul 2023,2324/04,SME,Y,50%
0000370353,D W ADAMS LTD,"4,883.00",Council House Adaptions,Improvements,13 Jul 2023,2324/04,SME,N,
0000370374,THE STOWMARKET GLASS COMPANY LTD,710.17,Building Services,Repairs,12 Jun 2023,2324/04,SME,N,
0000370384,ELLISONS SOLICITORS,950.00,Stowmarket Middle School,Prof & Consultancy Fees,16 May 2023,2324/04,SME,N,
0000370385,IPSERV LTD,"3,061.99",Communications,Commercial Printing,30 Jun 2023,2324/04,SME,N,
0000370386,ELLISONS SOLICITORS,"6,916.30","Mill Road, Laxfield S106",Misc Legal Expenses,16 May 2023,2324/04,SME,N,
0000370389,THE STOWMARKET GLASS COMPANY LTD,846.30,Building Services,Repairs,07 Jun 2023,2324/04,SME,N,
0000370390,THE STOWMARKET GLASS COMPANY LTD,808.15,Building Services,Repairs,07 Jun 2023,2324/04,SME,N,
0000370397,MANGO LEARNING,"1,350.00",Organisational Devt,Corporate Training,14 Jul 2023,2324/04,ST,Y,50%
0000370404,MIXBROW LTD,"7,935.19",Council House Adaptions,Improvements,12 Jul 2023,2324/04,SME,N,
0000370405,GALLAGHER CAR & VAN RENTALS LTD,640.00,Domestic Waste,Refuse Contract,14 Jul 2023,2324/04,LGE,N,
0000370408,IMPROVEMENT & DEVELOPMENT AGENCY,"1,000.00",Cost of Democracy,Conference Expenses,14 Jul 2023,2324/04,SME,N,
0000370409,PRIVATE LANDLORD,996.00,Guaranteed Rent Scheme,Rent Payable,14 Jul 2023,2324/04,SME,N,
0000370411,WHYBROW PROPERTY SOLUTIONS LTD,"10,000.00",Major Imps,Repairs,13 Jul 2023,2324/04,SME,N,
0000370412,WHYBROW PROPERTY SOLUTIONS LTD,"5,000.00",Major Imps,Repairs,13 Jul 2023,2324/04,SME,N,
0000370413,WHYBROW PROPERTY SOLUTIONS LTD,"3,918.68",Tenancy Services,Repairs,13 Jul 2023,2324/04,SME,N,
0000370414,WHYBROW PROPERTY SOLUTIONS LTD,"8,642.14",Major Imps,Repairs,13 Jul 2023,2324/04,SME,N,
0000370415,WHYBROW PROPERTY SOLUTIONS LTD,"9,238.43",Major Imps,Repairs,13 Jul 2023,2324/04,SME,N,
0000370416,REED SPECIALIST RECRUITMENT LTD,905.02,Organisational Devt,Agency Staff,07 Jul 2023,2324/04,LGE,Y,50%
0000370417,TEMPLE GROUP LTD,"2,165.00",SHELF Project,Prof & Consultancy Fees,16 Jun 2023,2324/04,SME,N,
0000370420,PARKYNS LETTINGS BURY ST EDMUNDS,"1,300.00",Guaranteed Rent Scheme,Rent Payable,17 Jul 2023,2324/04,SME,N,
0000370421,METRIC GROUP LTD,-499.41,C Parks General,Contracted Services,17 Jul 2023,2324/04,SME,N,
0000370422,PRIVATE LANDLORD,"1,050.00",Guaranteed Rent Scheme,Rent Payable,17 Jul 2023,2324/04,SME,N,
0000370423,PAUL WRIGHT & CO,850.00,Guaranteed Rent Scheme,Rent Payable,17 Jul 2023,2324/04,SME,N,
0000370426,HAMILTON SMITH LETTINGS,775.00,Guaranteed Rent Scheme,Rent Payable,17 Jul 2023,2324/04,SME,N,
0000370427,HAMILTON SMITH LETTINGS,550.00,Guaranteed Rent Scheme,Rent Payable,17 Jul 2023,2324/04,SME,N,
0000370428,ARAN INSULATION LTD,"3,518.40",Insulation Imps,Repairs,17 Jul 2023,2324/04,SME,N,
0000370430,PAUL WRIGHT & CO,577.50,Guaranteed Rent Scheme,Rent Payable,17 Jul 2023,2324/04,SME,N,
0000370432,COLNESETT LTD,"68,356.54",Cross Street Tech Hub,Prof & Consultancy Fees,03 Jul 2023,2324/04,SME,N,
0000370433,AQUASAMPLERS,"1,365.00",Water Sampling,Sampling & Analysis,30 Jun 2023,2324/04,SME,N,
0000370434,SERCO LTD,"10,847.12",Open Spaces,Plant & Vehicle Fuel,14 Jul 2023,2324/04,LGE,Y,50%
0000370435,SERCO LTD,"5,335.00",Domestic Waste,Refuse Contract,18 Jul 2023,2324/04,LGE,Y,50%
0000370436,SERCO LTD,"4,587.00",Domestic Waste,Refuse Contract,14 Jul 2023,2324/04,LGE,Y,50%
0000370437,SERCO LTD,"10,000.00",Jnt Waste Contract,Plant & Vehicle Fuel,14 Jul 2023,2324/04,LGE,Y,50%
0000370438,SERCO LTD,"351,945.86",Domestic Waste,Refuse Contract,14 Jul 2023,2324/04,LGE,Y,47%
0000370438,SERCO LTD,"97,030.98",Garden Waste,Refuse Contract,14 Jul 2023,2324/04,LGE,Y,48%
0000370438,SERCO LTD,"27,482.56",Trade Waste,Refuse Contract,14 Jul 2023,2324/04,LGE,Y,55%
0000370439,NEWSQUEST MEDIA GROUP,525.30,Devt Management - Apps,Advertising&mkting (non-staff),17 Jul 2023,2324/04,LGE,N,
0000370440,NETWORK RAIL INFRASTRUCTURE LTD,"9,492.10",CIL Funded REFCUS,Grants,17 Jul 2023,2324/04,LGE,N,
0000370444,SHELTON DEVELOPMENT SEVICES LTD,"1,944.93",Assets & Development,Line of Business Applications,13 Jul 2023,2324/04,SME,Y,50%
0000370447,APTL ENTERPRISES LTD,"3,291.00",Building Services,Repairs,18 Jul 2023,2324/04,SME,N,
0000370449,CARE PLUS STAFFORDSHIRE LTD,58.37,Homelessness Private Sector,Telephone Costs,01 Jul 2023,2324/04,SME,N,
0000370449,CARE PLUS STAFFORDSHIRE LTD,496.14,Building Services,Telephone Costs,01 Jul 2023,2324/04,SME,N,
0000370449,CARE PLUS STAFFORDSHIRE LTD,58.37,Animal Welfare Licensing,Telephone Costs,01 Jul 2023,2324/04,SME,N,
0000370449,CARE PLUS STAFFORDSHIRE LTD,58.37,Bldg Control Commercial Income,Telephone Costs,01 Jul 2023,2324/04,SME,N,
0000370449,CARE PLUS STAFFORDSHIRE LTD,58.37,Civil Protection & Emerg Plg,Telephone Costs,01 Jul 2023,2324/04,SME,N,
0000370449,CARE PLUS STAFFORDSHIRE LTD,"6,566.62",Sheltered General Mgmt,Community Alarm Costs,01 Jul 2023,2324/04,SME,N,
0000370450,CORNERSTONE BARRISTERS,"19,380.00",Devt Management - Appeals,Legal Expenses,18 Jul 2023,2324/05,SME,N,
0000370451,CORNERSTONE BARRISTERS,"48,280.00",Devt Management - Appeals,Legal Expenses,18 Jul 2023,2324/05,SME,N,
0000370469,VERTAS GROUP LTD,675.00,Assets & Development,Repairs,30 Jun 2023,2324/04,SME,N,
0000370473,ANGLIA COMMERCIAL FLOORING LTD,"1,112.33",Building Services,Repairs,11 Jul 2023,2324/04,SME,N,
0000370481,OLD NEWTON VILLAGE HALL,"8,863.15",Community Fund Projects-Grants,Grants,19 Jul 2023,2324/04,SME,N,
0000370483,SUFFOLK COUNTY COUNCIL,"3,850.00",Organisational Devt,Recruitment,18 Jul 2023,2324/05,LGE,Y,50%
0000370484,M & H CIVIL ENGINEERING LTD,750.00,Building Services,Repairs,17 Jul 2023,2324/04,SME,N,
0000370485,M & H CIVIL ENGINEERING LTD,850.00,Building Services,Repairs,17 Jul 2023,2324/04,SME,N,
0000370486,M & H CIVIL ENGINEERING LTD,750.00,Building Services,Repairs,17 Jul 2023,2324/04,SME,N,
0000370487,M & H CIVIL ENGINEERING LTD,650.00,Building Services,Repairs,17 Jul 2023,2324/04,SME,N,
0000370491,ANGLIA COMMERCIAL FLOORING LTD,511.35,Building Services,Repairs,18 Jul 2023,2324/04,SME,N,
0000370495,COLCHESTER AMPHORA ENERGY LTD,"3,399.32",Heat Network,Prof & Consultancy Fees,18 Jul 2023,2324/05,SME,N,
0000370499,REED SPECIALIST RECRUITMENT LTD,905.02,Organisational Devt,Agency Staff,30 Jun 2023,2324/05,LGE,Y,50%
0000370501,GALLAGHER CAR & VAN RENTALS LTD,"1,232.00",Domestic Waste,Refuse Contract,19 Jul 2023,2324/04,LGE,N,
0000370502,ANGLIA CAR CHARGING,"3,663.00",EV Charge Points Car parks,Misc Supplies & Services Costs,19 Jul 2023,2324/05,SME,N,
0000370504,MIXBROW LTD,"6,611.44",Council House Adaptions,Improvements,18 Jul 2023,2324/04,SME,N,
0000370505,MIXBROW LTD,"7,587.81",Council House Adaptions,Improvements,18 Jul 2023,2324/04,SME,N,
0000370506,THE OYSTER PARTNERSHIP LTD,"2,656.25",Building Servs Tech Staff,Agency Staff,19 Jul 2023,2324/04,SME,Y,50%
0000370507,THE OYSTER PARTNERSHIP LTD,"2,027.00",Building Servs Tech Staff,Agency Staff,19 Jul 2023,2324/04,SME,Y,50%
0000370508,THE OYSTER PARTNERSHIP LTD,"3,650.00",HRA Strategic Property,Agency Staff,19 Jul 2023,2324/04,SME,Y,50%
0000370509,THE OYSTER PARTNERSHIP LTD,923.25,Building Services,Agency Staff,19 Jul 2023,2324/04,SME,Y,50%
0000370510,THE OYSTER PARTNERSHIP LTD,798.00,Building Services,Agency Staff,19 Jul 2023,2324/04,SME,Y,50%
0000370511,THE OYSTER PARTNERSHIP LTD,"2,277.45",Building Servs Tech Staff,Agency Staff,19 Jul 2023,2324/04,SME,Y,50%
0000370516,ANGLIA CAR CHARGING,"-1,021.93",EV Charge Points Car parks,Misc Supplies & Services Costs,19 Jul 2023,2324/04,SME,Y,100%
0000370519,GT BLAKENHAM VILLAGE HALL FUND,"30,000.00",S106 Open Spaces Expenditure,Grants,20 Jul 2023,2324/04,SME,N,
0000370521,DEADLINE COMMUNICATIONS LTD,"2,100.00",Communications,Advertising&mkting (non-staff),19 Jul 2023,2324/04,SME,Y,50%
0000370522,TILE HILL INTERIM & EXECUTIVE LTD,"7,020.00",Financial Servs,Agency Staff,19 Jul 2023,2324/04,SME,Y,50%
0000370523,SIGNIX LTD,"23,441.52",Smoke Alarms (Bbgh Standard),Major Contracts,14 Jul 2023,2324/04,SME,N,
0000370524,SIGNIX LTD,"9,661.76",Smoke Alarms (Bbgh Standard),Major Contracts,14 Jul 2023,2324/04,SME,N,
0000370525,OSBORNE RICHARDSON LTD,"1,665.00",Environmental Protection,Agency Staff,19 Jul 2023,2324/04,SME,Y,50%
0000370527,WHYBROW PROPERTY SOLUTIONS LTD,"13,558.66",Building Services,Repairs,13 Jul 2023,2324/04,SME,N,
0000370528,MB TREES (EAST ANGLIA) LTD,"4,580.00",Public Tree Programme,Tree felling/maintenance,20 Jul 2023,2324/04,SME,N,
0000370529,SUFFOLK POWER EQUIPMENT,"1,200.00",Open Spaces,"Equipment, Tools & Materials",18 Jul 2023,2324/04,ST,N,
0000370531,RESIDENTIALLY CHARTERED SURVEYORS,"1,920.00",Paddock House Eye,Prof & Consultancy Fees,20 Jul 2023,2324/04,SME,N,
0000370533,WINDIMAN LTD,556.00,Building Services,Repairs,18 Jul 2023,2324/05,SME,N,
0000370534,WINDIMAN LTD,520.00,Building Services,Repairs,18 Jul 2023,2324/05,SME,N,
0000370535,WINDIMAN LTD,800.00,Window & Door Rplcmts,Repairs,18 Jul 2023,2324/05,SME,N,
0000370536,WINDIMAN LTD,800.00,Building Services,Repairs,18 Jul 2023,2324/05,SME,N,
0000370537,WINDIMAN LTD,"1,150.00",Building Services,Repairs,18 Jul 2023,2324/04,SME,N,
0000370539,FRIENDS OF BACTON PRIMARY SCHOOL,637.82,Grants & Contrbns,Contributions & Donations,20 Jul 2023,2324/04,SME,N,
0000370540,OLD NEWTON VILLAGE HALL,"12,737.85",CIL Funded REFCUS,Grants,20 Jul 2023,2324/04,SME,N,
0000370541,ANGLIA CAR CHARGING,"20,438.60",EV Charge Points Car parks,Misc Supplies & Services Costs,19 Jul 2023,2324/05,SME,Y,50%
0000370544,NEWSQUEST MEDIA GROUP,906.40,Devt Management - Apps,Advertising&mkting (non-staff),20 Jul 2023,2324/04,LGE,N,
0000370552,OBEE CIC,671.04,Community Fund Projects-Grants,Grants,20 Jul 2023,2324/04,SME,N,
0000370553,ECOSYSTEMS TREE & GROUNDS CARE,"2,200.00",Public Tree Programme,Tree felling/maintenance,21 Jul 2023,2324/04,SME,N,
0000370554,GREAT BRICETT PARISH COUNCIL,820.00,Grants & Contrbns,Contributions & Donations,21 Jul 2023,2324/04,SME,N,
0000370555,OXBURY CHARTERED SURVEYORS,"1,530.00","Framlingham Road, Laxfield",Prof & Consultancy Fees,21 Jul 2023,2324/04,SME,N,
0000370562,WHYBROW PROPERTY SOLUTIONS LTD,"6,775.99",Voids Maintenance,Repairs,20 Jul 2023,2324/04,SME,N,
0000370563,WHYBROW PROPERTY SOLUTIONS LTD,"1,223.00",Council House Adaptions,Improvements,20 Jul 2023,2324/04,SME,N,
0000370564,GALLAGHER CAR & VAN RENTALS LTD,"1,316.00",Domestic Waste,Refuse Contract,21 Jul 2023,2324/04,LGE,N,
0000370565,SIGNIX LTD,"1,940.70",Smoke Alarms (Bbgh Standard),Major Contracts,21 Jul 2023,2324/04,SME,N,
0000370566,M & H CIVIL ENGINEERING LTD,600.00,Building Services,Repairs,21 Jul 2023,2324/04,SME,N,
0000370568,ABBEYCROFT LEISURE,"2,530.00",HAF Family Fun Days,Contributions & Donations,21 Jul 2023,2324/05,LGE,N,
0000370569,CIVICA ELECTION SERVICES,"2,428.34",Electoral Registration,Returning Officer Fees,16 Jun 2023,2324/04,LGE,N,
0000370570,CIVICA ELECTION SERVICES,"17,823.51",Electoral Registration,Returning Officer Fees,16 Jun 2023,2324/04,LGE,N,
0000370571,CIVICA ELECTION SERVICES,"4,644.51",Electoral Registration,Returning Officer Fees,16 Jun 2023,2324/04,LGE,N,
0000370572,CIVICA ELECTION SERVICES,"7,222.62",Electoral Registration,Returning Officer Fees,16 Jun 2023,2324/04,LGE,N,
0000370573,STOWMARKET STROKE SUPPORT GROUP,885.00,Grants & Contrbns,Contributions & Donations,21 Jul 2023,2324/04,SME,N,
0000370582,SUFFOLK COUNTY COUNCIL,"15,000.00",Climate Change and Sustainabil,Contributions to other Bodies,21 Jul 2023,2324/04,LGE,N,
0000370589,B A TURNER SITE INVESTIGATION LTD,"1,050.00",Building Services,Repairs,18 Jul 2023,2324/04,SME,N,
0000370590,REED SPECIALIST RECRUITMENT LTD,905.02,Organisational Devt,Agency Staff,21 Jul 2023,2324/04,LGE,Y,50%
0000370594,AE WHITE SURFACING,"2,939.00",Creeting Rd Depot,Repairs,21 Jul 2023,2324/04,SME,Y,50%
0000370597,GHB ROOFING,"33,523.60",Roofing,Repairs,30 Jun 2023,2324/05,SME,N,
0000370599,PRIVATE LANDLORD,800.00,Guaranteed Rent Scheme,Rent Payable,24 Jul 2023,2324/04,ST,N,
0000370600,PRIVATE LANDLORD,669.00,Guaranteed Rent Scheme,Rent Payable,24 Jul 2023,2324/04,ST,N,
0000370603,URBA,645.00,Devt Management - Apps,Viability,24 Jul 2023,2324/04,SME,N,
0000370604,TRAVIS PERKINS TRADING CO LTD,823.90,Building Services,Protective clothing,20 Jul 2023,2324/05,LGE,Y,50%
0000370605,THOMPSONS ESTATE OFFICES LTD,670.00,Guaranteed Rent Scheme,Rent Payable,24 Jul 2023,2324/04,SME,N,
0000370606,HAMILTON SMITH LETTINGS,"2,000.00",Guaranteed Rent Scheme,Rent Payable,24 Jul 2023,2324/04,SME,N,
0000370607,PRIVATE LANDLORD,836.50,Guaranteed Rent Scheme,Rent Payable,24 Jul 2023,2324/04,ST,N,
0000370608,LOCAL GOVERNMENT ASSOCIATION,-505.90,Management Team,Conference Expenses,21 Jul 2023,2324/04,LGE,Y,50%
0000370608,LOCAL GOVERNMENT ASSOCIATION,"-1,011.80",Cost of Democracy,Member's Courses & Conferences,21 Jul 2023,2324/04,LGE,N,
0000370609,LOCAL GOVERNMENT ASSOCIATION,505.90,Management Team,Conference Expenses,13 Jun 2023,2324/04,LGE,Y,50%
0000370609,LOCAL GOVERNMENT ASSOCIATION,"1,517.70",Cost of Democracy,Member's Courses & Conferences,13 Jun 2023,2324/04,LGE,N,
0000370610,SUFFOLK COUNTY COUNCIL,"43,881.93",Garden Waste,Garden Waste Disposal,21 Jul 2023,2324/04,LGE,N,
0000370610,SUFFOLK COUNTY COUNCIL,"21,332.85",Domestic Waste,MRF Disposal,21 Jul 2023,2324/04,LGE,N,
0000370613,YELLOW HOMES LIMITED,"1,785.00",Guaranteed Rent Scheme,Rent Payable,24 Jul 2023,2324/04,SME,N,
0000370615,FELLBRIDGE BUILDING SERVICES,"24,959.93",Major Imps,Repairs,24 Jul 2023,2324/05,SME,N,
0000370616,FELLBRIDGE BUILDING SERVICES,"15,151.05",Major Imps,Repairs,24 Jul 2023,2324/05,SME,N,
0000370621,FELLBRIDGE BUILDING SERVICES,"10,154.11",Major Imps,Repairs,24 Jul 2023,2324/05,SME,N,
0000370622,ACUITY RESEARCH & PRACTICE LTD,659.85,Software/ICT Projects/Surveys,Improvements,24 Jul 2023,2324/04,SME,Y,50%
0000370624,FELLBRIDGE BUILDING SERVICES,"4,334.25",Insulation Imps,Repairs,24 Jun 2023,2324/06,SME,N,
0000370625,BINDER LTD,"5,839.00",Sewage Treatment Works,Contracted Services,20 Jul 2023,2324/04,SME,N,
0000370627,SUFFOLK DOORS & WINDOWS LTD,"1,510.00",Building Services,Repairs,25 Jul 2023,2324/05,SME,N,
0000370629,AARON SERVICES LTD,"32,445.89",Planned Maint - Heating,Property Servicing,24 Jul 2023,2324/05,SME,N,
0000370634,NORTHUMBRIAN WATER LTD,108.38,Cedars Park,Legionella Testing,24 Jul 2023,2324/05,LGE,N,
0000370634,NORTHUMBRIAN WATER LTD,108.38,Creeting Rd Depot,Legionella Testing,24 Jul 2023,2324/05,LGE,Y,50%
0000370634,NORTHUMBRIAN WATER LTD,128.09,Other HRA Temp Accommodation,Legionella Testing,24 Jul 2023,2324/05,LGE,N,
0000370634,NORTHUMBRIAN WATER LTD,256.18,Sewage Treatment Works,Legionella Testing,24 Jul 2023,2324/05,LGE,N,
0000370634,NORTHUMBRIAN WATER LTD,"2,591.34",Sheltered Accommodation,Legionella Testing,24 Jul 2023,2324/05,LGE,N,
0000370634,NORTHUMBRIAN WATER LTD,128.09,Temporary Accommodation,Legionella Testing,24 Jul 2023,2324/05,LGE,N,
0000370634,NORTHUMBRIAN WATER LTD,837.50,Tenancy Services,Legionella Testing,24 Jul 2023,2324/05,LGE,N,
0000370634,NORTHUMBRIAN WATER LTD,236.56,Wingfield Barns,Legionella Testing,24 Jul 2023,2324/05,LGE,N,
0000370635,DEMOCRACY COUNTS LTD,995.00,Electoral Registration,Returning Officer Fees,01 Jul 2023,2324/04,SME,N,
0000370638,4PRINCIPLES CONSTRUCTION LTD,"5,127.00",Mand Disabled Facilities Grant,Grants,25 Jul 2023,2324/04,SME,N,
0000370639,STANNAH STAIRLIFTS LTD,"2,373.00",Mand Disabled Facilities Grant,Grants,25 Jul 2023,2324/04,LGE,N,
0000370640,PRO-FLAT SPECIALIST SERVICES LTD,"4,172.00",Building Services,Repairs,24 Jul 2023,2324/05,SME,N,
0000370641,OVO ENERGY,652.09,Other Temp Accommodation,Electricity,24 Jul 2023,2324/04,LGE,N,
0000370642,M & H CIVIL ENGINEERING LTD,955.10,Building Services,Repairs,24 Jul 2023,2324/05,SME,N,
0000370643,M & H CIVIL ENGINEERING LTD,644.75,Building Services,Repairs,24 Jul 2023,2324/05,SME,N,
0000370644,M & H CIVIL ENGINEERING LTD,965.20,Voids Maintenance,Repairs,24 Jul 2023,2324/05,SME,N,
0000370645,M & H CIVIL ENGINEERING LTD,732.00,Building Services,Repairs,24 Jul 2023,2324/05,SME,N,
0000370647,TEMPLE GROUP LTD,"2,310.00",SHELF Project,Prof & Consultancy Fees,30 Jun 2023,2324/04,SME,N,
0000370649,DEBENHAM SHED,"1,500.00",Grants & Contrbns,Contributions & Donations,25 Jul 2023,2324/04,SME,N,
0000370652,ANGLIA COMMERCIAL FLOORING LTD,"1,180.56",Voids Maintenance,Repairs,25 Jul 2023,2324/05,SME,N,
0000370653,ANGLIA COMMERCIAL FLOORING LTD,687.27,Voids Maintenance,Repairs,25 Jul 2023,2324/05,SME,N,
0000370654,ANGLIA COMMERCIAL FLOORING LTD,895.88,Voids Maintenance,Repairs,25 Jul 2023,2324/05,SME,N,
0000370660,DOLPHIN STAIRLIFTS (EAST ANGLIA) LTD,"4,806.00",Mand Disabled Facilities Grant,Grants,26 Jul 2023,2324/04,SME,N,
0000370662,IPSWICH TOWN FOOTBALL CLUB CO. LTD,658.57,Endeavour House - HQ,Room Hire,26 Jun 2023,2324/04,LGE,Y,50%
0000370663,HAMSON BARRON SMITH LTD,"4,290.00",SHELF Project,Prof & Consultancy Fees,31 Jan 2023,2324/05,LGE,N,
0000370669,THE OYSTER PARTNERSHIP LTD,"2,296.80",Building Servs Tech Staff,Agency Staff,26 Jul 2023,2324/05,SME,Y,50%
0000370670,THE OYSTER PARTNERSHIP LTD,"1,064.00",Building Services,Agency Staff,26 Jul 2023,2324/05,SME,Y,50%
0000370671,THE OYSTER PARTNERSHIP LTD,"2,656.25",Building Servs Tech Staff,Agency Staff,26 Jul 2023,2324/05,SME,Y,50%
0000370672,THE OYSTER PARTNERSHIP LTD,"2,190.00",HRA Strategic Property,Agency Staff,26 Jul 2023,2324/05,SME,Y,50%
0000370673,THE OYSTER PARTNERSHIP LTD,923.25,Building Services,Agency Staff,26 Jul 2023,2324/05,SME,Y,50%
0000370675,ARAN INSULATION LTD,"3,645.30",Insulation Imps,Improvements,26 Jul 2023,2324/05,SME,N,
0000370676,NORTHUMBRIAN WATER LTD,36.13,Cedars Park,Legionella Testing,26 Jul 2023,2324/05,LGE,N,
0000370676,NORTHUMBRIAN WATER LTD,36.13,Creeting Rd Depot,Legionella Testing,26 Jul 2023,2324/05,LGE,Y,50%
0000370676,NORTHUMBRIAN WATER LTD,42.70,Other HRA Temp Accommodation,Legionella Testing,26 Jul 2023,2324/05,LGE,N,
0000370676,NORTHUMBRIAN WATER LTD,85.40,Sewage Treatment Works,Legionella Testing,26 Jul 2023,2324/05,LGE,N,
0000370676,NORTHUMBRIAN WATER LTD,863.85,Sheltered Accommodation,Legionella Testing,26 Jul 2023,2324/05,LGE,N,
0000370676,NORTHUMBRIAN WATER LTD,42.70,Temporary Accommodation,Legionella Testing,26 Jul 2023,2324/05,LGE,N,
0000370676,NORTHUMBRIAN WATER LTD,279.19,Tenancy Services,Legionella Testing,26 Jul 2023,2324/05,LGE,N,
0000370676,NORTHUMBRIAN WATER LTD,78.74,Wingfield Barns,Legionella Testing,26 Jul 2023,2324/05,LGE,N,
0000370677,KARZEES LTD,625.00,HAF Family Fun Days,Contributions & Donations,26 Jul 2023,2324/05,SME,N,
0000370678,OSBORNE RICHARDSON LTD,"1,665.00",Environmental Protection,Agency Staff,26 Jul 2023,2324/05,SME,Y,50%
0000370681,THE FOOD MUSEUM LTD,"3,096.00",Holiday Activity Fund,"Equipment, Tools & Materials",26 Jul 2023,2324/05,SME,N,
0000370694,THE STOWMARKET GLASS COMPANY LTD,650.00,Building Services,Repairs,05 Jul 2023,2324/05,SME,N,
0000370699,THE STOWMARKET GLASS COMPANY LTD,"1,057.95",Building Services,Repairs,11 Jul 2023,2324/05,SME,N,
0000370700,THE STOWMARKET GLASS COMPANY LTD,"4,695.00",Building Services,Repairs,17 Jul 2023,2324/06,SME,N,
0000370701,TELEFONICA UK LIMITED - O2,"1,852.40",ICT,Telephone Costs,27 Jul 2023,2324/04,LGE,Y,50%
0000370702,GALLAGHER CAR & VAN RENTALS LTD,"1,110.00",Domestic Waste,Refuse Contract,27 Jul 2023,2324/04,LGE,N,
0000370703,FMG CONSULTING LTD,"7,500.00",SHELF Project,Prof & Consultancy Fees,31 May 2023,2324/04,SME,N,
0000370708,FMG CONSULTING LTD,"3,750.00",SHELF Project,Prof & Consultancy Fees,30 Jun 2023,2324/04,SME,N,
0000370710,HETHEL INNOVATION LTD,"4,997.16",MSM Skills & Innovation Centre,Prof & Consultancy Fees,27 Jul 2023,2324/05,LGE,N,
0000370711,MB TREES (EAST ANGLIA) LTD,980.00,Public Tree Programme,Tree felling/maintenance,27 Jul 2023,2324/04,SME,N,
0000370712,MB TREES (EAST ANGLIA) LTD,"1,420.00",Public Tree Programme,Tree felling/maintenance,27 Jul 2023,2324/04,SME,N,
0000370713,MB TREES (EAST ANGLIA) LTD,620.00,Public Tree Programme,Tree felling/maintenance,27 Jul 2023,2324/04,SME,N,
0000370714,MB TREES (EAST ANGLIA) LTD,"1,840.00",Tenancy Services,Contracted Services,27 Jul 2023,2324/05,SME,N,
0000370719,FAUN ZOELLER (UK) LTD,"159,385.00",Rplcmt Ref Freighters-Jnt Schm,Plant & Vehicle - Purchase,12 Jul 2023,2324/04,SME,N,
0000370720,SSI SCHAEFER PLASTICS UK LTD,"20,697.60",Bins,Bins,27 Jul 2023,2324/05,SME,N,
0000370721,MB TREES (EAST ANGLIA) LTD,"2,200.00",Public Tree Programme,Tree felling/maintenance,27 Jul 2023,2324/04,SME,N,
0000370722,NEWSQUEST MEDIA GROUP,700.40,Devt Management - Apps,Advertising&mkting (non-staff),27 Jul 2023,2324/05,LGE,N,
0000370724,BRITISH GAS TRADING LTD,"1,118.38",Voids Maintenance,Electricity,26 Jul 2023,2324/04,LGE,Y,20%
0000370732,G4S CASH SOLUTIONS LTD,"1,188.90",C Parks General,Contracted Services,30 Apr 2023,2324/05,LGE,N,
0000370734,ESSEX AND SUFFOLK WATER,"2,509.77",Sheltered Accommodation,Water Rates - Metered,24 Jul 2023,2324/04,LGE,N,
0000370737,SSI SCHAEFER PLASTICS UK LTD,"15,787.20",Bins,Bins,28 Jul 2023,2324/05,SME,Y,50%
0000370738,WINDIMAN LTD,650.00,Voids Maintenance,Repairs,28 Jul 2023,2324/05,SME,N,
0000370739,WINDIMAN LTD,"1,889.00",Building Services,Repairs,28 Jul 2023,2324/05,SME,N,
0000370740,WINDIMAN LTD,"1,130.00",Building Services,Repairs,28 Jul 2023,2324/05,SME,N,
0000370741,WINDIMAN LTD,"5,950.00",Window & Door Rplcmts,Repairs,28 Jul 2023,2324/05,SME,N,
0000370743,FORESOLUTIONS LTD,690.00,Street & Major Road Cleansing,Plant & Vehicle - Other costs,28 Jul 2023,2324/05,SME,N,
0000370746,IPSWICH BOROUGH COUNCIL,"492,290.96",Shared Revenues Partnership,Major Contracts,05 Jul 2023,2324/04,LGE,N,
0000370748,D W ADAMS LTD,"2,036.00",Council House Adaptions,Improvements,28 Jul 2023,2324/05,SME,N,
0000370749,SUFFOLK COUNTY COUNCIL,785.00,Organisational Devt,Recruitment,27 Jul 2023,2324/05,LGE,Y,50%
0000370750,BINDER LTD,"6,338.39",Sewage Treatment Works,Contracted Services,27 Jul 2023,2324/05,SME,Y,50%
0000370752,REID PLUMBING & HEATING CONTRACTORS LTD,"11,147.97",Central Heating,Major Contracts,28 Jul 2023,2324/05,SME,N,
0000370762,WHYBROW PROPERTY SOLUTIONS LTD,"3,475.00",Council House Adaptions,Improvements,11 Aug 2023,2324/05,SME,N,
0000370763,GREEN SPARK PRODUCTION LTD T/A AV UNIT,"2,421.76",Cost of Democracy,"Equipment, Tools & Materials",19 Jul 2023,2324/05,SME,N,
0000370764,REED SPECIALIST RECRUITMENT LTD,721.57,Organisational Devt,Agency Staff,21 Jul 2023,2324/05,LGE,Y,50%
0000370772,APTL ENTERPRISES LTD,"4,326.67",PV Panels,Contracted Services,31 Jul 2023,2324/05,SME,N,
0000370773,L A C CLEANING CONTRACTORS LIMITED,865.58,Temporary Accommodation,General Cleaning,24 Jul 2023,2324/05,SME,N,
0000370781,L A C CLEANING CONTRACTORS LIMITED,"1,395.50",Voids Maintenance,Repairs,31 Jul 2023,2324/05,SME,N,
0000370784,MID SUFFOLK GROWTH LTD,"2,256.14",Loraine Way Bramford  S106,Prof & Consultancy Fees,31 Jul 2023,2324/05,SME,N,
0000370785,MID SUFFOLK GROWTH LTD,"1,818.00","Cedars Park C & D, Stowmarket",Prof & Consultancy Fees,31 Jul 2023,2324/05,SME,N,
0000370788,ESS SUPPORT SERVICES WORLDWIDE,"1,337.90",Cost of Democracy,Chairman's Expenses,09 Mar 2023,2324/05,LGE,N,
0000370791,BELLWAY HOMES LIMITED (ESSEX DIVISION),"567,626.33",Loraine Way Bramford  S106,Purchase of Land & Buildings,31 Jul 2023,2324/05,LGE,N,
0000370794,PAUL WRIGHT & CO,775.00,Guaranteed Rent Scheme,Rent Payable,31 Jul 2023,2324/05,SME,N,
0000370796,EAST ANGLIA CLEANING SERVICES LTD,"1,604.54",Jnt Waste Contract,General Cleaning,31 Jul 2023,2324/05,SME,Y,50%
0000370798,BENICIA PROPERTIES LTD,650.00,Guaranteed Rent Scheme,Rent Payable,31 Jul 2023,2324/05,SME,N,
0000370803,FELLBRIDGE BUILDING SERVICES,583.56,Building Services,Repairs,31 Jul 2023,2324/05,SME,N,
0000370804,FELLBRIDGE BUILDING SERVICES,862.95,Building Services,Repairs,31 Jul 2023,2324/05,SME,N,
0000370805,ST NICHOLAS HOSPICE,"3,849.00",Grants & Contrbns,Grants,31 Jul 2023,2324/05,SME,N,
0000370806,REMINISCENCE LEARNING,"4,200.00",Grants & Contrbns,Grants,31 Jul 2023,2324/05,SME,N,
0000370807,BADWELL ASH VILLAGE HALL,"3,819.36",Community Fund Projects-Grants,Grants,31 Jul 2023,2324/05,SME,N,
0000370808,RENOVO EMPLOYMENT GROUP LTD,695.00,HRA General Management,Agency Staff,28 Jul 2023,2324/05,SME,Y,50%
0000370809,LAC SERVICES (EAST ANGLIA) LTD,"14,114.12",Fire Risk Assessment (Flats),Improvements,28 Jul 2023,2324/05,SME,N,
0000370810,3 POINT PROPERTY MANAGEMENT LTD,595.00,Guaranteed Rent Scheme,Rent Payable,31 Jul 2023,2324/05,SME,N,
0000370811,THE PLAY INSPECTION COMPANY LTD,946.60,Open Spaces,"Equipment, Tools & Materials",31 Jul 2023,2324/05,SME,N,
0000370813,FIFIELD TRAINING LTD,822.29,Cost of Democracy,Training,28 Jul 2023,2324/05,SME,Y,50%
0000370815,ANGLIA COMMERCIAL FLOORING LTD,823.73,Building Services,Repairs,31 Jul 2023,2324/05,SME,N,
0000370816,BAREFOOT & GILLES LTD,900.00,Cross Street Tech Hub,Prof & Consultancy Fees,31 Jul 2023,2324/05,SME,N,
0000370817,DGL QUALITY MANAGEMENT LTD,"1,092.00",Stowmarket Middle School,Prof & Consultancy Fees,31 Jul 2023,2324/05,SME,N,
0000370818,SUPERSTRUCTURES LTD,725.00,Building Services,Repairs,31 Jul 2023,2324/05,SME,N,
0000370820,STUDLEY CAPITAL LIMITED,"1,543.75",MSM Skills & Innovation Centre,Prof & Consultancy Fees,01 Aug 2023,2324/05,ST,N,
0000370824,MIXBROW LTD,"7,440.69",Council House Adaptions,Improvements,31 Jul 2023,2324/05,SME,N,
0000370826,DUDLEY SMITH PARTNERSHIP LTD,900.00,Cross Street Tech Hub,Prof & Consultancy Fees,31 Jul 2023,2324/05,SME,N,
0000370827,PRIVATE LANDLORD,"1,300.00",Guaranteed Rent Scheme,Rent Payable,01 Aug 2023,2324/05,ST,N,
0000370828,MANSION HOUSE PUBLISHING LTD,"4,050.00",MSM Housing Solutions,Advertising&mkting (non-staff),01 Aug 2023,2324/05,SME,N,
0000370829,MATERIAL CHANGE COMPOSTING LTD,"1,166.55",Open Spaces,Waste Disposal,31 Jul 2023,2324/05,LGE,N,
0000370831,M & H CIVIL ENGINEERING LTD,655.51,Building Services,Repairs,01 Aug 2023,2324/05,SME,N,
0000370832,WOOLPIT CHILDCARE CENTRE LTD(WOOLPITARC),"10,200.00",Holiday Activity Fund,"Equipment, Tools & Materials",31 Jul 2023,2324/05,SME,N,
0000370834,CYCLESCHEME LTD,"1,949.17",Current Assets,Cycling Scheme,07 Jul 2023,2324/05,SME,N,
0000370835,THOMPSON COOPER LTD,659.04,Street & Major Road Cleansing,"Equipment, Tools & Materials",01 Jun 2023,2324/05,SME,N,
0000370836,TRADITION (UK) LTD,"3,934.25",Treasury Management,Prof & Consultancy Fees,31 Jul 2023,2324/05,LGE,N,
0000370837,BEN BURGESS GARDEN EQUIPMENT,"1,500.00",Open Spaces,"Equipment, Tools & Materials",26 Jul 2023,2324/05,SME,N,
0000370842,FLAGSHIP HOUSING GROUP LTD-RENT ACCOUNT,942.40,Homelessness Private Sector,Misc Supplies & Services Costs,01 Aug 2023,2324/05,LGE,N,
0000370844,JOHN PEEL CENTRE FOR CREATIVE ARTS,"20,000.00",Communities,Grants,01 Aug 2023,2324/05,SME,N,
0000370845,EYE OPPORTUNITY GROUP,"20,000.00",Communities,Grants,01 Aug 2023,2324/05,SME,N,
0000370846,AARON SERVICES LTD,"30,823.60",Planned Maint - Heating,Property Servicing,27 Jun 2023,2324/05,SME,N,
0000370848,AARON SERVICES LTD,"8,111.45",Planned Maint - Heating,Property Servicing,28 Jun 2023,2324/05,SME,N,
0000370849,MB TREES (EAST ANGLIA) LTD,820.00,Tenancy Services,Tree felling/maintenance,01 Aug 2023,2324/05,SME,N,
0000370850,CHASSIS-CAB LTD,918.99,Street & Major Road Cleansing,Plant & Vehicle - Other costs,02 Aug 2023,2324/05,SME,N,
0000370851,HINDERCLAY VILLAGE HALL,"16,094.40",Community Fund Projects-Grants,Grants,02 Aug 2023,2324/05,SME,N,
0000370855,SACKERS LTD,"3,337.47",Building Services,Waste Disposal,31 Jul 2023,2324/05,SME,Y,50%
0000370858,THE OYSTER PARTNERSHIP LTD,923.25,Building Services,Agency Staff,02 Aug 2023,2324/05,SME,Y,50%
0000370859,THE OYSTER PARTNERSHIP LTD,"2,099.88",Building Servs Tech Staff,Agency Staff,02 Aug 2023,2324/05,SME,Y,50%
0000370860,THE OYSTER PARTNERSHIP LTD,"2,656.25",Building Servs Tech Staff,Agency Staff,02 Aug 2023,2324/05,SME,Y,50%
0000370861,THE OYSTER PARTNERSHIP LTD,"1,036.00",Building Services,Agency Staff,02 Aug 2023,2324/05,SME,Y,50%
0000370862,THE OYSTER PARTNERSHIP LTD,"3,650.00",HRA Strategic Property,Agency Staff,02 Aug 2023,2324/05,SME,Y,50%
0000370863,THE OYSTER PARTNERSHIP LTD,"1,350.00",Building Servs Tech Staff,Agency Staff,02 Aug 2023,2324/05,SME,Y,50%
0000370864,AQUAJET CLEANING EQUIPMENT LTD,"2,817.00",Open Spaces,"Equipment, Tools & Materials",02 Aug 2023,2324/05,SME,N,
0000370866,PRO-FLAT SPECIALIST SERVICES LTD,"1,446.00",Building Services,Repairs,31 Jul 2023,2324/06,SME,N,
0000370867,COUNTRYSTYLE RECYCLING LTD,"4,651.19",Bring Sites,Contracted Services,31 Jul 2023,2324/05,SME,N,
0000370868,GALLAGHER CAR & VAN RENTALS LTD,588.00,Domestic Waste,Refuse Contract,01 Aug 2023,2324/05,LGE,N,
0000370869,MENTA,"5,625.00",Shared Prosperity Fund,Prof & Consultancy Fees,31 Jul 2023,2324/05,SME,N,
0000370871,WHYBROW PROPERTY SOLUTIONS LTD,"12,126.72",Building Services,Repairs,20 Jul 2023,2324/05,SME,N,
0000370873,BOWER FULLER,"6,860.43",Stradbrk Pl-Refurb,Repairs,31 Jul 2023,2324/05,SME,N,
0000370874,BOWER FULLER,"24,575.04",Planned Maint - Heating,Property Servicing,02 Aug 2023,2324/05,SME,N,
0000370875,APTL ENTERPRISES LTD,"14,420.00",PV Panels,Contracted Services,31 Jul 2023,2324/05,SME,N,
0000370883,A C LEIGH (NORWICH) LTD,887.60,Building Services,"Equipment, Tools & Materials",28 Jul 2023,2324/05,SME,N,
0000370891,GALLAGHER CAR & VAN RENTALS LTD,616.00,Domestic Waste,Refuse Contract,24 May 2023,2324/05,LGE,N,
0000370892,GALLAGHER CAR & VAN RENTALS LTD,"1,316.00",Domestic Waste,Refuse Contract,23 Jun 2023,2324/05,LGE,N,
0000370893,EAST SUFFOLK COUNCIL,"160,000.00",Economy & Business,Prof & Consultancy Fees,28 Jul 2023,2324/05,LGE,Y,50%
0000370895,TRANSPORT PLANNING ASSOCIATES LTD,"10,046.00",Devt Management - Appeals,Highways  Consultancy,21 Jul 2023,2324/05,SME,N,
0000370896,GCS COMPLIANCE LTD,661.16,Building Services,Prof & Consultancy Fees,31 Jul 2023,2324/05,SME,N,
0000370900,WHYBROW PROPERTY SOLUTIONS LTD,"7,279.73",Building Services,Repairs,28 Jul 2023,2324/05,SME,N,
0000370901,STRENGTHSCOPE LIMITED,"4,723.88",Organisational Devt,Corporate Training,14 Mar 2023,2324/05,SME,Y,50%
0000370902,1ST FRESSINGFIELD SCOUT GROUP,"1,229.00",Community Fund Projects-Grants,Grants,02 Aug 2023,2324/05,SME,N,
0000370904,WELHAM SURFACING LTD,"4,954.80",Mand Disabled Facilities Grant,Grants,03 Aug 2023,2324/05,SME,N,
0000370908,WHYBROW PROPERTY SOLUTIONS LTD,"4,385.60",Council House Adaptions,Improvements,02 Aug 2023,2324/05,SME,N,
0000370909,PARK AVENUE RECRUITMENT LTD,"1,825.00",Devt Management - Apps,Prof & Consultancy Fees,01 Aug 2023,2324/05,SME,Y,45%
0000370922,SUFFOLK POWER EQUIPMENT,"2,658.89",Open Spaces,"Equipment, Tools & Materials",01 Aug 2023,2324/05,ST,N,
0000370923,THOMPSON COOPER LTD,"1,373.00",Street & Major Road Cleansing,"Equipment, Tools & Materials",02 Aug 2023,2324/05,SME,N,
0000370927,REVOLUTION LANDSCAPES,680.00,New Bld/acquisition,BMBS Repairs Work,24 Jul 2023,2324/05,SME,N,
0000370928,BUCHER MUNICIPAL LTD,509.71,Street & Major Road Cleansing,Plant & Vehicle - Other costs,02 Aug 2023,2324/05,LGE,N,
0000370929,OSBORNE RICHARDSON LTD,"1,665.00",Environmental Protection,Agency Staff,02 Aug 2023,2324/05,SME,Y,50%
0000370938,AE WHITE SURFACING,"8,999.00",Roads and Paths,Improvements,02 Aug 2023,2324/05,SME,N,
0000370940,INSIGHT TECHNOLOGY (SUFFOLK) LTD,"3,310.00",Sheltered Accommodation,Fire Prevention,02 Aug 2023,2324/05,SME,N,
0000370942,IPSWICH BOROUGH COUNCIL,"10,013.00",Shared Revenues Partnership,Contributions to other Bodies,31 Jul 2023,2324/05,LGE,N,
0000370946,ARMSTRONG YORK ASBESTOS ENVIRONMENTAL,"3,473.01",Asbestos Survey & Reinspection,Prof & Consultancy Fees,31 Jul 2023,2324/05,SME,N,
0000370949,BELL DECORATING GROUP LTD,"10,306.36",Planned Maint - Ext Painting,External Painting,25 Jul 2023,2324/05,LGE,N,
0000370950,BELL DECORATING GROUP LTD,889.20,Planned Maint - Ext Painting,Major Contracts,25 Jul 2023,2324/05,LGE,N,
0000370951,ANGLIA COMMERCIAL FLOORING LTD,649.03,Building Services,Repairs,02 Aug 2023,2324/05,SME,N,
0000370953,URBAN FORESTRY (BSE) LTD,"13,130.75","Fences, Gates and Walls",Improvements,31 Jul 2023,2324/05,SME,N,
0000370956,WINDIMAN LTD,"2,495.00",Building Services,Repairs,31 Jul 2023,2324/05,SME,N,
0000370962,FELGAINS CARE CENTRE,"2,519.00",Council House Adaptions,Improvements,03 Aug 2023,2324/05,SME,N,
0000370964,G4S CASH SOLUTIONS LTD,"1,400.26",C Parks General,Contracted Services,31 Jul 2023,2324/05,LGE,N,
0000370965,MARTIN BROKERS ( UK ) PLC,"9,972.60",Treasury Management,Prof & Consultancy Fees,31 Jul 2023,2324/05,LGE,N,
0000370966,SUREFIX,900.00,Building Services,Repairs,01 Aug 2023,2324/05,SME,N,
0000370967,PRIVATE LANDLORD,925.00,Guaranteed Rent Scheme,Rent Payable,04 Aug 2023,2324/05,ST,N,
0000370968,HAMILTON SMITH LETTINGS,550.00,Guaranteed Rent Scheme,Rent Payable,04 Aug 2023,2324/05,SME,N,
0000370971,BOWER FULLER,695.40,Building Services,Repairs,31 Jul 2023,2324/05,SME,N,
0000370972,BOWER FULLER,"1,920.00",Temporary Accommodation,Fire Prevention,31 Jul 2023,2324/05,SME,N,
0000370975,BOWER FULLER,"4,066.26",Sheltered Accommodation,Fire Prevention,31 Jul 2023,2324/05,SME,N,
0000370976,BOWER FULLER,"2,359.02",Asbestos Removal,Repairs,31 Jul 2023,2324/05,SME,N,
0000370978,INFORM COMMUNICATIONS LTD,"8,217.00",Customer Servs,Contracted Services,04 Aug 2023,2324/05,SME,Y,50%
0000370980,CHIPSIDE LTD,"1,103.33",C Parks General,Contracted Services,31 Jul 2023,2324/05,SME,N,
0000370986,SUFFOLK COUNTY COUNCIL,"1,331.10",Open Spaces,"Equipment, Tools & Materials",03 Aug 2023,2324/05,LGE,Y,50%
0000370992,ORWELL MENCAP,515.83,Open Spaces,"Equipment, Tools & Materials",30 Jun 2023,2324/05,SME,N,
0000370993,PRIVATE LANDLORD,880.00,Guaranteed Rent Scheme,Rent Payable,04 Aug 2023,2324/05,ST,N,
0000370996,L A C CLEANING CONTRACTORS LIMITED,"1,840.50",Voids Maintenance,Repairs,07 Aug 2023,2324/06,SME,N,
0000370997,L A C CLEANING CONTRACTORS LIMITED,"1,695.50",Voids Maintenance,Repairs,07 Aug 2023,2324/05,SME,N,
0000371002,PRIVATE LANDLORD,650.00,Guaranteed Rent Scheme,Rent Payable,07 Aug 2012,2324/05,ST,N,
0000371004,3 POINT PROPERTY MANAGEMENT LTD,675.00,Guaranteed Rent Scheme,Rent Payable,07 Aug 2023,2324/05,SME,N,
0000371005,3 POINT PROPERTY MANAGEMENT LTD,895.00,Guaranteed Rent Scheme,Rent Payable,07 Aug 2023,2324/05,SME,N,
0000371007,WILKS HEAD AND EVE LLP,"2,750.00",Financial Servs,Prof & Consultancy Fees,01 Aug 2023,2324/05,SME,N,
0000371007,WILKS HEAD AND EVE LLP,"9,200.00",HRA Strategic Property,Prof & Consultancy Fees,01 Aug 2023,2324/05,SME,N,
0000371010,LONDON BOROUGH OF LAMBETH,"50,000.00",Vehicle and Plant Renewals,Plant & Vehicle - Purchase,31 Jul 2023,2324/05,LGE,N,
0000371012,SERCO LTD,"4,587.00",Domestic Waste,Refuse Contract,04 Aug 2023,2324/05,LGE,Y,50%
0000371013,SERCO LTD,"10,000.00",Open Spaces,Plant & Vehicle Fuel,04 Aug 2023,2324/05,LGE,Y,50%
0000371014,SERCO LTD,"351,945.86",Domestic Waste,Refuse Contract,04 Aug 2023,2324/05,LGE,Y,47%
0000371014,SERCO LTD,"97,030.98",Garden Waste,Refuse Contract,04 Aug 2023,2324/05,LGE,Y,48%
0000371014,SERCO LTD,"27,482.56",Trade Waste,Refuse Contract,04 Aug 2023,2324/05,LGE,Y,55%
0000371016,MAP LETTINGS & PROPERTY MANAGEMENT,"1,050.00",Guaranteed Rent Scheme,Rent Payable,07 Aug 2023,2324/05,SME,N,
0000371016,MAP LETTINGS & PROPERTY MANAGEMENT,200.00,Homeless Prevention Fund,Misc Supplies & Services Costs,07 Aug 2023,2324/05,SME,N,
0000371017,HAMILTON SMITH LETTINGS,590.00,Guaranteed Rent Scheme,Rent Payable,07 Aug 2023,2324/05,SME,N,
0000371018,PRIVATE LANDLORD,900.00,Guaranteed Rent Scheme,Rent Payable,07 Aug 2023,2324/05,ST,N,
0000371019,PRIVATE LANDLORD,786.50,Guaranteed Rent Scheme,Rent Payable,07 Aug 2023,2324/05,ST,N,
0000371025,NEWSQUEST MEDIA GROUP,"1,194.80",Devt Management - Apps,Advertising&mkting (non-staff),03 Aug 2023,2324/05,LGE,N,
0000371026,REED SPECIALIST RECRUITMENT LTD,905.02,Organisational Devt,Agency Staff,28 Jul 2023,2324/05,LGE,Y,50%
0000371029,TRAVIS PERKINS TRADING CO LTD,"67,578.08",Building Services,"Equipment, Tools & Materials",31 Jul 2023,2324/05,LGE,Y,37%
0000371031,ID MANAGEMENT SYSTEMS,"1,018.85",Taxi & Private Hire Licensing,"Equipment, Tools & Materials",03 Aug 2023,2324/05,SME,Y,50%
0000371033,FELLBRIDGE BUILDING SERVICES,"13,331.62",Major Imps,Repairs,07 Aug 2023,2324/05,SME,N,
0000371034,FELLBRIDGE BUILDING SERVICES,"9,850.44",Voids Maintenance,Repairs,07 Aug 2023,2324/05,SME,N,
0000371035,PRIVATE LANDLORD,555.00,Guaranteed Rent Scheme,Rent Payable,07 Aug 2023,2324/05,ST,N,
0000371037,MARCHDELL LTD,815.00,Guaranteed Rent Scheme,Rent Payable,07 Aug 2023,2324/05,SME,N,
0000371038,PAUL WRIGHT & CO,775.00,Guaranteed Rent Scheme,Rent Payable,07 Aug 2023,2324/05,SME,N,
0000371042,ARAN INSULATION LTD,"4,112.93",Insulation Imps,Improvements,25 Jul 2023,2324/06,SME,N,
0000371044,PENTACO CONSTRUCTION LTD,"402,259.00",Stowmarket Middle School,Major Contracts,08 Aug 2023,2324/05,SME,N,
0000371045,NORTHUMBRIAN WATER LTD,"2,897.81",Water Sampling,Sampling & Analysis,08 Aug 2023,2324/05,LGE,N,
0000371047,SUFFOLK COUNTY COUNCIL,"1,150.00",Pre App Charging,Highways  Consultancy,07 Aug 2023,2324/05,LGE,N,
0000371049,MARK JOY PLUMBING AND HEATING LTD,"9,808.80",Renovation/Home Repair Grants,Grants,08 Aug 2023,2324/05,SME,N,
0000371051,THE STOWMARKET GLASS COMPANY LTD,"4,680.00",Building Services,Repairs,08 Aug 2023,2324/05,SME,N,
0000371052,D W ADAMS LTD,"5,285.00",Council House Adaptions,Improvements,08 Aug 2023,2324/05,SME,N,
0000371053,GHB ROOFING,"25,375.16",Roofing,Repairs,31 Jul 2023,2324/05,SME,N,
0000371055,TILE HILL INTERIM & EXECUTIVE LTD,"12,000.00",Organisational Devt,Agency Staff,08 Aug 2023,2324/05,SME,Y,50%
0000371056,TILE HILL INTERIM & EXECUTIVE LTD,"6,240.00",Financial Servs,Agency Staff,08 Aug 2023,2324/05,SME,Y,50%
0000371062,OSBORNE RICHARDSON LTD,"1,665.00",Environmental Protection,Agency Staff,09 Aug 2023,2324/05,SME,Y,50%
0000371063,COLNESETT LTD,"80,254.59",Cross Street Tech Hub,Prof & Consultancy Fees,03 Aug 2023,2324/05,SME,N,
0000371064,ARAN INSULATION LTD,"3,417.93",Insulation Imps,Improvements,08 Aug 2023,2324/06,SME,N,
0000371070,EXPERIAN LTD,809.80,Economy & Business,Subscriptions,27 Jul 2023,2324/05,SME,Y,50%
0000371071,EXPERIAN LTD,900.00,Economy & Business,Subscriptions,11 Jul 2023,2324/05,SME,Y,50%
0000371073,PRO-FLAT SPECIALIST SERVICES LTD,875.00,Building Services,Repairs,31 Jul 2023,2324/05,SME,N,
0000371077,1ST THURSTON SCOUT GROUP,600.00,Grants & Contrbns,Contributions & Donations,07 Aug 2023,2324/05,SME,N,
0000371078,1ST THURSTON SCOUT GROUP,700.00,Grants & Contrbns,Contributions & Donations,07 Aug 2023,2324/05,SME,N,
0000371081,OCCOLD RECREATIONAL & AMENITIES COUNCIL,"10,000.00",Community Fund Projects-Grants,Grants,10 Aug 2023,2324/05,SME,N,
0000371082,DOLPHIN STAIRLIFTS (EAST ANGLIA) LTD,"3,745.00",Mand Disabled Facilities Grant,Grants,10 Aug 2023,2324/05,SME,N,
0000371083,OCCOLD RECREATIONAL & AMENITIES COUNCIL,"1,380.80",S106 Open Spaces Expenditure,Grants,10 Aug 2023,2324/05,SME,N,
0000371084,M & H CIVIL ENGINEERING LTD,950.00,Building Services,Repairs,09 Aug 2023,2324/05,SME,N,
0000371085,QUADIENT UK LIMITED,"3,000.00",Central Postal Serv,Postage,05 Aug 2023,2324/05,LGE,Y,50%
0000371086,RICHARD UTTING ASSOCIATES LLP,"2,124.75",Stowmarket Middle School,Prof & Consultancy Fees,31 Jul 2023,2324/05,SME,N,
0000371090,PORTAL PLAN QUEST LTD,"7,854.00",Devt Management - Apps,Planning Fees,10 Aug 2023,2324/05,SME,N,
0000371093,SEQUENCE UK LTD (WILLIAM H BROWN),"1,500.00",Needham Market Middle School,Prof & Consultancy Fees,14 Jun 2023,2324/05,LGE,N,
0000371094,SUFFOLK COUNTY COUNCIL,"20,323.14",Domestic Waste,MRF Disposal,08 Aug 2023,2324/05,LGE,N,
0000371094,SUFFOLK COUNTY COUNCIL,"33,839.55",Garden Waste,Garden Waste Disposal,08 Aug 2023,2324/05,LGE,N,
0000371095,SEQUENCE UK LTD (WILLIAM H BROWN),"1,500.00",Eves Meadow Haughley S106,Prof & Consultancy Fees,17 Jul 2023,2324/05,LGE,N,
0000371097,THE OYSTER PARTNERSHIP LTD,"1,078.00",Building Services,Agency Staff,09 Aug 2023,2324/05,SME,Y,50%
0000371098,FOURWAYS VEHICLE SOLUTIONS LTD,644.00,Building Services,Vehicle Hire,17 Jul 2023,2324/05,SME,Y,50%
0000371099,FOURWAYS VEHICLE SOLUTIONS LTD,644.00,Building Services,Vehicle Hire,17 Jul 2023,2324/05,SME,Y,50%
0000371100,FOURWAYS VEHICLE SOLUTIONS LTD,672.00,Building Services,Vehicle Hire,27 Jun 2023,2324/05,SME,Y,50%
0000371101,SEQUENCE UK LTD (WILLIAM H BROWN),"1,500.00",Needham Market Middle School,Prof & Consultancy Fees,28 Jul 2023,2324/05,LGE,N,
0000371102,STAGE EVENT SECURITY LTD,"1,560.00",Open Spaces,Misc Premises Costs,01 Aug 2023,2324/05,SME,N,
0000371104,THE OYSTER PARTNERSHIP LTD,"2,320.20",Building Servs Tech Staff,Agency Staff,09 Aug 2023,2324/05,SME,Y,50%
0000371105,THE OYSTER PARTNERSHIP LTD,"3,650.00",HRA Strategic Property,Agency Staff,09 Aug 2023,2324/05,SME,Y,50%
0000371107,THE OYSTER PARTNERSHIP LTD,"2,656.25",Building Servs Tech Staff,Agency Staff,09 Aug 2023,2324/05,SME,Y,50%
0000371108,ARAN INSULATION LTD,"4,899.93",Insulation Imps,Improvements,08 Aug 2023,2324/05,SME,N,
0000371109,IPSERV LTD,"1,977.72",Communications,Commercial Printing,31 Jul 2023,2324/05,SME,N,
0000371109,IPSERV LTD,92.93,Central Printing,Commercial Printing,31 Jul 2023,2324/05,SME,N,
0000371109,IPSERV LTD,234.08,SHELF Project,"Equipment, Tools & Materials",31 Jul 2023,2324/05,SME,N,
0000371109,IPSERV LTD,12.01,Wellbeing CCG Funding,"Equipment, Tools & Materials",31 Jul 2023,2324/05,SME,N,
0000371110,FELGAINS CARE CENTRE,"6,276.00",Mand Disabled Facilities Grant,Grants,11 Aug 2023,2324/05,SME,N,
0000371111,METRIC GROUP LTD,539.73,C Parks General,Contracted Services,08 Aug 2023,2324/05,SME,N,
0000371114,A C LEIGH (NORWICH) LTD,742.20,Building Services,"Equipment, Tools & Materials",01 Aug 2023,2324/05,SME,N,
0000371125,M & H CIVIL ENGINEERING LTD,732.72,Building Services,Repairs,07 Aug 2023,2324/05,SME,N,
0000371126,M & H CIVIL ENGINEERING LTD,600.00,Building Services,Repairs,07 Aug 2023,2324/05,SME,N,
0000371127,JOHN GROSE GROUP LTD,"1,298.15",Building Services,Plant & Vehicle - Other costs,02 Aug 2023,2324/05,SME,Y,50%
0000371128,MK AUTOS MOT CENTRE LIMITED,650.00,Taxi & Private Hire Licensing,Contracted Services,31 Jul 2023,2324/05,SME,N,
0000371133,THE OYSTER PARTNERSHIP LTD,923.25,Building Services,Agency Staff,09 Aug 2023,2324/05,SME,Y,50%
0000371134,THE OYSTER PARTNERSHIP LTD,"2,053.55",Building Servs Tech Staff,Agency Staff,09 Aug 2023,2324/05,SME,Y,50%
0000371139,PRO-FLAT SPECIALIST SERVICES LTD,"1,329.00",Building Services,Repairs,09 Aug 2023,2324/06,SME,N,
0000371142,IN YOUR TEAM LTD,"10,325.00",Software/ICT Projects/Surveys,Prof & Consultancy Fees,02 Aug 2023,2324/06,SME,Y,50%
0000371143,BEN BURGESS GARDEN EQUIPMENT,"6,500.00",Open Spaces,"Equipment, Tools & Materials",10 Aug 2023,2324/05,SME,N,
0000371151,GIPPING CONSTRUCTION LTD,"168,041.00",Needham Market Middle School,Prof & Consultancy Fees,31 Jul 2023,2324/05,SME,N,
0000371153,HUGHES TRADE,-51.50,Temporary Accommodation,Furniture,09 Aug 2023,2324/05,LGE,N,
0000371154,ASPECT CONTRACTS LTD,"4,045.00",Asbestos,Improvements,31 Jul 2023,2324/05,LGE,N,
0000371155,ERNEST DOE & SONS LTD,"1,794.00",Open Spaces,"Equipment, Tools & Materials",26 Jun 2023,2324/05,LGE,N,
0000371156,NEWSQUEST MEDIA GROUP,"1,236.00",Devt Management - Apps,Advertising&mkting (non-staff),29 Jun 2023,2324/05,LGE,N,
0000371157,SUFFOLK TREE SERVICES LTD,"1,850.00",Tenancy Services,Tree felling/maintenance,10 Aug 2023,2324/05,SME,N,
0000371158,LJ GAMMER (STOWMARKET) LTD,725.56,Building Services,Plant & Vehicle - Other costs,03 Jul 2023,2324/05,SME,Y,50%
0000371159,LJ GAMMER (STOWMARKET) LTD,808.83,Building Services,Plant & Vehicle - Other costs,13 Jul 2023,2324/05,SME,Y,50%
0000371160,SUFFOLK COUNTY COUNCIL,"1,520.00",Land Chgs,Contracted Services,09 Aug 2023,2324/05,LGE,N,
0000371161,SUFFOLK COUNTY COUNCIL,"1,142.74",General Rechargeable Works,Misc Supplies & Services Costs,09 Aug 2023,2324/05,LGE,N,
0000371164,WINDIMAN LTD,"1,950.00",Building Services,Repairs,10 Aug 2023,2324/06,SME,N,
0000371165,WINDIMAN LTD,"1,350.00",Building Services,Repairs,10 Aug 2023,2324/06,SME,N,
0000371166,WINDIMAN LTD,"1,050.00",Building Services,Repairs,10 Aug 2023,2324/06,SME,N,
0000371167,WINDIMAN LTD,"1,740.00",Building Services,Repairs,10 Aug 2023,2324/06,SME,N,
0000371168,FELLBRIDGE BUILDING SERVICES,"5,102.82",Voids Maintenance,Repairs,10 Aug 2023,2324/06,SME,N,
0000371170,FELLBRIDGE BUILDING SERVICES,"1,530.36",Insulation Imps,Repairs,10 Aug 2023,2324/05,SME,N,
0000371171,FELLBRIDGE BUILDING SERVICES,"20,189.53",Major Imps,Repairs,10 Aug 2023,2324/06,SME,N,
0000371174,LJ GAMMER (STOWMARKET) LTD,520.80,Building Services,Plant & Vehicle - Other costs,10 Aug 2023,2324/05,SME,Y,50%
0000371175,LJ GAMMER (STOWMARKET) LTD,725.56,Building Services,Plant & Vehicle - Other costs,10 Aug 2023,2324/05,SME,Y,50%
0000371176,LJ GAMMER (STOWMARKET) LTD,808.83,Building Services,Plant & Vehicle - Other costs,13 Jul 2023,2324/05,SME,Y,50%
0000371177,OAKPARK SECURITY SYSTEMS LTD,"1,395.00",Temporary Accommodation,Misc Premises Costs,10 Aug 2023,2324/05,LGE,N,
0000371179,KENDA-CLEAN,70.00,Creeting Rd Depot,Window Cleaning,10 Aug 2023,2324/05,SME,Y,50%
0000371179,KENDA-CLEAN,"2,699.00",Sheltered Accommodation,Window Cleaning,10 Aug 2023,2324/05,SME,N,
0000371179,KENDA-CLEAN,35.00,Tenancy Services,Window Cleaning,10 Aug 2023,2324/05,SME,N,
0000371181,SEAGER HOME SOLUTIONS,"106,682.76",Kitchens/Bathrooms,Major Contracts,08 Aug 2023,2324/05,SME,N,
0000371182,ABBEYCROFT LEISURE,-536.94,Holiday Activity Fund,"Equipment, Tools & Materials",09 Aug 2023,2324/05,LGE,N,
0000371183,BUTTON & TURNER LTD,"7,039.01",Street & Major Road Cleansing,Plant & Vehicle - Other costs,28 Jul 2023,2324/05,SME,N,
0000371186,IMPERIAL POLYTHENE PRODUCTS LTD,"2,817.10",Domestic Waste,Refuse Sacks,09 Aug 2023,2324/05,SME,Y,10%
0000371187,JOHN MILES & SONS,"2,500.00",Jnt Waste Contract,Rent Payable,27 Jul 2023,2324/05,SME,N,
0000371189,DMA HEALTH AND SAFETY LTD,570.00,Building Services,Repairs,09 Aug 2023,2324/05,SME,N,
0000371191,ECOLYTIK LTD,750.00,Devt Management - Apps,Environmental  Consultancy,11 Aug 2023,2324/05,SME,N,
0000371192,FMG CONSULTING LTD,"3,750.00",SHELF Project,Prof & Consultancy Fees,31 Jul 2023,2324/05,SME,N,
0000371193,OPUS PEOPLE SOLUTIONS LTD,892.65,Homeless Prevention Fund,Agency Staff,13 Jul 2023,2324/05,SME,N,
0000371193,OPUS PEOPLE SOLUTIONS LTD,541.38,Devt Management - Apps,Agency Staff,13 Jul 2023,2324/05,SME,N,
0000371193,OPUS PEOPLE SOLUTIONS LTD,594.00,Climate Change and Sustainabil,Agency Staff,13 Jul 2023,2324/05,SME,N,
0000371193,OPUS PEOPLE SOLUTIONS LTD,826.73,Organisational Devt,Agency Staff,13 Jul 2023,2324/05,SME,N,
0000371193,OPUS PEOPLE SOLUTIONS LTD,352.13,Building Services,Agency Staff,13 Jul 2023,2324/05,SME,N,
0000371194,OPUS PEOPLE SOLUTIONS LTD,611.48,Homeless Prevention Fund,Agency Staff,20 Jul 2023,2324/05,SME,N,
0000371194,OPUS PEOPLE SOLUTIONS LTD,570.72,Devt Management - Apps,Agency Staff,20 Jul 2023,2324/05,SME,N,
0000371194,OPUS PEOPLE SOLUTIONS LTD,569.25,Climate Change and Sustainabil,Agency Staff,20 Jul 2023,2324/05,SME,N,
0000371194,OPUS PEOPLE SOLUTIONS LTD,"2,007.77",Organisational Devt,Agency Staff,20 Jul 2023,2324/05,SME,N,
0000371194,OPUS PEOPLE SOLUTIONS LTD,251.72,Health & Safety,Agency Staff,20 Jul 2023,2324/05,SME,N,
0000371194,OPUS PEOPLE SOLUTIONS LTD,140.85,Building Services,Agency Staff,20 Jul 2023,2324/05,SME,N,
0000371196,PLACECUBE LTD,"60,000.00",Addl Projects,Major Contracts,11 Aug 2023,2324/05,SME,Y,50%
0000371197,REED SPECIALIST RECRUITMENT LTD,905.02,Organisational Devt,Agency Staff,04 Aug 2023,2324/06,LGE,Y,50%
0000371201,HAMILTON SMITH LETTINGS,775.00,Guaranteed Rent Scheme,Rent Payable,14 Aug 2023,2324/05,SME,N,
0000371202,PAUL WRIGHT & CO,577.50,Guaranteed Rent Scheme,Rent Payable,14 Aug 2023,2324/05,SME,N,
0000371206,EAST ANGLIAN TRADITIONAL MUSIC TRUST,"2,000.00",Grants & Contrbns,Contributions & Donations,15 Aug 2023,2324/05,SME,N,
0000371208,PAUL WRIGHT & CO,850.00,Guaranteed Rent Scheme,Rent Payable,14 Aug 2023,2324/05,SME,N,
0000371209,BENICIA PROPERTIES LTD,575.00,Guaranteed Rent Scheme,Rent Payable,14 Aug 2023,2324/05,SME,N,
0000371210,PRIVATE LANDLORD,"1,050.00",Guaranteed Rent Scheme,Rent Payable,14 Aug 2023,2324/05,SME,N,
0000371211,PRIVATE LANDLORD,800.00,Guaranteed Rent Scheme,Rent Payable,14 Aug 2023,2324/05,ST,N,
0000371212,PRIVATE LANDLORD,895.00,Guaranteed Rent Scheme,Rent Payable,14 Aug 2023,2324/05,ST,N,
0000371213,HAMILTON SMITH LETTINGS,550.00,Guaranteed Rent Scheme,Rent Payable,14 Aug 2023,2324/05,SME,N,
0000371219,ANGLIA COMMERCIAL FLOORING LTD,949.99,Voids Maintenance,Repairs,15 Aug 2023,2324/05,SME,N,
0000371220,ANGLIA COMMERCIAL FLOORING LTD,507.62,Voids Maintenance,Repairs,15 Aug 2023,2324/05,SME,N,
0000371224,NEWSQUEST MEDIA GROUP,865.20,Devt Management - Apps,Advertising&mkting (non-staff),10 Aug 2023,2324/05,LGE,N,
0000371226,LJ GAMMER (STOWMARKET) LTD,616.65,Building Services,Plant & Vehicle - Other costs,14 Aug 2023,2324/05,SME,Y,50%
0000371229,OCN CONTRACTS,378.00,Temporary Accommodation,Furniture,01 Aug 2023,2324/05,SME,N,
0000371229,OCN CONTRACTS,258.00,Temporary Accommodation,Furniture,01 Aug 2023,2324/05,SME,N,
0000371234,SIGNIX LTD,"5,323.34",Smoke Alarms (Bbgh Standard),Major Contracts,15 Aug 2023,2324/06,SME,N,
0000371235,TOP FLOORS (EAST ANGLIA) LTD,709.00,Other Temp Accommodation,"Equipment, Tools & Materials",10 Aug 2023,2324/05,SME,N,
0000371235,TOP FLOORS (EAST ANGLIA) LTD,272.00,Other Temp Accommodation,"Equipment, Tools & Materials",10 Aug 2023,2324/05,SME,N,
0000371237,ACTIVLIVES,"2,336.00",Ips & E A - Strength & Balance,Contributions & Donations,15 Aug 2023,2324/05,SME,Y,50%
0000371238,D W ADAMS LTD,"1,804.00",Building Services,Repairs,11 Aug 2023,2324/05,SME,N,
0000371244,OPUS PEOPLE SOLUTIONS LTD,653.25,Homeless Prevention Fund,Agency Staff,3 Aug 2023,2324/05,SME,N,
0000371244,OPUS PEOPLE SOLUTIONS LTD,503.77,Devt Management - Apps,Agency Staff,3 Aug 2023,2324/05,SME,N,
0000371244,OPUS PEOPLE SOLUTIONS LTD,779.63,Climate Change and Sustainabil,Agency Staff,3 Aug 2023,2324/05,SME,N,
0000371244,OPUS PEOPLE SOLUTIONS LTD,"1,377.35",Organisational Devt,Agency Staff,3 Aug 2023,2324/05,SME,N,
0000371244,OPUS PEOPLE SOLUTIONS LTD,206.77,Health & Safety,Agency Staff,3 Aug 2023,2324/05,SME,N,
0000371244,OPUS PEOPLE SOLUTIONS LTD,563.40,Building Services,Agency Staff,3 Aug 2023,2324/05,SME,N,
0000371246,OPUS PEOPLE SOLUTIONS LTD,643.93,Homeless Prevention Fund,Agency Staff,10 Aug 2023,2324/05,SME,N,
0000371246,OPUS PEOPLE SOLUTIONS LTD,580.92,Devt Management - Apps,Agency Staff,10 Aug 2023,2324/05,SME,N,
0000371246,OPUS PEOPLE SOLUTIONS LTD,408.37,Climate Change and Sustainabil,Agency Staff,10 Aug 2023,2324/05,SME,N,
0000371246,OPUS PEOPLE SOLUTIONS LTD,885.78,Organisational Devt,Agency Staff,10 Aug 2023,2324/05,SME,N,
0000371246,OPUS PEOPLE SOLUTIONS LTD,197.78,Health & Safety,Agency Staff,10 Aug 2023,2324/05,SME,N,
0000371246,OPUS PEOPLE SOLUTIONS LTD,563.40,Building Services,Agency Staff,10 Aug 2023,2324/05,SME,N,
0000371247,THERMATECH,450.00,Temporary Accommodation,Fire Prevention,15 Aug 2023,2324/06,SME,N,
0000371247,THERMATECH,"1,550.00",Sheltered Accommodation,Fire Prevention,15 Aug 2023,2324/06,SME,N,
0000371247,THERMATECH,250.00,Temporary Accommodation,Fire Prevention,15 Aug 2023,2324/06,SME,N,
0000371249,THERMATECH,"2,050.00",Asbestos,Repairs,15 Aug 2023,2324/05,SME,N,
0000371253,IMPERIAL POLYTHENE PRODUCTS LTD,"2,230.80",Domestic Waste,Refuse Sacks,11 Aug 2023,2324/05,SME,Y,25%
0000371254,ANGLIA COMMERCIAL FLOORING LTD,"1,310.75",Building Services,Repairs,07 Aug 2023,2324/05,SME,N,
0000371255,ANGLIA COMMERCIAL FLOORING LTD,865.81,Building Services,Repairs,09 Aug 2023,2324/05,SME,N,
0000371256,NEWSQUEST MEDIA GROUP,700.40,Taxi & Private Hire Licensing,Advertising&mkting (non-staff),15 Aug 2023,2324/05,LGE,N,
0000371259,ANGLIA COMMERCIAL FLOORING LTD,775.63,Voids Maintenance,Repairs,15 Aug 2023,2324/05,SME,N,
0000371260,ANGLIA COMMERCIAL FLOORING LTD,"1,287.81",Voids Maintenance,Repairs,15 Aug 2023,2324/05,SME,N,
0000371261,THE LEARNING & DEVELOPMENT COMPANY,"20,000.00",Organisational Devt,Corporate Training,15 Aug 2023,2324/05,SME,Y,50%
0000371267,KEYWAYS THE LOCKSMITHS LTD,"1,467.77",Temporary Accommodation,Misc Premises Costs,11 Aug 2023,2324/05,SME,N,
0000371269,PAY 360 LIMITED,"7,322.52",Bank Chgs,Bank Charges,16 Aug 2023,2324/05,LGE,N,
0000371270,SUFFOLK COUNTY COUNCIL,"10,887.00",Organisational Devt,Recruitment,15 Aug 2023,2324/06,LGE,Y,50%
0000371274,ST PETER & ST MARYS PRE SCHOOL,"1,311.00",Grants & Contrbns,Contributions & Donations,16 Aug 2023,2324/05,SME,N,
0000371276,THE OYSTER PARTNERSHIP LTD,"2,656.25",Building Servs Tech Staff,Agency Staff,16 Aug 2023,2324/05,SME,Y,50%
0000371277,THE OYSTER PARTNERSHIP LTD,"2,043.20",Building Servs Tech Staff,Agency Staff,16 Aug 2023,2324/05,SME,Y,50%
0000371278,THE OYSTER PARTNERSHIP LTD,"2,276.55",Building Servs Tech Staff,Agency Staff,16 Aug 2023,2324/05,SME,Y,50%
0000371279,THE OYSTER PARTNERSHIP LTD,"3,650.00",HRA Strategic Property,Agency Staff,16 Aug 2023,2324/05,SME,Y,50%
0000371280,THE OYSTER PARTNERSHIP LTD,"1,064.00",Building Services,Agency Staff,16 Aug 2023,2324/05,SME,Y,50%
0000371281,THE OYSTER PARTNERSHIP LTD,923.25,Building Services,Agency Staff,16 Aug 2023,2324/05,SME,Y,50%
0000371282,GALLAGHER CAR & VAN RENTALS LTD,"1,232.00",Domestic Waste,Refuse Contract,16 Aug 2023,2324/05,LGE,N,
0000371287,TILE HILL INTERIM & EXECUTIVE LTD,"4,680.00",Financial Servs,Agency Staff,16 Aug 2023,2324/05,SME,Y,50%
0000371297,SCH SUPPLIES LTD,945.00,Open Spaces,Plant & Vehicle - Other costs,11 Aug 2023,2324/05,SME,N,
0000371298,OPUS PEOPLE SOLUTIONS LTD,557.01,Homeless Prevention Fund,Agency Staff,27 Jul 2023,2324/05,SME,N,
0000371298,OPUS PEOPLE SOLUTIONS LTD,509.51,Devt Management - Apps,Agency Staff,27 Jul 2023,2324/05,SME,N,
0000371298,OPUS PEOPLE SOLUTIONS LTD,358.88,Climate Change and Sustainabil,Agency Staff,27 Jul 2023,2324/05,SME,N,
0000371298,OPUS PEOPLE SOLUTIONS LTD,"1,357.39",Organisational Devt,Agency Staff,27 Jul 2023,2324/05,SME,N,
0000371298,OPUS PEOPLE SOLUTIONS LTD,256.22,Health & Safety,Agency Staff,27 Jul 2023,2324/05,SME,N,
0000371298,OPUS PEOPLE SOLUTIONS LTD,624.44,Building Services,Agency Staff,27 Jul 2023,2324/05,SME,N,
0000371299,MB TREES (EAST ANGLIA) LTD,580.00,Public Tree Programme,Tree felling/maintenance,15 Aug 2023,2324/05,SME,N,
0000371300,NAGELS UK LTD,"5,275.00",C Parks General,"Equipment, Tools & Materials",14 Aug 2023,2324/06,SME,N,
0000371302,CARE PLUS STAFFORDSHIRE LTD,"6,566.62",Sheltered General Mgmt,Community Alarm Costs,25 Feb 2023,2324/05,SME,N,
0000371302,CARE PLUS STAFFORDSHIRE LTD,58.37,Homelessness Private Sector,Telephone Costs,25 Feb 2023,2324/05,SME,N,
0000371302,CARE PLUS STAFFORDSHIRE LTD,496.14,Building Services,Telephone Costs,25 Feb 2023,2324/05,SME,N,
0000371302,CARE PLUS STAFFORDSHIRE LTD,58.37,Animal Welfare Licensing,Telephone Costs,25 Feb 2023,2324/05,SME,N,
0000371302,CARE PLUS STAFFORDSHIRE LTD,58.37,Bldg Control Commercial Income,Telephone Costs,25 Feb 2023,2324/05,SME,N,
0000371302,CARE PLUS STAFFORDSHIRE LTD,58.37,Civil Protection & Emerg Plg,Telephone Costs,25 Feb 2023,2324/05,SME,N,
0000371303,ANGLIAN WATER,"3,385.32",Building Services,Repairs,17 Aug 2023,2324/06,LGE,N,
0000371304,STOWMARKET LAWN TENNIS CLUB,"5,537.11",S106 Open Spaces Expenditure,Grants,17 Aug 2023,2324/05,SME,N,
0000371305,OSBORNE RICHARDSON LTD,"1,665.00",Environmental Protection,Agency Staff,16 Aug 2023,2324/05,SME,Y,50%
0000371310,SUFFOLK ENTERTAINMENTS AT TANGENT,960.00,Devt Management - Appeals,Misc Supplies & Services Costs,17 Aug 2023,2324/05,SME,Y,100%
0000371321,SUFFOLK COUNTY COUNCIL,"60,355.98",Trade Waste,Trade Waste Disposal,16 Aug 2023,2324/05,LGE,N,
0000371322,SUFFOLK COUNTY COUNCIL,530.00,Homelessness Private Sector,Training,16 Aug 2023,2324/05,LGE,Y,50%
0000371325,STORM ENVIRONMENTAL LTD,54.00,Jnt Waste Contract,"Equipment, Tools & Materials",11 Aug 2023,2324/05,SME,N,
0000371325,STORM ENVIRONMENTAL LTD,"7,832.50",Bins,Bins,11 Aug 2023,2324/05,SME,N,
0000371326,FELLBRIDGE BUILDING SERVICES,"19,793.61",Major Imps,Repairs,17 Aug 2023,2324/06,SME,N,
0000371327,FELLBRIDGE BUILDING SERVICES,"17,556.66",Major Imps,Repairs,17 Aug 2023,2324/06,SME,N,
0000371331,THE KINETIC SCIENCE FOUNDATION,800.00,HAF Family Fun Days,Contributions & Donations,14 Aug 2023,2324/05,SME,N,
0000371334,HEADWAY UK LTD,687.50,Sheltered Accommodation,Fire Prevention,15 Aug 2023,2324/05,SME,N,
0000371337,GALLAGHER CAR & VAN RENTALS LTD,"1,316.00",Domestic Waste,Refuse Contract,18 Aug 2023,2324/05,LGE,N,
0000371338,SIGNIX LTD,883.56,Smoke Alarms (Bbgh Standard),Major Contracts,18 Aug 2023,2324/05,SME,N,
0000371349,D W ADAMS LTD,557.00,Building Services,Repairs,18 Aug 2023,2324/05,SME,N,
0000371352,PRO-FLAT SPECIALIST SERVICES LTD,"4,110.00",Building Services,Contracted Services,18 Aug 2023,2324/06,SME,N,
0000371354,NEWSQUEST MEDIA GROUP,865.20,Devt Management - Apps,Advertising&mkting (non-staff),17 Aug 2023,2324/05,LGE,N,
0000371357,WHYBROW PROPERTY SOLUTIONS LTD,"6,870.36",Council House Adaptions,Improvements,17 Aug 2023,2324/06,SME,N,
0000371358,WHYBROW PROPERTY SOLUTIONS LTD,"22,341.02",Building Services,Repairs,18 Aug 2023,2324/06,SME,N,
0000371359,FELLBRIDGE BUILDING SERVICES,"11,965.27",Major Imps,Repairs,17 Aug 2023,2324/06,SME,N,
0000371360,REED SPECIALIST RECRUITMENT LTD,733.80,Organisational Devt,Agency Staff,11 Aug 2023,2324/06,LGE,Y,50%
0000371362,CHEC PLANNING LTD,"5,331.69",Nghbrhd Plan Designations,Prof & Consultancy Fees,18 Aug 2023,2324/05,SME,N,
0000371363,PRIVATE LANDLORD,836.50,Guaranteed Rent Scheme,Rent Payable,21 Aug 2023,2324/05,ST,N,
0000371365,HAMILTON SMITH LETTINGS,"2,000.00",Guaranteed Rent Scheme,Rent Payable,21 Aug 2023,2324/05,SME,N,
0000371366,PARKYNS LETTINGS BURY ST EDMUNDS,"1,300.00",Guaranteed Rent Scheme,Rent Payable,21 Aug 2023,2324/05,SME,N,
0000371367,PRIVATE LANDLORD,669.00,Guaranteed Rent Scheme,Rent Payable,21 Aug 2023,2324/05,ST,N,
0000371368,YELLOW HOMES LIMITED,"1,785.00",Guaranteed Rent Scheme,Rent Payable,21 Aug 2023,2324/05,SME,N,
0000371369,MB TREES (EAST ANGLIA) LTD,"1,100.00",Tenancy Services,Tree felling/maintenance,21 Aug 2023,2324/05,SME,N,
0000371371,OBEE CIC,"9,975.50",Communities,Grants,21 Aug 2023,2324/05,SME,N,
0000371377,PENNA PLC,"13,983.00",Health & Safety,Agency Staff,21 Aug 2023,2324/06,SME,Y,50%
0000371378,PENNA PLC,"1,416.00",Health & Safety,Agency Staff,21 Aug 2023,2324/06,SME,Y,50%
0000371379,PENNA PLC,"11,859.00",Health & Safety,Agency Staff,21 Aug 2023,2324/05,SME,Y,50%
0000371380,PENNA PLC,"14,514.00",Health & Safety,Agency Staff,21 Aug 2023,2324/06,SME,Y,50%
0000371381,DEMOCRACY COUNTS LTD,"2,517.09",Electoral Registration,Returning Officer Fees,31 Jul 2023,2324/05,SME,N,
0000371382,WILD HERITAGE SUFFOLK,"9,000.00",Communities,Grants,21 Aug 2023,2324/05,SME,N,
0000371387,L A C CLEANING CONTRACTORS LIMITED,518.60,Other Temp Accommodation,General Cleaning,22 Aug 2023,2324/05,SME,N,
0000371389,HOME-START IN SUFFOLK,"4,037.00",IP14 Fund,Contributions from other LAs,22 Aug 2023,2324/05,SME,N,
0000371390,PRINCIPLE CONSTRUCTION & MAINTENANCE LTD,"9,488.02",Council House Adaptions,Improvements,15 Aug 2023,2324/06,SME,N,
0000371392,KAREN LOUISE DANCE CIC,"7,187.50",IP14 Fund,Contributions from other LAs,22 Aug 2023,2324/05,SME,N,
0000371393,WORKWEAR (EAST ANGLIA) LTD,561.97,Street & Major Road Cleansing,Protective clothing,08 Aug 2023,2324/05,SME,N,
0000371394,HETHEL INNOVATION LTD,"4,997.16",MSM Skills & Innovation Centre,Prof & Consultancy Fees,17 Aug 2023,2324/05,LGE,N,
0000371395,THOMPSONS ESTATE OFFICES LTD,725.00,Guaranteed Rent Scheme,Rent Payable,22 Aug 2023,2324/05,SME,N,
0000371396,NEXERE CONSULTING LTD,"4,800.00",Climate Change and Sustainabil,Contracted Services,09 Jul 2023,2324/05,SME,Y,50%
0000371397,SEQUENCE UK LTD (WILLIAM H BROWN),"1,500.00",Needham Market Middle School,Prof & Consultancy Fees,14 Jun 2023,2324/05,LGE,N,
0000371398,SEQUENCE UK LTD (WILLIAM H BROWN),"1,500.00",Needham Market Middle School,Prof & Consultancy Fees,07 Jun 2023,2324/05,LGE,N,
0000371399,SEQUENCE UK LTD (WILLIAM H BROWN),"1,500.00",Needham Market Middle School,Prof & Consultancy Fees,12 Jul 2023,2324/05,LGE,N,
0000371400,SEQUENCE UK LTD (WILLIAM H BROWN),"1,500.00",Needham Market Middle School,Prof & Consultancy Fees,14 Jul 2023,2324/05,LGE,N,
0000371401,SEQUENCE UK LTD (WILLIAM H BROWN),"1,500.00",Needham Market Middle School,Prof & Consultancy Fees,14 Jul 2023,2324/05,LGE,N,
0000371402,SEQUENCE UK LTD (WILLIAM H BROWN),"1,500.00",Needham Market Middle School,Prof & Consultancy Fees,19 Jun 2023,2324/05,LGE,N,
0000371403,SEQUENCE UK LTD (WILLIAM H BROWN),"1,500.00",Needham Market Middle School,Prof & Consultancy Fees,19 Jun 2023,2324/05,LGE,N,
0000371404,SEQUENCE UK LTD (WILLIAM H BROWN),"1,500.00",Needham Market Middle School,Prof & Consultancy Fees,22 Jun 2023,2324/05,LGE,N,
0000371405,SEQUENCE UK LTD (WILLIAM H BROWN),"1,500.00",Needham Market Middle School,Prof & Consultancy Fees,05 Jun 2023,2324/05,LGE,N,
0000371406,SEQUENCE UK LTD (WILLIAM H BROWN),"1,500.00",Needham Market Middle School,Prof & Consultancy Fees,30 Jun 2023,2324/05,LGE,N,
0000371408,SLM COMMUNITY LEISURE CHARITABLE TRUST,"4,524.25",IP14 Fund,Contributions from other LAs,21 Aug 2023,2324/05,SME,N,
0000371409,SLM COMMUNITY LEISURE CHARITABLE TRUST,"4,178.55",IP14 Fund,Contributions from other LAs,21 Aug 2023,2324/05,SME,N,
0000371411,INSOLUTIONS LTD,"1,500.00",Building Services,Miscellaneous Insurances,22 Aug 2023,2324/05,SME,N,
0000371412,NEXERE CONSULTING LTD,"3,668.40",Climate Change and Sustainabil,Contracted Services,14 Aug 2023,2324/05,SME,Y,50%
0000371413,OXBURY CHARTERED SURVEYORS,"2,850.00","Aspall Road, Debenham, Stowmar",Prof & Consultancy Fees,15 Aug 2023,2324/06,SME,N,
0000371414,WINDIMAN LTD,"1,490.00",Building Services,Repairs,22 Aug 2023,2324/06,SME,N,
0000371415,WINDIMAN LTD,960.00,Building Services,Repairs,22 Aug 2023,2324/06,SME,N,
0000371416,OPUS PEOPLE SOLUTIONS LTD,659.27,Homeless Prevention Fund,Agency Staff,17 Aug 2023,2324/05,SME,N,
0000371416,OPUS PEOPLE SOLUTIONS LTD,578.49,Devt Management - Apps,Agency Staff,17 Aug 2023,2324/05,SME,N,
0000371416,OPUS PEOPLE SOLUTIONS LTD,519.75,Climate Change and Sustainabil,Agency Staff,17 Aug 2023,2324/05,SME,N,
0000371416,OPUS PEOPLE SOLUTIONS LTD,"1,659.84",Organisational Devt,Agency Staff,17 Aug 2023,2324/05,SME,N,
0000371416,OPUS PEOPLE SOLUTIONS LTD,260.71,Health & Safety,Agency Staff,17 Aug 2023,2324/05,SME,N,
0000371416,OPUS PEOPLE SOLUTIONS LTD,708.95,Building Services,Agency Staff,17 Aug 2023,2324/05,SME,N,
0000371417,WINDIMAN LTD,"1,390.00",Building Services,Repairs,22 Aug 2023,2324/06,SME,N,
0000371418,ECOLYTIK LTD,506.00,Devt Management - Apps,Environmental  Consultancy,23 Aug 2023,2324/05,SME,N,
0000371419,THE FORGE COMMUNITY CHURCH,"5,000.00",IP14 Fund,Contributions from other LAs,23 Aug 2023,2324/05,SME,N,
0000371421,SUFFOLK TREE SERVICES LTD,"2,800.00",Public Tree Programme,Tree felling/maintenance,23 Aug 2023,2324/05,SME,N,
0000371422,MIXBROW LTD,"5,971.26",Council House Adaptions,Improvements,22 Aug 2023,2324/06,SME,N,
0000371428,VODAFONE CORPORATE LTD,"1,577.25",ICT,Telephone Costs,22 Jul 2023,2324/05,LGE,N,
0000371429,SUFFOLK FAMILY CARERS LTD,"4,667.90",IP14 Fund,Contributions from other LAs,23 Aug 2023,2324/05,SME,N,
0000371430,SUFFOLK FAMILY CARERS LTD,"3,750.00",IP14 Fund,Contributions from other LAs,23 Aug 2023,2324/05,SME,N,
0000371432,THE OYSTER PARTNERSHIP LTD,"2,018.90",Building Servs Tech Staff,Agency Staff,23 Aug 2023,2324/05,SME,Y,50%
0000371433,THE OYSTER PARTNERSHIP LTD,"3,650.00",HRA Strategic Property,Agency Staff,23 Aug 2023,2324/05,SME,Y,50%
0000371434,THE OYSTER PARTNERSHIP LTD,923.25,Building Services,Agency Staff,23 Aug 2023,2324/05,SME,Y,50%
0000371435,THE OYSTER PARTNERSHIP LTD,"2,656.25",Building Servs Tech Staff,Agency Staff,23 Aug 2023,2324/05,SME,Y,50%
0000371436,THE OYSTER PARTNERSHIP LTD,"2,297.25",Building Servs Tech Staff,Agency Staff,23 Aug 2023,2324/05,SME,Y,50%
0000371437,DISTINCTIVE HOME IMPROVEMENTS,"3,575.00",Mand Disabled Facilities Grant,Grants,23 Aug 2023,2324/05,ST,N,
0000371438,THE PE SHED,"2,844.00",Holiday Activity Fund,"Equipment, Tools & Materials",21 Aug 2023,2324/05,ST,N,
0000371443,SPORTING MEMORIES NETWORK CIC,"1,750.00",Wellbeing CCG Funding,Contributions & Donations,17 Aug 2023,2324/05,SME,N,
0000371455,OXBURY CHARTERED SURVEYORS,"1,530.00","Framlingham Road, Laxfield",Prof & Consultancy Fees,21 Aug 2023,2324/05,SME,N,
0000371459,D W ADAMS LTD,"5,012.00",Council House Adaptions,Improvements,24 Aug 2023,2324/06,SME,N,
0000371460,HEALTH AND CARE (UK) LTD,624.90,Jnt Waste Contract,"Equipment, Tools & Materials",02 Aug 2023,2324/05,SME,Y,50%
0000371461,MALJON TIMBER PRESERVATION LTD,675.00,Insulation Imps,Repairs,24 Aug 2023,2324/05,SME,N,
0000371464,FLAGSHIP HOUSING GROUP LTD-RENT ACCOUNT,"1,000.00",Homeless Prevention Fund,Misc Supplies & Services Costs,24 Aug 2023,2324/05,LGE,N,
0000371465,PICKLEBALL THURSTON,885.00,Grants & Contrbns,Contributions & Donations,24 Aug 2023,2324/06,SME,N,
0000371466,GALLAGHER CAR & VAN RENTALS LTD,"2,589.00",Domestic Waste,Refuse Contract,24 Aug 2023,2324/05,LGE,N,
0000371467,OBEE CIC,"4,636.00",IP14 Fund,Contributions from other LAs,24 Aug 2023,2324/05,SME,N,
0000371468,FAMILIES TOGETHER SUFFOLK,"5,000.00",IP14 Fund,Contributions from other LAs,24 Aug 2023,2324/05,SME,N,
0000371469,THERMATECH,"1,550.00",Sheltered Accommodation,Fire Prevention,24 Aug 2023,2324/06,SME,N,
0000371469,THERMATECH,"1,550.00",Sheltered Accommodation,Fire Prevention,24 Aug 2023,2324/06,SME,N,
0000371472,BELLWAY HOMES LIMITED (ESSEX DIVISION),"222,531.67",Loraine Way Bramford  S106,Purchase of Land & Buildings,14 Aug 2023,2324/05,LGE,N,
0000371473,OPUS PEOPLE SOLUTIONS LTD,455.02,Homeless Prevention Fund,Agency Staff,24 Aug 2023,2324/05,SME,N,
0000371473,OPUS PEOPLE SOLUTIONS LTD,489.07,Devt Management - Apps,Agency Staff,24 Aug 2023,2324/05,SME,N,
0000371473,OPUS PEOPLE SOLUTIONS LTD,321.75,Climate Change and Sustainabil,Agency Staff,24 Aug 2023,2324/05,SME,N,
0000371473,OPUS PEOPLE SOLUTIONS LTD,"1,486.03",Organisational Devt,Agency Staff,24 Aug 2023,2324/05,SME,N,
0000371473,OPUS PEOPLE SOLUTIONS LTD,272.10,Health & Safety,Agency Staff,24 Aug 2023,2324/05,SME,N,
0000371473,OPUS PEOPLE SOLUTIONS LTD,643.21,Building Services,Agency Staff,24 Aug 2023,2324/05,SME,N,
0000371476,SEH FRENCH LTD,"18,710.48",Needham Lake Vis Centre (CAP),Prof & Consultancy Fees,08 Aug 2023,2324/06,SME,N,
0000371481,PUBLIC SEWER SERVICES,782.00,Building Services,Repairs,24 Aug 2023,2324/06,SME,N,
0000371482,PUBLIC SEWER SERVICES,"2,537.49",Building Services,Repairs,24 Aug 2023,2324/06,SME,N,
0000371484,PUBLIC SEWER SERVICES,"1,128.10",Building Services,Repairs,24 Aug 2023,2324/05,SME,N,
0000371488,WORLINGWORTH CRICKET CLUB,"2,567.28",Community Fund Projects-Grants,Grants,25 Aug 2023,2324/05,SME,N,
0000371489,TRUCKEAST LTD,"2,240.72",Street & Major Road Cleansing,Plant & Vehicle - Other costs,25 Aug 2023,2324/05,LGE,N,
0000371494,NORTHUMBRIAN WATER LTD,36.14,Cedars Park,Legionella Testing,25 Aug 2023,2324/06,LGE,N,
0000371494,NORTHUMBRIAN WATER LTD,42.71,Other HRA Temp Accommodation,Legionella Testing,25 Aug 2023,2324/06,LGE,N,
0000371494,NORTHUMBRIAN WATER LTD,"1,027.88",Sheltered Accommodation,Legionella Testing,25 Aug 2023,2324/06,LGE,N,
0000371494,NORTHUMBRIAN WATER LTD,42.71,Temporary Accommodation,Legionella Testing,25 Aug 2023,2324/06,LGE,N,
0000371494,NORTHUMBRIAN WATER LTD,236.55,Tenancy Services,Legionella Testing,25 Aug 2023,2324/06,LGE,N,
0000371494,NORTHUMBRIAN WATER LTD,78.85,Wingfield Barns,Legionella Testing,25 Aug 2023,2324/06,LGE,N,
0000371500,ESSEX AND SUFFOLK WATER,889.00,Sheltered Accommodation,Water Rates - Metered,18 Aug 2023,2324/05,LGE,N,
0000371501,ESSEX AND SUFFOLK WATER,828.57,Sheltered Accommodation,Water Rates - Metered,18 Aug 2023,2324/05,LGE,N,
0000371503,NEWSQUEST MEDIA GROUP,741.60,Devt Management - Apps,Advertising&mkting (non-staff),24 Aug 2023,2324/06,LGE,N,
0000371504,SUREFIX,900.00,Building Services,Repairs,23 Aug 2023,2324/06,SME,N,
0000371507,REED SPECIALIST RECRUITMENT LTD,905.02,Organisational Devt,Agency Staff,18 Aug 2023,2324/05,LGE,Y,50%
0000371514,L A C CLEANING CONTRACTORS LIMITED,865.58,Temporary Accommodation,General Cleaning,28 Aug 2023,2324/06,SME,N,
0000371517,KEN GRIME & SON LTD,522.90,Building Services,Repairs,29 Aug 2023,2324/06,SME,N,
0000371520,BENICIA PROPERTIES LTD,685.00,Guaranteed Rent Scheme,Rent Payable,29 Aug 2023,2324/05,SME,N,
0000371521,RIGOUR SURVEY LTD,742.25,Paddock House Eye,Prof & Consultancy Fees,29 Aug 2023,2324/05,SME,N,
0000371523,PRIVATE LANDLORD,800.00,Guaranteed Rent Scheme,Rent Payable,29 Aug 2023,2324/05,ST,N,
0000371524,FELGAINS CARE CENTRE,"2,410.00",Mand Disabled Facilities Grant,Grants,29 Aug 2023,2324/05,SME,N,
0000371525,UK CONTAINER MAINTENANCE LTD,"3,440.00",Jnt Waste Contract,"Equipment, Tools & Materials",21 Aug 2023,2324/06,SME,Y,50%
0000371529,FELGAINS CARE CENTRE,"3,143.00",Mand Disabled Facilities Grant,Grants,29 Aug 2023,2324/05,SME,N,
0000371530,GB ADAPTIONS LTD,"6,477.00",Mand Disabled Facilities Grant,Grants,29 Aug 2023,2324/05,SME,N,
0000371531,WINDIMAN LTD,"2,640.00",Building Services,Repairs,29 Aug 2023,2324/06,SME,N,
0000371533,WINDIMAN LTD,"1,690.00",Building Services,Repairs,29 Aug 2023,2324/06,SME,N,
0000371535,EAST OF ENGLAND LGA,750.00,Organisational Devt,Contracted Services,29 Aug 2023,2324/05,SME,Y,50%
0000371538,BEN BURGESS GARDEN EQUIPMENT,"1,500.00",Open Spaces,"Equipment, Tools & Materials",30 Aug 2023,2324/05,SME,N,
0000371540,FLAGSHIP HOUSING GROUP LTD-RENT ACCOUNT,750.00,Homeless Prevention Fund,Misc Supplies & Services Costs,29 Aug 2023,2324/05,LGE,N,
0000371541,WADE WINDOWS LTD,"3,145.80",Renovation/Home Repair Grants,Grants,30 Aug 2023,2324/05,SME,N,
0000371542,CLARKE FENCING LTD,511.56,Open Spaces,"Equipment, Tools & Materials",30 Aug 2023,2324/06,SME,N,
0000371544,ABBEYCROFT LEISURE,-536.94,Holiday Activity Fund,"Equipment, Tools & Materials",09 Aug 2023,2324/06,LGE,N,
0000371547,THE OYSTER PARTNERSHIP LTD,"3,650.00",HRA Strategic Property,Agency Staff,30 Aug 2023,2324/06,SME,Y,50%
0000371548,THE OYSTER PARTNERSHIP LTD,"2,656.25",Building Servs Tech Staff,Agency Staff,30 Aug 2023,2324/06,SME,Y,50%
0000371549,THE OYSTER PARTNERSHIP LTD,"2,030.15",Building Servs Tech Staff,Agency Staff,30 Aug 2023,2324/06,SME,Y,50%
0000371552,L A C CLEANING CONTRACTORS LIMITED,725.50,Building Services,Repairs,31 Aug 2023,2324/06,SME,N,
0000371553,THE OYSTER PARTNERSHIP LTD,"2,278.80",Building Servs Tech Staff,Agency Staff,30 Aug 2023,2324/06,SME,Y,50%
0000371557,COTTON VILLAGE HALL,"1,000.00",Grants & Contrbns,Contributions & Donations,25 Aug 2023,2324/06,SME,N,
0000371559,BAREFOOT & GILLES LTD,900.00,Cross Street Tech Hub,Prof & Consultancy Fees,31 Aug 2023,2324/06,SME,N,
0000371561,EAST ANGLIA CLEANING SERVICES LTD,"1,604.54",Jnt Waste Contract,General Cleaning,31 Aug 2023,2324/06,SME,Y,50%
0000371563,INFORM COMMUNICATIONS LTD,600.00,Customer Servs,Line of Business Applications,25 Aug 2023,2324/06,SME,Y,50%
0000371565,FELLBRIDGE BUILDING SERVICES,"13,771.39",Major Imps,Repairs,31 Aug 2023,2324/06,SME,N,
0000371569,MID SUFFOLK GROWTH LTD,"1,515.00","Cedars Park C & D, Stowmarket",Prof & Consultancy Fees,31 Aug 2023,2324/06,SME,N,
0000371570,MID SUFFOLK GROWTH LTD,"2,218.87",Loraine Way Bramford  S106,Prof & Consultancy Fees,31 Aug 2023,2324/06,SME,N,
0000371571,APTL ENTERPRISES LTD,"4,326.67",PV Panels,Contracted Services,31 Aug 2023,2324/06,SME,N,
0000371574,NEWSQUEST MEDIA GROUP,"1,153.60",Devt Management - Apps,Advertising&mkting (non-staff),31 Aug 2023,2324/06,LGE,N,
0000371576,ANGLIA COMMERCIAL FLOORING LTD,763.40,Voids Maintenance,Repairs,31 Aug 2023,2324/06,SME,N,
0000371577,ANGLIA COMMERCIAL FLOORING LTD,560.49,Building Services,Repairs,31 Aug 2023,2324/06,SME,N,
0000371578,D W ADAMS LTD,"5,127.00",Council House Adaptions,Improvements,31 Aug 2023,2324/06,SME,N,
0000371579,THERMATECH,"2,400.00",Sheltered Accommodation,Fire Prevention,30 Aug 2023,2324/06,SME,N,
0000371579,THERMATECH,"1,550.00",Sheltered Accommodation,Fire Prevention,30 Aug 2023,2324/06,SME,N,
0000371579,THERMATECH,"1,550.00",Sheltered Accommodation,Fire Prevention,30 Aug 2023,2324/06,SME,N,
0000371579,THERMATECH,"1,550.00",Sheltered Accommodation,Fire Prevention,30 Aug 2023,2324/06,SME,N,
0000371583,SUFFOLK COUNTY COUNCIL,"2,016.00",ICT,Corporate Software,31 Aug 2023,2324/06,LGE,Y,50%
0000371588,ACUITY RESEARCH & PRACTICE LTD,671.75,Software/ICT Projects/Surveys,Improvements,29 Aug 2023,2324/06,SME,Y,50%
0000371589,THE MIX STOWMARKET LTD,593.28,Holiday Activity Fund,"Equipment, Tools & Materials",31 Aug 2023,2324/06,SME,N,
0000371593,KEYWAYS THE LOCKSMITHS LTD,"1,275.00",Temporary Accommodation,Misc Premises Costs,01 Sep 2023,2324/06,SME,N,
0000371595,IVY LEGAL LTD,"2,500.00",Planning Enforcement,Training,01 Sep 2023,2324/06,SME,Y,44%
0000371596,IMPERIAL POLYTHENE PRODUCTS LTD,536.25,Domestic Waste,Refuse Sacks,31 Aug 2023,2324/06,SME,N,
0000371598,MIXBROW LTD,973.75,Council House Adaptions,Improvements,22 Aug 2023,2324/06,SME,N,
0000371599,MATERIAL CHANGE COMPOSTING LTD,"4,866.18",Open Spaces,Waste Disposal,31 Aug 2023,2324/06,LGE,N,
0000371608,FOURWAYS VEHICLE SOLUTIONS LTD,644.00,Building Services,Vehicle Hire,24 Aug 2023,2324/06,SME,Y,50%
0000371609,FOURWAYS VEHICLE SOLUTIONS LTD,"1,120.00",Building Services,Vehicle Hire,14 Aug 2023,2324/06,SME,Y,50%
0000371610,FOURWAYS VEHICLE SOLUTIONS LTD,"1,186.60",Building Services,Vehicle Hire,13 Jul 2023,2324/06,SME,Y,50%
0000371611,FOURWAYS VEHICLE SOLUTIONS LTD,672.00,Building Services,Vehicle Hire,22 Aug 2023,2324/06,SME,Y,50%
0000371630,SERCO LTD,615.20,Domestic Waste,Refuse Contract,31 Aug 2023,2324/06,LGE,N,
0000371635,REED SPECIALIST RECRUITMENT LTD,905.02,Organisational Devt,Agency Staff,25 Aug 2023,2324/06,LGE,Y,50%
0000371639,MARCHDELL LTD,815.00,Guaranteed Rent Scheme,Rent Payable,04 Sep 2023,2324/06,SME,N,
0000371642,ANGLIAN WATER,921.14,Sheltered Accommodation,Water Rates - Metered,22 Aug 2023,2324/06,LGE,N,
0000371643,ANGLIAN WATER,"1,136.70",Sheltered Accommodation,Water Rates - Metered,27 Aug 2023,2324/06,LGE,N,
0000371644,SERCO LTD,"11,232.14",Open Spaces,Plant & Vehicle Fuel,01 Sep 2023,2324/06,LGE,Y,50%
0000371645,SERCO LTD,"17,193.50",Open Spaces,Plant & Vehicle Fuel,01 Sep 2023,2324/06,LGE,Y,50%
0000371646,EYES OPEN CIC,"18,432.00",Communities,Grants,31 Aug 2023,2324/06,SME,N,
0000371647,GREAT BLAKENHAM PARISH ROOM,"5,439.17",Community Fund Projects-Grants,Grants,31 Aug 2023,2324/06,SME,N,
0000371649,MENDLESHAM COMMUNITY CHARITY,"1,194.96",Grants & Contrbns,Grants,01 Sep 2023,2324/06,SME,N,
0000371651,STOWUPLAND PRE SCHOOL & THE MIGHTY OAKS,"8,120.00",Community Fund Projects-Grants,Grants,01 Sep 2023,2324/06,SME,N,
0000371652,FLAGSHIP HOUSING GROUP LTD-RENT ACCOUNT,609.98,Homeless Prevention Fund,Misc Supplies & Services Costs,04 Sep 2023,2324/06,LGE,N,
0000371653,PAUL WRIGHT & CO,775.00,Guaranteed Rent Scheme,Rent Payable,04 Sep 2023,2324/06,SME,N,
0000371654,3 POINT PROPERTY MANAGEMENT LTD,595.00,Guaranteed Rent Scheme,Rent Payable,04 Sep 2023,2324/06,SME,N,
0000371655,3 POINT PROPERTY MANAGEMENT LTD,895.00,Guaranteed Rent Scheme,Rent Payable,04 Sep 2023,2324/06,SME,N,
0000371656,PRIVATE LANDLORD,900.00,Guaranteed Rent Scheme,Rent Payable,04 Sep 2023,2324/06,ST,N,
0000371657,TELEFONICA UK LIMITED - O2,"1,856.36",ICT,Telephone Costs,27 Aug 2023,2324/06,LGE,Y,50%
0000371658,COUNTRYSTYLE RECYCLING LTD,"5,141.83",Bring Sites,Contracted Services,30 Sep 2023,2324/06,SME,N,
0000371659,PRIVATE LANDLORD,925.00,Guaranteed Rent Scheme,Rent Payable,05 Sep 2023,2324/06,ST,N,
0000371662,PAUL WRIGHT & CO,775.00,Guaranteed Rent Scheme,Rent Payable,05 Sep 2023,2324/06,SME,N,
0000371664,PENNA PLC,"15,576.00",Health & Safety,Agency Staff,04 Sep 2023,2324/06,SME,Y,50%
0000371668,PRIVATE LANDLORD,"1,300.00",Guaranteed Rent Scheme,Rent Payable,05 Sep 2023,2324/06,ST,N,
0000371670,PRIVATE LANDLORD,880.00,Guaranteed Rent Scheme,Rent Payable,05 Sep 2023,2324/06,ST,N,
0000371671,HAMILTON SMITH LETTINGS,590.00,Guaranteed Rent Scheme,Rent Payable,05 Sep 2023,2324/06,SME,N,
0000371672,STUDLEY CAPITAL LIMITED,"1,187.50",MSM Skills & Innovation Centre,Prof & Consultancy Fees,01 Sep 2023,2324/06,ST,N,
0000371676,GALLAGHER CAR & VAN RENTALS LTD,588.00,Domestic Waste,Refuse Contract,29 Aug 2023,2324/06,LGE,N,
0000371678,SERCO LTD,"4,587.00",Domestic Waste,Refuse Contract,01 Sep 2023,2324/06,LGE,Y,50%
0000371680,FELLBRIDGE BUILDING SERVICES,"1,829.20",Building Services,Repairs,04 Sep 2023,2324/06,SME,N,
0000371681,RICHARD UTTING ASSOCIATES LLP,"2,124.74",Stowmarket Middle School,Prof & Consultancy Fees,04 Sep 2023,2324/06,SME,N,
0000371684,SERCO LTD,"351,945.86",Domestic Waste,Refuse Contract,01 Sep 2023,2324/06,LGE,Y,47%
0000371684,SERCO LTD,"97,030.98",Garden Waste,Refuse Contract,01 Sep 2023,2324/06,LGE,Y,48%
0000371684,SERCO LTD,"27,482.56",Trade Waste,Refuse Contract,01 Sep 2023,2324/06,LGE,Y,55%
0000371686,URBAN FORESTRY (BSE) LTD,"8,647.89","Fences, Gates and Walls",Improvements,31 Aug 2023,2324/06,SME,N,
0000371687,HAMILTON SMITH LETTINGS,570.00,Guaranteed Rent Scheme,Rent Payable,05 Sep 2023,2324/06,SME,N,
0000371693,WORLINGWORTH CRICKET CLUB,"2,505.78",S106 Open Spaces Expenditure,Grants,04 Sep 2023,2324/06,SME,N,
0000371694,1ST & 3RD STOWMARKET PHOENIX SCOUT GROUP,"20,000.00",S106 Open Spaces Expenditure,Grants,04 Sep 2023,2324/06,SME,N,
0000371695,GREAT BLAKENHAM PARISH ROOM,"2,155.05",S106 Open Spaces Expenditure,Grants,04 Sep 2023,2324/06,SME,N,
0000371699,AARON SERVICES LTD,"32,445.89",Planned Maint - Heating,Property Servicing,30 Aug 2023,2324/06,SME,N,
0000371703,J NAREY & SONS,"1,875.00",Open Spaces,Horticultural Purchases,01 Sep 2023,2324/06,SME,N,
0000371710,WARWICKSHIRE COUNTY COUNCIL,750.00,Economy & Business,Subscriptions,05 Sep 2023,2324/06,LGE,Y,50%
0000371711,BUCHER MUNICIPAL LTD,509.71,Street & Major Road Cleansing,Plant & Vehicle - Other costs,05 Sep 2023,2324/06,LGE,N,
0000371718,DGL QUALITY MANAGEMENT LTD,"1,092.00",Stowmarket Middle School,Prof & Consultancy Fees,31 Aug 2023,2324/06,SME,N,
0000371721,ANGLIAN WATER,994.47,Sheltered Accommodation,Water Rates - Metered,30 Aug 2023,2324/06,LGE,N,
0000371722,ANGLIAN WATER,503.26,Tenancy Services,Water Rates - Metered,29 Aug 2023,2324/06,LGE,N,
0000371723,PARK AVENUE RECRUITMENT LTD,"1,800.00",Devt Management - Apps,Prof & Consultancy Fees,06 Sep 2023,2324/06,SME,Y,45%
0000371724,GCS COMPLIANCE LTD,"1,354.62",Building Services,Prof & Consultancy Fees,31 Aug 2023,2324/06,SME,N,
0000371727,WORKWEAR (EAST ANGLIA) LTD,"1,026.00",Open Spaces,Protective clothing,04 Sep 2023,2324/06,SME,N,
0000371728,WORKWEAR (EAST ANGLIA) LTD,282.50,Open Spaces,Protective clothing,04 Sep 2023,2324/06,SME,N,
0000371728,WORKWEAR (EAST ANGLIA) LTD,282.50,Street & Major Road Cleansing,Protective clothing,04 Sep 2023,2324/06,SME,N,
0000371731,EYES OPEN CIC,"1,850.00",Grants & Contrbns,Contributions & Donations,05 Sep 2023,2324/06,SME,N,
0000371732,GALLAGHER CAR & VAN RENTALS LTD,"1,232.00",Domestic Waste,Refuse Contract,06 Jul 2023,2324/06,LGE,N,
0000371736,A C LEIGH (NORWICH) LTD,983.90,Building Services,"Equipment, Tools & Materials",25 Aug 2023,2324/06,SME,N,
0000371738,THE OYSTER PARTNERSHIP LTD,910.00,Building Services,Agency Staff,06 Sep 2023,2324/06,SME,Y,50%
0000371739,THE OYSTER PARTNERSHIP LTD,935.56,Building Services,Agency Staff,06 Sep 2023,2324/06,SME,Y,50%
0000371740,THE OYSTER PARTNERSHIP LTD,"1,668.85",Building Servs Tech Staff,Agency Staff,06 Sep 2023,2324/06,SME,Y,50%
0000371741,THE OYSTER PARTNERSHIP LTD,"2,125.00",Building Servs Tech Staff,Agency Staff,06 Sep 2023,2324/06,SME,Y,50%
0000371742,THE OYSTER PARTNERSHIP LTD,"2,920.00",HRA Strategic Property,Agency Staff,06 Sep 2023,2324/06,SME,Y,50%
0000371744,THE OYSTER PARTNERSHIP LTD,"1,825.20",Building Servs Tech Staff,Agency Staff,06 Sep 2023,2324/06,SME,Y,50%
0000371747,THE OYSTER PARTNERSHIP LTD,923.25,Building Services,Agency Staff,06 Sep 2023,2324/06,SME,Y,50%
0000371753,THE STOWMARKET GLASS COMPANY LTD,"1,097.70",Building Services,Repairs,23 Aug 2023,2324/06,SME,N,
0000371763,M & H CIVIL ENGINEERING LTD,747.50,Voids Maintenance,Repairs,04 Sep 2023,2324/06,SME,N,
0000371775,GALLAGHER CAR & VAN RENTALS LTD,"1,232.00",Domestic Waste,Refuse Contract,05 Apr 2023,2324/06,LGE,N,
0000371776,M & H CIVIL ENGINEERING LTD,614.20,Building Services,Repairs,04 Sep 2023,2324/06,SME,N,
0000371777,M & H CIVIL ENGINEERING LTD,733.70,Building Services,Repairs,04 Sep 2023,2324/06,SME,N,
0000371779,M & H CIVIL ENGINEERING LTD,689.50,Building Services,Repairs,04 Sep 2023,2324/06,SME,N,
0000371780,M & H CIVIL ENGINEERING LTD,"1,475.00",Building Services,Repairs,06 Sep 2023,2324/06,SME,N,
0000371788,BOWER FULLER,"1,536.00",Tenancy Services,Fire Prevention,31 Aug 2023,2324/06,SME,N,
0000371792,BOWER FULLER,578.32,Sheltered Accommodation,Repairs,31 Aug 2023,2324/06,SME,N,
0000371796,BOWER FULLER,756.00,Temporary Accommodation,Fire Prevention,31 Aug 2023,2324/06,SME,N,
0000371797,BOWER FULLER,"3,768.16",Building Services,Fire Prevention,31 Aug 2023,2324/06,SME,N,
0000371798,BOWER FULLER,894.00,Public Conveniences,Repairs,31 Aug 2023,2324/06,SME,N,
0000371799,PENTACO CONSTRUCTION LTD,"338,627.00",Stowmarket Middle School,Major Contracts,05 Sep 2023,2324/06,SME,N,
0000371801,FELLBRIDGE BUILDING SERVICES,"11,325.69",Major Imps,Repairs,07 Sep 2023,2324/06,SME,N,
0000371802,M & H CIVIL ENGINEERING LTD,911.95,Voids Maintenance,Repairs,06 Sep 2023,2324/06,SME,N,
0000371807,CHIPSIDE LTD,"1,012.83",C Parks General,Contracted Services,31 Aug 2023,2324/06,SME,N,
0000371810,STREETSPACE LIMITED,"25,432.00",Sheltered Units-Gen.Imp,Major Contracts,07 Sep 2023,2324/06,SME,N,
0000371812,VERITAS SOLICITORS LTD,"2,000.00",Building Services,Payments to Tenants,06 Sep 2023,2324/06,SME,N,
0000371814,GRANTSCAPE,"5,750.00",S106 Open Spaces Expenditure,Grants,07 Sep 2023,2324/06,SME,N,
0000371818,CORNERSTONE BARRISTERS,"3,300.00",Devt Management - Appeals,Legal ex - Crt challenge relat,23 Aug 2023,2324/06,SME,N,
0000371819,CORNERSTONE BARRISTERS,"4,400.00",Devt Management - Appeals,Legal ex-Crt challenge related,23 Aug 2023,2324/06,SME,Y,100%
0000371821,BUTTON & TURNER LTD,515.82,Open Spaces,Plant & Vehicle - Other costs,16 Aug 2023,2324/06,SME,N,
0000371822,BUTTON & TURNER LTD,615.32,Open Spaces,Plant & Vehicle - Other costs,22 Aug 2023,2324/06,SME,N,
0000371826,NEWSQUEST MEDIA GROUP,824.00,Devt Management - Apps,Advertising&mkting (non-staff),07 Sep 2023,2324/06,LGE,N,
0000371827,SUFFOLK DOORS & WINDOWS LTD,"1,660.00",Building Services,Repairs,07 Sep 2023,2324/06,SME,N,
0000371829,NEEDHAM MARKET COMMUNITY CENTRE,715.72,Grants & Contrbns,Contributions & Donations,07 Sep 2023,2324/06,SME,N,
0000371830,ASPECT CONTRACTS LTD,"14,737.00",Asbestos,Improvements,31 Aug 2023,2324/06,LGE,N,
0000371831,PALGRAVE ARTS FESTIVAL,553.97,Grants & Contrbns,Contributions & Donations,08 Sep 2023,2324/06,SME,N,
0000371832,FLOWERS GROUNDCARE,666.00,Needham Market Middle School,Tree felling/maintenance,09 Jul 2023,2324/06,SME,N,
0000371841,OPUS PEOPLE SOLUTIONS LTD,594.84,Homeless Prevention Fund,Agency Staff,31 Aug 2023,2324/06,SME,N,
0000371841,OPUS PEOPLE SOLUTIONS LTD,578.49,Devt Management - Apps,Agency Staff,31 Aug 2023,2324/06,SME,N,
0000371841,OPUS PEOPLE SOLUTIONS LTD,482.63,Climate Change and Sustainabil,Agency Staff,31 Aug 2023,2324/06,SME,N,
0000371841,OPUS PEOPLE SOLUTIONS LTD,"1,298.35",Organisational Devt,Agency Staff,31 Aug 2023,2324/06,SME,N,
0000371841,OPUS PEOPLE SOLUTIONS LTD,244.89,Health & Safety,Agency Staff,31 Aug 2023,2324/06,SME,N,
0000371841,OPUS PEOPLE SOLUTIONS LTD,61.43,Customer Servs,Agency Staff,31 Aug 2023,2324/06,SME,N,
0000371841,OPUS PEOPLE SOLUTIONS LTD,441.33,Building Services,Agency Staff,31 Aug 2023,2324/06,SME,N,
0000371843,TANKCHANGE LTD,"2,400.00",Central Heating,Improvements,24 Aug 2023,2324/06,SME,N,
0000371851,HAUGHLEY PARISH COUNCIL,"64,085.42",CIL Funded REFCUS,Grants,08 Sep 2023,2324/06,SME,N,
0000371852,SHARPS ACOUSTICS LLP,"1,100.00",Devt Management - Apps,Environmental  Consultancy,31 Aug 2023,2324/06,SME,N,
0000371859,SEQUENCE UK LTD (WILLIAM H BROWN),"1,500.00",Needham Market Middle School,Prof & Consultancy Fees,08 Sep 2023,2324/06,LGE,N,
0000371860,SUREFIX,"2,425.00",Council House Adaptions,Improvements,04 Sep 2023,2324/06,SME,N,
0000371862,HAYES DIGGINS BUILDERS,"9,135.00",Building Services,Repairs,14 Aug 2023,2324/06,SME,N,
0000371863,FMG CONSULTING LTD,"3,750.00",SHELF Project,Prof & Consultancy Fees,31 Aug 2023,2324/06,SME,N,
0000371864,THERMATECH,"1,550.00",Sheltered Accommodation,Fire Prevention,08 Sep 2023,2324/06,SME,N,
0000371864,THERMATECH,"1,550.00",Sheltered Accommodation,Fire Prevention,08 Sep 2023,2324/06,SME,N,
0000371864,THERMATECH,"1,550.00",Sheltered Accommodation,Fire Prevention,08 Sep 2023,2324/06,SME,N,
0000371864,THERMATECH,"1,550.00",Sheltered Accommodation,Fire Prevention,08 Sep 2023,2324/06,SME,N,
0000371864,THERMATECH,"1,550.00",Sheltered Accommodation,Fire Prevention,08 Sep 2023,2324/06,SME,N,
0000371866,REED SPECIALIST RECRUITMENT LTD,721.57,Organisational Devt,Agency Staff,08 Sep 2023,2324/06,LGE,Y,50%
0000371867,BENICIA PROPERTIES LTD,575.00,Guaranteed Rent Scheme,Rent Payable,11 Sep 2023,2324/06,SME,N,
0000371870,SUFFOLK POWER EQUIPMENT,"1,275.00",Open Spaces,"Equipment, Tools & Materials",19 Aug 2023,2324/06,ST,N,
0000371871,PRIVATE LANDLORD,555.00,Guaranteed Rent Scheme,Rent Payable,11 Sep 2023,2324/06,ST,N,
0000371872,PRIVATE LANDLORD,800.00,Guaranteed Rent Scheme,Rent Payable,11 Sep 2023,2324/06,ST,N,
0000371874,PRIVATE LANDLORD,786.50,Guaranteed Rent Scheme,Rent Payable,11 Sep 2023,2324/06,ST,N,
0000371875,STAGE EVENT SECURITY LTD,"1,360.00",Open Spaces,Misc Premises Costs,31 Aug 2023,2324/06,SME,N,
0000371877,PRIVATE LANDLORD,650.00,Guaranteed Rent Scheme,Rent Payable,11 Sep 2023,2324/06,ST,N,
0000371878,AARON SERVICES LTD,"8,652.24",Planned Maint - Heating,Property Servicing,11 Sep 2023,2324/06,SME,N,
0000371879,REVETTS PLUMBING AND HEATING SERVICES,"5,154.00",Renovation/Home Repair Grants,Grants,08 Sep 2023,2324/06,SME,N,
0000371880,SUFFOLK COUNTY COUNCIL,"1,505.00",Land Chgs,Contracted Services,06 Sep 2023,2324/06,LGE,N,
0000371887,PRIVATE LANDLORD,895.00,Guaranteed Rent Scheme,Rent Payable,11 Sep 2023,2324/06,ST,N,
0000371888,M & H CIVIL ENGINEERING LTD,750.00,Building Services,Repairs,08 Sep 2023,2324/06,SME,N,
0000371889,FELLBRIDGE BUILDING SERVICES,"16,092.41",Major Imps,Repairs,11 Sep 2023,2324/06,SME,N,
0000371890,PRIVATE LANDLORD,"1,050.00",Guaranteed Rent Scheme,Rent Payable,11 Sep 2023,2324/06,SME,N,
0000371898,COLNESETT LTD,"86,236.46",Cross Street Tech Hub,Prof & Consultancy Fees,04 Sep 2023,2324/06,SME,N,
0000371911,SSI SCHAEFER PLASTICS UK LTD,"18,450.00",Bins,Bins,11 Sep 2023,2324/06,SME,N,
0000371912,D W ADAMS LTD,"5,136.00",Council House Adaptions,Improvements,11 Sep 2023,2324/06,SME,N,
0000371913,HAMILTON SMITH LETTINGS,775.00,Guaranteed Rent Scheme,Rent Payable,11 Sep 2023,2324/06,SME,N,
0000371914,MAP LETTINGS & PROPERTY MANAGEMENT,200.00,Homeless Prevention Fund,Misc Supplies & Services Costs,11 Sep 2023,2324/06,SME,N,
0000371914,MAP LETTINGS & PROPERTY MANAGEMENT,"1,050.00",Guaranteed Rent Scheme,Rent Payable,11 Sep 2023,2324/06,SME,N,
0000371915,3 POINT PROPERTY MANAGEMENT LTD,675.00,Guaranteed Rent Scheme,Rent Payable,11 Sep 2023,2324/06,SME,N,
0000371916,SWITCH PROPERTY SERVICES LTD,695.00,Guaranteed Rent Scheme,Rent Payable,11 Sep 2023,2324/06,SME,N,
0000371921,ANGLIA COMMERCIAL FLOORING LTD,640.27,Building Services,Repairs,11 Sep 2023,2324/06,SME,N,
0000371923,ANGLIA COMMERCIAL FLOORING LTD,601.26,Voids Maintenance,Repairs,11 Sep 2023,2324/06,SME,N,
0000371924,ANGLIA COMMERCIAL FLOORING LTD,601.26,Voids Maintenance,Repairs,11 Sep 2023,2324/06,SME,N,
0000371927,ANGLIA COMMERCIAL FLOORING LTD,560.49,Building Services,Repairs,11 Sep 2023,2324/06,SME,N,
0000371928,ANGLIA COMMERCIAL FLOORING LTD,507.62,Building Services,Repairs,11 Sep 2023,2324/06,SME,N,
0000371930,ANGLIA COMMERCIAL FLOORING LTD,851.27,Building Services,Repairs,11 Sep 2023,2324/06,SME,N,
0000371931,ANGLIA COMMERCIAL FLOORING LTD,907.90,Building Services,Repairs,11 Sep 2023,2324/06,SME,N,
0000371932,ANGLIA COMMERCIAL FLOORING LTD,539.35,Building Services,Repairs,11 Sep 2023,2324/06,SME,N,
0000371939,SEAGER HOME SOLUTIONS,"64,301.69",Kitchens/Bathrooms,Major Contracts,07 Sep 2023,2324/06,SME,N,
0000371940,BUTTERCUPS CHILDRENS NURSERY,"2,500.00",Business Innovation Grants,Grants,12 Sep 2023,2324/06,SME,N,
0000371941,ARAN INSULATION LTD,"10,609.05",Insulation Imps,Repairs,12 Sep 2023,2324/06,SME,N,
0000371943,ARAN INSULATION LTD,"1,299.09",Insulation Imps,Repairs,14 Aug 2023,2324/06,SME,N,
0000371944,ARAN INSULATION LTD,"1,299.09",Insulation Imps,Repairs,14 Aug 2023,2324/06,SME,N,
0000371945,MB TREES (EAST ANGLIA) LTD,720.00,Public Tree Programme,Tree felling/maintenance,12 Sep 2023,2324/06,SME,N,
0000371946,MB TREES (EAST ANGLIA) LTD,880.00,Amenity Areas,Tree felling/maintenance,12 Sep 2023,2324/06,SME,N,
0000371957,WINDIMAN LTD,780.00,Building Services,Repairs,12 Sep 2023,2324/06,SME,N,
0000371958,WINDIMAN LTD,665.00,Building Services,Repairs,12 Sep 2023,2324/06,SME,N,
0000371959,WINDIMAN LTD,545.00,Building Services,Repairs,12 Sep 2023,2324/06,SME,N,
0000371962,GAS-ELEC BUREAU (UK) LTD,"7,005.60",Renovation/Home Repair Grants,Grants,13 Sep 2023,2324/06,SME,N,
0000371963,CHARISMA SPATIAL PLANNING LTD T/A ANN SK,"4,527.00",Nghbrhd Plan Designations,Prof & Consultancy Fees,11 Sep 2023,2324/06,SME,N,
0000371964,CHARISMA SPATIAL PLANNING LTD T/A ANN SK,"3,777.00",Nghbrhd Plan Designations,Prof & Consultancy Fees,11 Sep 2023,2324/06,SME,N,
0000371965,D W ADAMS LTD,"2,147.00",Building Services,Repairs,12 Sep 2023,2324/06,SME,N,
0000371973,A C LEIGH (NORWICH) LTD,550.80,Building Services,"Equipment, Tools & Materials",08 Sep 2023,2324/06,SME,N,
0000371975,SUFFOLK COUNTY COUNCIL,"1,800.36",Software/ICT Projects/Surveys,Prof & Consultancy Fees,12 Sep 2023,2324/06,LGE,Y,50%
0000371976,SUFFOLK COUNTY COUNCIL,"27,581.24",Garden Waste,Garden Waste Disposal,12 Sep 2023,2324/06,LGE,N,
0000371976,SUFFOLK COUNTY COUNCIL,"25,141.58",Domestic Waste,MRF Disposal,12 Sep 2023,2324/06,LGE,N,
0000371977,GALLAGHER CAR & VAN RENTALS LTD,"1,232.00",Domestic Waste,Refuse Contract,13 Sep 2023,2324/06,LGE,N,
0000371978,THE OYSTER PARTNERSHIP LTD,923.25,Building Services,Agency Staff,13 Sep 2023,2324/06,SME,Y,50%
0000371979,THE OYSTER PARTNERSHIP LTD,"3,650.00",HRA Strategic Property,Agency Staff,13 Sep 2023,2324/06,SME,Y,50%
0000371980,THE OYSTER PARTNERSHIP LTD,"2,304.90",Building Servs Tech Staff,Agency Staff,13 Sep 2023,2324/06,SME,Y,50%
0000371981,THE OYSTER PARTNERSHIP LTD,"1,120.00",Building Services,Agency Staff,13 Sep 2023,2324/06,SME,Y,50%
0000371982,THE OYSTER PARTNERSHIP LTD,"2,656.25",Building Servs Tech Staff,Agency Staff,13 Sep 2023,2324/06,SME,Y,50%
0000371983,THE OYSTER PARTNERSHIP LTD,"2,036.00",Building Servs Tech Staff,Agency Staff,13 Sep 2023,2324/06,SME,Y,50%
0000371988,OSBORNE RICHARDSON LTD,202.50,Environmental Protection,Agency Staff,13 Sep 2023,2324/06,SME,Y,50%
0000371988,OSBORNE RICHARDSON LTD,"1,462.50",Environmental Protection,Agency Staff,13 Sep 2023,2324/06,SME,Y,50%
0000371989,OSBORNE RICHARDSON LTD,720.00,Environmental Protection,Agency Staff,13 Sep 2023,2324/06,SME,Y,50%
0000371992,OSBORNE RICHARDSON LTD,768.00,Environmental Protection,Agency Staff,13 Sep 2023,2324/06,SME,Y,50%
0000371995,SIGNIX LTD,"4,417.86",Smoke Alarms (Bbgh Standard),Major Contracts,28 Jul 2023,2324/06,SME,N,
0000371997,ESSEX AND SUFFOLK WATER,732.34,Sheltered Accommodation,Water Rates - Metered,07 Sep 2023,2324/06,LGE,N,
0000371998,SACKERS LTD,"4,180.77",Building Services,Waste Disposal,31 Aug 2023,2324/06,SME,Y,50%
0000371999,FELLBRIDGE BUILDING SERVICES,"32,924.86",Major Imps,Repairs,14 Sep 2023,2324/06,SME,N,
0000372001,DDS (INTERNATIONAL) LTD,"2,426.28",Sheltered Accommodation,Fire Prevention,14 Sep 2023,2324/06,SME,Y,50%
0000372007,NEXERE CONSULTING LTD,"4,863.00",Climate Change and Sustainabil,Contracted Services,11 Sep 2023,2324/06,SME,Y,50%
0000372010,OPUS PEOPLE SOLUTIONS LTD,285.71,Homeless Prevention Fund,Agency Staff,07 Sep 2023,2324/06,SME,N,
0000372010,OPUS PEOPLE SOLUTIONS LTD,487.28,Devt Management - Apps,Agency Staff,07 Sep 2023,2324/06,SME,N,
0000372010,OPUS PEOPLE SOLUTIONS LTD,495.00,Climate Change and Sustainabil,Agency Staff,07 Sep 2023,2324/06,SME,N,
0000372010,OPUS PEOPLE SOLUTIONS LTD,"1,236.49",Organisational Devt,Agency Staff,07 Sep 2023,2324/06,SME,N,
0000372010,OPUS PEOPLE SOLUTIONS LTD,217.68,Health & Safety,Agency Staff,07 Sep 2023,2324/06,SME,N,
0000372010,OPUS PEOPLE SOLUTIONS LTD,188.67,Customer Servs,Agency Staff,07 Sep 2023,2324/06,SME,N,
0000372010,OPUS PEOPLE SOLUTIONS LTD,563.40,Building Services,Agency Staff,07 Sep 2023,2324/06,SME,N,
0000372011,NEWSQUEST MEDIA GROUP,947.60,Devt Management - Apps,Advertising&mkting (non-staff),14 Sep 2023,2324/06,LGE,N,
0000372012,MB TREES (EAST ANGLIA) LTD,"5,650.00",Amenity Areas,Tree felling/maintenance,14 Sep 2023,2324/06,SME,N,
0000372013,MB TREES (EAST ANGLIA) LTD,"5,580.00",Amenity Areas,Tree felling/maintenance,14 Sep 2023,2324/06,SME,N,
0000372015,FELLBRIDGE BUILDING SERVICES,832.78,Building Services,Repairs,14 Sep 2023,2324/06,SME,N,
0000372016,FELLBRIDGE BUILDING SERVICES,"4,826.84",Building Services,Repairs,14 Sep 2023,2324/06,SME,N,
0000372019,GALLAGHER CAR & VAN RENTALS LTD,"1,316.00",Domestic Waste,Refuse Contract,15 Sep 2023,2324/06,LGE,N,
0000372024,STEVEN JAMES ALLEN LTD,"1,450.00",Building Services,Repairs,31 Aug 2023,2324/06,SME,N,
0000372026,PAY 360 LIMITED,"4,748.87",Bank Chgs,Bank Charges,15 Sep 2023,2324/06,LGE,N,
0000372028,AQUASAMPLERS,643.00,Water Sampling,Sampling & Analysis,31 Aug 2023,2324/06,SME,N,
0000372032,CLARKE FENCING LTD,725.78,Open Spaces,"Equipment, Tools & Materials",12 Sep 2023,2324/06,SME,N,
0000372035,MB TREES (EAST ANGLIA) LTD,"1,280.00",Amenity Areas,Tree felling/maintenance,15 Sep 2023,2324/06,SME,N,
0000372036,WHYBROW PROPERTY SOLUTIONS LTD,"11,321.00",Building Services,Repairs,15 Sep 2023,2324/06,SME,N,
0000372038,FOURWAYS VEHICLE SOLUTIONS LTD,"1,120.00",Building Services,Lease Cars - Payment,14 Aug 2023,2324/06,SME,Y,50%
0000372039,FOURWAYS VEHICLE SOLUTIONS LTD,"1,120.00",Building Services,Lease Cars - Payment,10 Aug 2023,2324/06,SME,Y,50%
0000372040,FOURWAYS VEHICLE SOLUTIONS LTD,"1,186.60",Building Services,Lease Cars - Payment,17 Jul 2023,2324/06,SME,Y,50%
0000372041,FOURWAYS VEHICLE SOLUTIONS LTD,"1,192.60",Building Services,Lease Cars - Payment,17 Jul 2023,2324/06,SME,Y,50%
0000372052,SIGNIX LTD,"3,384.20",Smoke Alarms (Bbgh Standard),Major Contracts,15 Sep 2023,2324/06,SME,N,
0000372055,RICHARD UTTING ASSOCIATES LLP,"2,300.00",Paddock House Eye,Prof & Consultancy Fees,14 Sep 2023,2324/06,SME,N,
0000372056,REED SPECIALIST RECRUITMENT LTD,932.03,Organisational Devt,Agency Staff,08 Sep 2023,2324/06,LGE,Y,50%
0000372057,HUGHES TRADE,552.66,Homeless Prevention Fund,Misc Supplies & Services Costs,16 Sep 2023,2324/06,LGE,N,
0000372059,BADWELL ASH VILLAGE HALL,"1,610.00",Grants & Contrbns,Contributions & Donations,15 Sep 2023,2324/06,SME,N,
0000372062,PRIVATE LANDLORD,669.00,Guaranteed Rent Scheme,Rent Payable,18 Sep 2023,2324/06,ST,N,
0000372063,CORNERSTONE BARRISTERS,"4,200.00",Electoral Registration,Prof & Consultancy Fees,18 Sep 2023,2324/06,SME,Y,50%
0000372064,HAMILTON SMITH LETTINGS,550.00,Guaranteed Rent Scheme,Rent Payable,18 Sep 2023,2324/06,SME,N,
0000372065,PAUL WRIGHT & CO,850.00,Guaranteed Rent Scheme,Rent Payable,18 Sep 2023,2324/06,SME,N,
0000372068,OAKPARK SECURITY SYSTEMS LTD,540.00,Paddock House,Contracted Services,31 Aug 2023,2324/06,LGE,N,
0000372070,EAST OF ENGLAND LGA,"2,000.00",Management Team,Prof & Consultancy Fees,11 Sep 2023,2324/06,SME,N,
0000372071,EYE TOWN COUNCIL,"17,500.00",S106 Open Spaces Expenditure,Grants,18 Sep 2023,2324/06,SME,N,
0000372072,OPUS PEOPLE SOLUTIONS LTD,332.56,Homeless Prevention Fund,Agency Staff,14 Sep 2023,2324/06,SME,N,
0000372072,OPUS PEOPLE SOLUTIONS LTD,272.25,Climate Change and Sustainabil,Agency Staff,14 Sep 2023,2324/06,SME,N,
0000372072,OPUS PEOPLE SOLUTIONS LTD,"1,074.24",Organisational Devt,Agency Staff,14 Sep 2023,2324/06,SME,N,
0000372072,OPUS PEOPLE SOLUTIONS LTD,208.61,Health & Safety,Agency Staff,14 Sep 2023,2324/06,SME,N,
0000372072,OPUS PEOPLE SOLUTIONS LTD,188.66,Customer Servs,Agency Staff,14 Sep 2023,2324/06,SME,N,
0000372072,OPUS PEOPLE SOLUTIONS LTD,676.09,Building Services,Agency Staff,14 Sep 2023,2324/06,SME,N,
0000372073,EYE TOWN COUNCIL,"6,462.00",S106 Open Spaces Expenditure,Grants,18 Sep 2023,2324/06,SME,N,
0000372075,YELLOW HOMES LIMITED,"1,785.00",Guaranteed Rent Scheme,Rent Payable,18 Sep 2023,2324/06,SME,N,
0000372076,SUFFOLK POWER EQUIPMENT,916.44,Open Spaces,"Equipment, Tools & Materials",26 Sep 2023,2324/06,ST,N,
0000372080,PARKYNS LETTINGS BURY ST EDMUNDS,"1,300.00",Guaranteed Rent Scheme,Rent Payable,18 Sep 2023,2324/06,SME,N,
0000372081,PAUL WRIGHT & CO,577.50,Guaranteed Rent Scheme,Rent Payable,18 Sep 2023,2324/06,SME,N,
0000372082,FELLBRIDGE BUILDING SERVICES,"19,909.15",Major Imps,Repairs,18 Sep 2023,2324/06,SME,N,
0000372084,HAMILTON SMITH LETTINGS,"2,000.00",Guaranteed Rent Scheme,Rent Payable,18 Sep 2023,2324/06,SME,N,
0000372089,BELLWAY HOMES LIMITED (ESSEX DIVISION),"123,174.56",Loraine Way Bramford  S106,Purchase of Land & Buildings,08 Sep 2023,2324/06,LGE,N,
0000372090,IESE TRANSFORMATION LTD,700.00,Cost of Democracy,Conference Expenses,01 Jul 2023,2324/06,SME,Y,50%
0000372092,PUBLIC SEWER SERVICES,"2,200.00",Unadopted Drains & Sewers,Improvements,18 Sep 2023,2324/06,SME,N,
0000372099,ECOLYTIK LTD,700.00,Devt Management - Apps,Environmental  Consultancy,18 Sep 2023,2324/06,SME,N,
0000372105,JOEL MILLERCHIP,"2,275.00",BRRP-MarketTownVision&Invest,Prof & Consultancy Fees,22 Aug 2023,2324/06,ST,N,
0000372108,ARMSTRONG YORK ASBESTOS ENVIRONMENTAL,"3,449.42",Asbestos Survey & Reinspection,Prof & Consultancy Fees,31 Aug 2023,2324/06,SME,N,
0000372109,SUFFOLK COUNTY COUNCIL - PENSIONS ACCT,"5,670.00",Ext Audit,Audit Fees,18 Sep 2023,2324/06,LGE,Y,50%
0000372113,D W ADAMS LTD,980.00,Building Services,Repairs,19 Sep 2023,2324/06,SME,N,
0000372114,CIVICA UK LIMITED,"10,850.00",Lettings & Allocations,Contracted Services,19 Sep 2023,2324/06,LGE,N,
0000372117,ESSEX COUNTY COUNCIL,"9,760.00",Devt Management - Apps,Ecology Consultancy,19 Sep 2023,2324/06,LGE,N,
0000372118,CULLIGAN (UK) LTD,852.23,Creeting Rd Depot,Contracted Services,19 Sep 2023,2324/06,LGE,Y,50%
0000372128,THE OYSTER PARTNERSHIP LTD,"3,650.00",HRA Strategic Property,Agency Staff,20 Sep 2023,2324/06,SME,Y,50%
0000372129,THE OYSTER PARTNERSHIP LTD,"2,018.00",Building Servs Tech Staff,Agency Staff,30 Sep 2023,2324/06,SME,Y,50%
0000372130,THE OYSTER PARTNERSHIP LTD,923.25,Building Services,Agency Staff,20 Sep 2023,2324/06,SME,Y,50%
0000372131,THE OYSTER PARTNERSHIP LTD,"2,656.25",Building Servs Tech Staff,Agency Staff,20 Sep 2023,2324/06,SME,Y,50%
0000372132,THE OYSTER PARTNERSHIP LTD,"2,263.95",Building Servs Tech Staff,Agency Staff,20 Sep 2023,2324/06,SME,Y,50%
0000372133,THE OYSTER PARTNERSHIP LTD,"1,050.00",Building Services,Agency Staff,20 Sep 2023,2324/06,SME,Y,50%
0000372134,THE OYSTER PARTNERSHIP LTD,"2,500.00",Financial Servs,Agency Staff,20 Sep 2023,2324/06,SME,Y,50%
0000372135,A C LEIGH (NORWICH) LTD,796.38,Building Services,"Equipment, Tools & Materials",20 Sep 2023,2324/06,SME,N,
0000372136,ANGLIA CAR CHARGING,"18,435.29",EV Charge Points Car parks,Misc Supplies & Services Costs,29 Aug 2023,2324/06,SME,Y,50%
0000372137,ANGLIA COMMERCIAL FLOORING LTD,539.35,Building Services,Repairs,20 Sep 2023,2324/06,SME,N,
0000372145,PUBLIC SEWER SERVICES,848.58,Building Services,Repairs,20 Sep 2023,2324/06,SME,N,
0000372168,CORNERSTONE BARRISTERS,600.00,Devt Management - Apps,Legal Expenses,29 Aug 2023,2324/06,SME,N,
0000372169,NEEDHAM MARKET COMMUNITY CENTRE,715.72,Grants & Contrbns,Contributions & Donations,19 Sep 2023,2324/06,SME,N,
0000372178,SEAGER HOME SOLUTIONS,"7,476.00",Mand Disabled Facilities Grant,Grants,20 Sep 2023,2324/06,SME,N,
0000372179,LORD THURLOW HALL,"1,937.58",Grants & Contrbns,Contributions & Donations,20 Sep 2023,2324/06,SME,N,
0000372180,GB ADAPTIONS LTD,"3,302.99",Mand Disabled Facilities Grant,Grants,20 Sep 2023,2324/06,SME,N,
0000372181,JOHN FORD GROUP LTD,"6,399.94",Mand Disabled Facilities Grant,Grants,20 Sep 2023,2324/06,SME,N,
0000372182,STOWMARKET MODEL RAILWAY CLUB,"2,350.00",Grants & Contrbns,Grants,20 Sep 2023,2324/06,SME,N,
0000372185,P & P PROPERTY MAINTENANCE,"1,812.00",Mand Disabled Facilities Grant,Grants,22 Sep 2023,2324/06,SME,N,
0000372187,NATHANIEL LICHFIELD & PARTNERS LTD,"4,818.77",Devt Management - Appeals,Prof & Consultancy Fees,20 Sep 2023,2324/06,SME,N,
0000372191,NEWSQUEST MEDIA GROUP,576.80,Devt Management - Apps,Advertising&mkting (non-staff),21 Sep 2023,2324/06,LGE,N,
0000372192,CORNERSTONE BARRISTERS,"6,000.00",Devt Management - Appeals,Legal ex - Crt challenge relat,14 Sep 2023,2324/06,SME,N,
0000372196,WHYBROW PROPERTY SOLUTIONS LTD,"12,000.00",Major Imps,Repairs,21 Sep 2023,2324/06,SME,N,
0000372197,WHYBROW PROPERTY SOLUTIONS LTD,"20,000.00",Major Imps,Repairs,21 Sep 2023,2324/06,SME,N,
0000372203,SEQUENCE UK LTD (WILLIAM H BROWN),"1,500.00","Cedars Park C & D, Stowmarket",Prof & Consultancy Fees,21 Sep 2023,2324/06,LGE,N,
0000372204,SSI SCHAEFER PLASTICS UK LTD,"17,977.50",Bins,Bins,22 Sep 2023,2324/06,SME,N,
0000372205,FRIENDS OF BEDFIELD SCHOOL,"1,000.00",Grants & Contrbns,Contributions & Donations,22 Sep 2023,2324/06,SME,N,
0000372208,HARDTOPS UK LTD,"1,645.00",Open Spaces,Plant & Vehicle - Other costs,14 Sep 2023,2324/06,SME,N,
0000372212,REED SPECIALIST RECRUITMENT LTD,932.03,Organisational Devt,Agency Staff,15 Sep 2023,2324/06,LGE,Y,50%
0000372213,MB TREES (EAST ANGLIA) LTD,980.00,Tenancy Services,Tree felling/maintenance,23 Sep 2023,2324/06,SME,N,
0000372214,THOMPSONS ESTATE OFFICES LTD,725.00,Guaranteed Rent Scheme,Rent Payable,25 Sep 2023,2324/06,SME,N,
0000372220,BT DIRECT DEBIT,"10,196.16",ICT,Telephone Costs,21 Sep 2023,2324/06,LGE,Y,50%
0000372221,TAXI VAN,650.00,Homeless Prevention Fund,Removal Expenses,03 Sep 2023,2324/06,ST,N,
0000372224,ASSOCIATION OF ELECTORAL ADMINISTRATORS,990.00,Elections,Training,19 Sep 2023,2324/06,SME,Y,50%
0000372225,ASSOCIATION OF ELECTORAL ADMINISTRATORS,990.00,Elections,Training,18 Sep 2023,2324/06,SME,Y,50%
0000372226,ASSOCIATION OF ELECTORAL ADMINISTRATORS,735.00,Elections,Training,14 Sep 2023,2324/06,SME,Y,50%
0000372238,AFC CEDARS,"7,018.80",IP14 Fund,Grants,25 Sep 2023,2324/06,SME,N,
0000372242,PRIVATE LANDLORD,836.50,Guaranteed Rent Scheme,Rent Payable,25 Sep 2023,2324/06,ST,N,
0000372246,PAUL WRIGHT & CO,695.00,Guaranteed Rent Scheme,Rent Payable,25 Sep 2023,2324/06,SME,N,
0000372247,SUFFOLK COUNTY COUNCIL,"1,560,006.21",CIL Funded REFCUS,Grants,25 Sep 2023,2324/06,LGE,N,
0000372248,PRIVATE LANDLORD,800.00,Guaranteed Rent Scheme,Rent Payable,25 Sep 2023,2324/06,ST,N,
0000372249,PAUL WRIGHT & CO,575.00,Guaranteed Rent Scheme,Rent Payable,25 Sep 2023,2324/06,SME,N,
0000372254,CIVICA ELECTION SERVICES,"3,572.60",Electoral Registration,Returning Officer Fees,08 Sep 2023,2324/06,LGE,N,
0000372256,KICKS & TRICKS LTD,"9,975.00",Holiday Activity Fund,"Equipment, Tools & Materials",25 Sep 2023,2324/06,SME,N,
0000372269,4PRINCIPLES CONSTRUCTION LTD,"2,977.65",Mand Disabled Facilities Grant,Grants,26 Sep 2023,2324/06,SME,N,
0000372286,OPUS PEOPLE SOLUTIONS LTD,992.41,Homeless Prevention Fund,Agency Staff,20 Sep 2023,2324/06,SME,N,
0000372286,OPUS PEOPLE SOLUTIONS LTD,136.85,Devt Management - Apps,Agency Staff,20 Sep 2023,2324/06,SME,N,
0000372286,OPUS PEOPLE SOLUTIONS LTD,631.13,Climate Change and Sustainabil,Agency Staff,20 Sep 2023,2324/06,SME,N,
0000372286,OPUS PEOPLE SOLUTIONS LTD,295.26,Organisational Devt,Agency Staff,20 Sep 2023,2324/06,SME,N,
0000372286,OPUS PEOPLE SOLUTIONS LTD,217.68,Health & Safety,Agency Staff,20 Sep 2023,2324/06,SME,N,
0000372286,OPUS PEOPLE SOLUTIONS LTD,122.85,Customer Servs,Agency Staff,20 Sep 2023,2324/06,SME,N,
0000372286,OPUS PEOPLE SOLUTIONS LTD,516.45,Building Services,Agency Staff,20 Sep 2023,2324/06,SME,N,
0000372287,WOOLPIT CHILDCARE CENTRE LTD(WOOLPITARC),"5,100.00",Holiday Activity Fund,"Equipment, Tools & Materials",26 Sep 2023,2324/06,SME,N,
0000372295,TELEFONICA UK LIMITED - O2,"1,839.70",ICT,Telephone Costs,27 Sep 2023,2324/06,LGE,Y,50%
0000372298,RICHARD UTTING ASSOCIATES LLP,"13,156.00",Paddock House Eye,Prof & Consultancy Fees,26 Sep 2023,2324/06,SME,N,
0000372298,RICHARD UTTING ASSOCIATES LLP,"3,392.50",Paddock House,Prof & Consultancy Fees,26 Sep 2023,2324/06,SME,N,
0000372298,RICHARD UTTING ASSOCIATES LLP,57.50,Paddock House Eye,Prof & Consultancy Fees,26 Sep 2023,2324/06,SME,N,
0000372299,CORNERSTONE BARRISTERS,"29,955.00",Devt Management - Appeals,Legal ex - Appeal related,27 Sep 2023,2324/06,SME,N,
0000372313,DEBENHAM PARISH COUNCIL,"1,000.00",Grants & Contrbns,Contributions & Donations,27 Sep 2023,2324/06,SME,N,
0000372336,WESTONE HOUSING LTD,"23,610.51",Mand Disabled Facilities Grant,Grants,28 Sep 2023,2324/06,SME,N,
0000372338,BEDINGFIELD VILLAGE HALL,"6,255.29",Community Fund Projects-Grants,Grants,28 Sep 2023,2324/06,SME,N,
0000372339,BARHAM PARISH COUNCIL,813.71,Current Assets,AR Refunds,28 Sep 2023,2324/06,SME,N,
0000423402,AARON SERVICES LTD,"15,123.26",Planned Maint - Heating,Property Servicing,28 Jun 2023,2324/04,SME,N,
0000423402,AARON SERVICES LTD,240.10,Voids Maintenance,Repairs,28 Jun 2023,2324/04,SME,Y,16%
0000423403,SPENCER RUNNACLES,"3,240.00",Homeless Prevention Fund,Misc Supplies & Services Costs,28 Jun 2023,2324/04,SME,N,
0000423404,AB SAFE MOVES LIMTED,"1,534.00",Homeless Prevention Fund,Misc Supplies & Services Costs,03 Jul 2023,2324/04,SME,N,
0000423405,ALLSTAR BUSINESS SOLUTIONS LTD,"11,403.90",Building Services,Plant & Vehicle Fuel,30 Jun 2023,2324/04,SME,N,
0000423406,COMPUTERSHARE ,890.00,Current Assets,ChildCare Vouchers-Control,28 Jun 2023,2324/04,LGE,N,
0000423408,PAUL WRIGHT & CO,631.96,Guaranteed Rent Scheme,Rent Payable,11 Jul 2023,2324/04,SME,N,
0000423408,PAUL WRIGHT & CO,"1,500.00",Guaranteed Rent Scheme,Misc Supplies & Services Costs,11 Jul 2023,2324/04,SME,N,
0000423410,RIX PETROLEUM (EAST ANGLIA) LTD,"7,749.11",Open Spaces,Plant & Vehicle Fuel,04 Jul 2023,2324/04,SME,N,
0000423411,AARON SERVICES LTD,"3,108.10",Planned Maint - Heating,Property Servicing,19 Jul 2023,2324/04,SME,N,
0000423411,AARON SERVICES LTD,519.03,Voids Maintenance,Repairs,19 Jul 2023,2324/04,SME,N,
0000423413,GPC BARCLAYS,"9,814.49",Current Assets,Barclaycard Control,14 Jul 2023,2324/04,LGE,Y,18%
0000423414,BACTON PARISH COUNCIL,677.30,Street & Major Road Cleansing,Contributions to other Bodies,20 Jul 2023,2324/04,SME,N,
0000423415,BARHAM PARISH COUNCIL,677.30,Street & Major Road Cleansing,Contributions to other Bodies,20 Jul 2023,2324/04,SME,N,
0000423418,BRAMFORD PARISH COUNCIL,677.30,Street & Major Road Cleansing,Contributions to other Bodies,20 Jul 2023,2324/04,SME,N,
0000423419,CLAYDON & WHITTON PARISH COUNCIL,"1,354.60",Street & Major Road Cleansing,Contributions to other Bodies,20 Jul 2023,2324/04,SME,N,
0000423420,DEBENHAM PARISH COUNCIL,"2,404.42",Street & Major Road Cleansing,Contributions to other Bodies,20 Jul 2023,2324/04,SME,N,
0000423421,EYE TOWN COUNCIL,"2,709.20",Street & Major Road Cleansing,Contributions to other Bodies,20 Jul 2023,2324/04,SME,N,
0000423422,FRESSINGFIELD PARISH COUNCIL,609.57,Street & Major Road Cleansing,Contributions to other Bodies,20 Jul 2023,2324/04,SME,N,
0000423423,GREAT BLAKENHAM PARISH COUNCIL,"1,354.60",Street & Major Road Cleansing,Contributions to other Bodies,20 Jul 2023,2324/04,SME,N,
0000423425,HARLESTON PARISH MEETING,677.30,Street & Major Road Cleansing,Contributions to other Bodies,20 Jul 2023,2324/04,SME,N,
0000423426,HAUGHLEY PARISH COUNCIL,677.30,Street & Major Road Cleansing,Contributions to other Bodies,20 Jul 2023,2324/04,SME,N,
0000423428,HOXNE PARISH COUNCIL,677.30,Street & Major Road Cleansing,Contributions to other Bodies,20 Jul 2023,2324/04,SME,N,
0000423431,NEEDHAM MARKET TOWN COUNCIL,"2,980.12",Street & Major Road Cleansing,Contributions to other Bodies,20 Jul 2023,2324/04,SME,N,
0000423435,RICKINGHALL INFERIOR AND RICKINGHALL SUP,541.84,Street & Major Road Cleansing,Contributions to other Bodies,20 Jul 2023,2324/04,SME,N,
0000423437,STOWUPLAND PARISH COUNCIL,"1,354.60",Street & Major Road Cleansing,Contributions to other Bodies,20 Jul 2023,2324/04,SME,N,
0000423438,STRADBROKE PARISH COUNCIL,"1,151.41",Street & Major Road Cleansing,Contributions to other Bodies,20 Jul 2023,2324/04,SME,N,
0000423439,THURSTON PARISH COUNCIL,"1,094.10",Street & Major Road Cleansing,Contributions to other Bodies,20 Jul 2023,2324/04,SME,N,
0000423441,WOOLPIT PARISH COUNCIL,812.76,Street & Major Road Cleansing,Contributions to other Bodies,20 Jul 2023,2324/04,SME,N,
0000423443,ELMHURST ENERGY SYSTEMS LTD - DD,680.00,Bldg Regs Chargeable Serv,Contracted Services,31 Jul 2023,2324/05,SME,Y,45%
0000423445,ALLSTAR BUSINESS SOLUTIONS LTD,199.74,Housing Options,Plant & Vehicle Fuel,31 Jul 2023,2324/05,SME,Y,50%
0000423445,ALLSTAR BUSINESS SOLUTIONS LTD,"10,900.65",Building Services,Plant & Vehicle Fuel,31 Jul 2023,2324/05,SME,Y,50%
0000423447,AARON SERVICES LTD,"1,332.42",Voids Maintenance,Repairs,19 Jul 2023,2324/05,SME,N,
0000423447,AARON SERVICES LTD,"6,283.04",Planned Maint - Heating,Property Servicing,19 Jul 2023,2324/05,SME,Y,10.5%
0000423448,AARON SERVICES LTD,"1,796.62",Planned Maint - Heating,Property Servicing,19 Jul 2023,2324/05,SME,N,
0000423448,AARON SERVICES LTD,86.22,Voids Maintenance,Repairs,19 Jul 2023,2324/05,SME,N,
0000423449,AARON SERVICES LTD,"45,776.52",Planned Maint - Heating,Property Servicing,26 Jul 2023,2324/05,SME,N,
0000423449,AARON SERVICES LTD,"3,514.85",Voids Maintenance,Repairs,26 Jul 2023,2324/05,SME,N,
0000423451,AARON SERVICES LTD,"2,508.38",Voids Maintenance,Repairs,31 Jul 2023,2324/05,SME,N,
0000423451,AARON SERVICES LTD,"63,815.43",Planned Maint - Heating,Property Servicing,31 Jul 2023,2324/05,SME,N,
0000423452,ANGLIAN WATER BUS (NAT) LTD T/A WAVE,827.16,Creeting Rd Depot,Water Rates - Metered,12 Jul 2023,2324/05,LGE,Y,50%
0000423452,ANGLIAN WATER BUS (NAT) LTD T/A WAVE,79.16,Headquarters General,Water Rates - Metered,12 Jul 2023,2324/05,LGE,N,
0000423452,ANGLIAN WATER BUS (NAT) LTD T/A WAVE,16.54,HRA Strategic Property,Water Rates - Metered,12 Jul 2023,2324/05,LGE,N,
0000423452,ANGLIAN WATER BUS (NAT) LTD T/A WAVE,162.35,Open Spaces,Water Rates - Metered,12 Jul 2023,2324/05,LGE,N,
0000423452,ANGLIAN WATER BUS (NAT) LTD T/A WAVE,252.43,Public Conveniences,Water Rates - Metered,12 Jul 2023,2324/05,LGE,N,
0000423452,ANGLIAN WATER BUS (NAT) LTD T/A WAVE,8.34,Recycling Centre,Water Rates - Metered,12 Jul 2023,2324/05,LGE,N,
0000423452,ANGLIAN WATER BUS (NAT) LTD T/A WAVE,6.69,Sewage Treatment Works,Water Rates - Metered,12 Jul 2023,2324/05,LGE,N,
0000423452,ANGLIAN WATER BUS (NAT) LTD T/A WAVE,"1,849.60",Sheltered Accommodation,Water Rates - Metered,12 Jul 2023,2324/05,LGE,N,
0000423452,ANGLIAN WATER BUS (NAT) LTD T/A WAVE,20.53,Tacon Close Eye TDP,Water Rates - Metered,12 Jul 2023,2324/05,LGE,N,
0000423452,ANGLIAN WATER BUS (NAT) LTD T/A WAVE,34.16,Temporary Accommodation,Water Rates - Metered,12 Jul 2023,2324/05,LGE,N,
0000423452,ANGLIAN WATER BUS (NAT) LTD T/A WAVE,16.07,Tenancy Services,Water Rates - Metered,12 Jul 2023,2324/05,LGE,N,
0000423452,ANGLIAN WATER BUS (NAT) LTD T/A WAVE,24.54,Wingfield Barns,Water Rates - Metered,12 Jul 2023,2324/05,LGE,N,
0000423453,EDF ENERGY,-70.23,"11 Market Place, Stowmarket",Electricity,15 Jul 2023,2324/05,LGE,N,
0000423453,EDF ENERGY,580.57,C Parks General,Electricity,15 Jul 2023,2324/05,LGE,N,
0000423453,EDF ENERGY,783.74,Creeting Rd Depot,Electricity,15 Jul 2023,2324/05,LGE,Y,50%
0000423453,EDF ENERGY,135.98,Headquarters General,Electricity,15 Jul 2023,2324/05,LGE,N,
0000423453,EDF ENERGY,"24,983.09",Leisure Contract,Electricity,15 Jul 2023,2324/05,LGE,N,
0000423453,EDF ENERGY,132.10,Needham Market Middle School,Electricity,15 Jul 2023,2324/05,LGE,N,
0000423453,EDF ENERGY,"-2,417.42",Open Spaces,Electricity,15 Jul 2023,2324/05,LGE,N,
0000423453,EDF ENERGY,"3,326.89",Other HRA Temp Accommodation,Electricity,15 Jul 2023,2324/05,LGE,N,
0000423453,EDF ENERGY,533.72,Public Conveniences,Electricity,15 Jul 2023,2324/05,LGE,N,
0000423453,EDF ENERGY,246.20,Pure Gym & Adjacent Building,Electricity,15 Jul 2023,2324/05,LGE,N,
0000423453,EDF ENERGY,4.75,Recycling Centre,Electricity,15 Jul 2023,2324/05,LGE,N,
0000423453,EDF ENERGY,537.53,Sewage Treatment Works,Electricity,15 Jul 2023,2324/05,LGE,N,
0000423453,EDF ENERGY,"10,359.54",Sheltered Accommodation,Electricity,15 Jul 2023,2324/05,LGE,N,
0000423453,EDF ENERGY,70.47,Tacon Close Eye TDP,Electricity,15 Jul 2023,2324/05,LGE,N,
0000423453,EDF ENERGY,425.05,Temporary Accommodation,Electricity,15 Jul 2023,2324/05,LGE,N,
0000423453,EDF ENERGY,696.57,Wingfield Barns,Electricity,15 Jul 2023,2324/05,LGE,N,
0000423454,SEFE ENERGY LIMITED,87.66,Creeting Rd Depot,Gas,19 Jul 2023,2324/05,LGE,Y,50%
0000423454,SEFE ENERGY LIMITED,29.90,Headquarters General,Gas,19 Jul 2023,2324/05,LGE,N,
0000423454,SEFE ENERGY LIMITED,23.83,HRA Strategic Property,Gas,19 Jul 2023,2324/05,LGE,N,
0000423454,SEFE ENERGY LIMITED,"17,480.46",Leisure Contract,Gas,19 Jul 2023,2324/05,LGE,N,
0000423454,SEFE ENERGY LIMITED,13.14,Open Spaces,Gas,19 Jul 2023,2324/05,LGE,N,
0000423454,SEFE ENERGY LIMITED,"3,632.17",Sheltered Accommodation,Gas,19 Jul 2023,2324/05,LGE,N,
0000423454,SEFE ENERGY LIMITED,11.06,Temporary Accommodation,Gas,19 Jul 2023,2324/05,LGE,N,
0000423454,SEFE ENERGY LIMITED,241.30,Tenancy Services,Gas,19 Jul 2023,2324/05,LGE,N,
0000423456,COMPUTERSHARE ,870.00,Current Assets,ChildCare Vouchers-Control,31 Jul 2023,2324/05,LGE,N,
0000423457,4PRINCIPLES CONSTRUCTION LTD,"1,442.44",Mand Disabled Facilities Grant,Grants,01 Aug 2023,2324/05,SME,N,
0000423458,PAULINE SCOTT PROPERTY MANAGEMENT,"1,634.00",Rent Deposit Scheme,Misc Premises Costs,03 Aug 2023,2324/05,SME,N,
0000423460,HM COURTS & TRIBUNALS SERVICE  (DD ONLY),996.00,Building Servs Tech Staff,Legal Expenses,01 Aug 2023,2324/05,LGE,N,
0000423460,HM COURTS & TRIBUNALS SERVICE  (DD ONLY),226.00,CIL,Misc Legal Expenses,01 Aug 2023,2324/05,LGE,N,
0000423462,SWITCH PROPERTY SERVICES LTD,695.00,Guaranteed Rent Scheme,Rent Payable,16 Aug 2023,2324/05,SME,N,
0000423462,SWITCH PROPERTY SERVICES LTD,"1,500.00",Guaranteed Rent Scheme,Misc Supplies & Services Costs,16 Aug 2023,2324/05,SME,N,
0000423463,AARON SERVICES LTD,"72,599.22",Planned Maint - Heating,Property Servicing,09 Aug 2023,2324/05,SME,N,
0000423463,AARON SERVICES LTD,"3,935.76",Voids Maintenance,Repairs,09 Aug 2023,2324/05,SME,Y,2%
0000423464,HM COURTS & TRIBUNALS SERVICE  (DD ONLY),664.00,Building Servs Tech Staff,Legal Expenses,01 Aug 2023,2324/05,LGE,N,
0000423465,GPC BARCLAYS,"9,025.81",Current Assets,Barclaycard Control,14 Aug 2023,2324/05,LGE,Y,17%
0000423466,MENDHAM PARISH COUNCIL,"9,358.81",CIL Funded REFCUS,Grants,22 Aug 2023,2324/05,SME,N,
0000423467,EDF ENERGY,580.58,C Parks General,Electricity,15 Aug 2023,2324/05,LGE,N,
0000423467,EDF ENERGY,368.39,Climate Change and Sustainabil,Electricity,15 Aug 2023,2324/05,LGE,N,
0000423467,EDF ENERGY,793.29,Creeting Rd Depot,Electricity,15 Aug 2023,2324/05,LGE,Y,50%
0000423467,EDF ENERGY,153.36,Headquarters General,Electricity,15 Aug 2023,2324/05,LGE,N,
0000423467,EDF ENERGY,"26,781.13",Leisure Contract,Electricity,15 Aug 2023,2324/05,LGE,N,
0000423467,EDF ENERGY,137.68,Needham Market Middle School,Electricity,15 Aug 2023,2324/05,LGE,N,
0000423467,EDF ENERGY,-425.91,Open Spaces,Electricity,15 Aug 2023,2324/05,LGE,N,
0000423467,EDF ENERGY,"-1,035.61",Other HRA Temp Accommodation,Electricity,15 Aug 2023,2324/05,LGE,N,
0000423467,EDF ENERGY,195.61,Public Conveniences,Electricity,15 Aug 2023,2324/05,LGE,N,
0000423467,EDF ENERGY,87.39,Pure Gym & Adjacent Building,Electricity,15 Aug 2023,2324/05,LGE,N,
0000423467,EDF ENERGY,4.07,Recycling Centre,Electricity,15 Aug 2023,2324/05,LGE,N,
0000423467,EDF ENERGY,855.47,Sewage Treatment Works,Electricity,15 Aug 2023,2324/05,LGE,N,
0000423467,EDF ENERGY,"9,594.39",Sheltered Accommodation,Electricity,15 Aug 2023,2324/05,LGE,N,
0000423467,EDF ENERGY,69.86,Tacon Close Eye TDP,Electricity,15 Aug 2023,2324/05,LGE,N,
0000423467,EDF ENERGY,628.05,Temporary Accommodation,Electricity,15 Aug 2023,2324/05,LGE,N,
0000423467,EDF ENERGY,"2,645.89",Tenancy Services,Electricity,15 Aug 2023,2324/05,LGE,N,
0000423467,EDF ENERGY,"1,064.21",Wingfield Barns,Electricity,15 Aug 2023,2324/05,LGE,N,
0000423468,IMSERV EUROPE LTD,257.00,C Parks General,Electricity,11 Aug 2023,2324/05,LGE,N,
0000423468,IMSERV EUROPE LTD,22.11,Creeting Rd Depot,Electricity,11 Aug 2023,2324/05,LGE,Y,50%
0000423468,IMSERV EUROPE LTD,22.11,Needham Market Middle School,Electricity,11 Aug 2023,2324/05,LGE,N,
0000423468,IMSERV EUROPE LTD,85.27,Open Spaces,Electricity,11 Aug 2023,2324/05,LGE,N,
0000423468,IMSERV EUROPE LTD,22.11,Public Conveniences,Electricity,11 Aug 2023,2324/05,LGE,N,
0000423468,IMSERV EUROPE LTD,257.00,Pure Gym & Adjacent Building,Electricity,11 Aug 2023,2324/05,LGE,N,
0000423468,IMSERV EUROPE LTD,22.11,Recycling Centre,Electricity,11 Aug 2023,2324/05,LGE,N,
0000423468,IMSERV EUROPE LTD,176.88,Sewage Treatment Works,Electricity,11 Aug 2023,2324/05,LGE,N,
0000423468,IMSERV EUROPE LTD,"1,376.99",Sheltered Accommodation,Electricity,11 Aug 2023,2324/05,LGE,N,
0000423468,IMSERV EUROPE LTD,22.11,Tacon Close Eye TDP,Electricity,11 Aug 2023,2324/05,LGE,N,
0000423468,IMSERV EUROPE LTD,251.88,Temporary Accommodation,Electricity,11 Aug 2023,2324/05,LGE,N,
0000423468,IMSERV EUROPE LTD,649.86,Tenancy Services,Electricity,11 Aug 2023,2324/05,LGE,N,
0000423468,IMSERV EUROPE LTD,257.00,Wingfield Barns,Electricity,11 Aug 2023,2324/05,LGE,N,
0000423469,ANGLIAN WATER BUS (NAT) LTD T/A WAVE,643.17,Creeting Rd Depot,Water Rates - Metered,12 Aug 2023,2324/05,LGE,Y,50%
0000423469,ANGLIAN WATER BUS (NAT) LTD T/A WAVE,658.91,Headquarters General,Water Rates - Metered,12 Aug 2023,2324/05,LGE,N,
0000423469,ANGLIAN WATER BUS (NAT) LTD T/A WAVE,17.10,HRA Strategic Property,Water Rates - Metered,12 Aug 2023,2324/05,LGE,N,
0000423469,ANGLIAN WATER BUS (NAT) LTD T/A WAVE,167.04,Open Spaces,Water Rates - Metered,12 Aug 2023,2324/05,LGE,N,
0000423469,ANGLIAN WATER BUS (NAT) LTD T/A WAVE,256.98,Public Conveniences,Water Rates - Metered,12 Aug 2023,2324/05,LGE,N,
0000423469,ANGLIAN WATER BUS (NAT) LTD T/A WAVE,1.97,Recycling Centre,Water Rates - Metered,12 Aug 2023,2324/05,LGE,N,
0000423469,ANGLIAN WATER BUS (NAT) LTD T/A WAVE,6.92,Sewage Treatment Works,Water Rates - Metered,12 Aug 2023,2324/05,LGE,N,
0000423469,ANGLIAN WATER BUS (NAT) LTD T/A WAVE,"1,327.03",Sheltered Accommodation,Water Rates - Metered,12 Aug 2023,2324/05,LGE,N,
0000423469,ANGLIAN WATER BUS (NAT) LTD T/A WAVE,17.63,Tacon Close Eye TDP,Water Rates - Metered,12 Aug 2023,2324/05,LGE,N,
0000423469,ANGLIAN WATER BUS (NAT) LTD T/A WAVE,63.62,Temporary Accommodation,Water Rates - Metered,12 Aug 2023,2324/05,LGE,N,
0000423469,ANGLIAN WATER BUS (NAT) LTD T/A WAVE,16.61,Tenancy Services,Water Rates - Metered,12 Aug 2023,2324/05,LGE,N,
0000423469,ANGLIAN WATER BUS (NAT) LTD T/A WAVE,26.46,Wingfield Barns,Water Rates - Metered,12 Aug 2023,2324/05,LGE,N,
0000423470,AARON SERVICES LTD,"14,588.68",Planned Maint - Heating,Property Servicing,23 Aug 2023,2324/05,SME,Y,0.5%
0000423470,AARON SERVICES LTD,"1,408.17",Voids Maintenance,Repairs,23 Aug 2023,2324/05,SME,N,
0000423471,AARON SERVICES LTD,86.22,Voids Maintenance,Repairs,23 Aug 2023,2324/05,SME,N,
0000423471,AARON SERVICES LTD,"8,252.21",Planned Maint - Heating,Property Servicing,23 Aug 2023,2324/05,SME,N,
0000423472,IMSERV EUROPE LTD,105.55,"11 Market Place, Stowmarket",Electricity,17 Aug 2022,2324/05,LGE,N,
0000423472,IMSERV EUROPE LTD,105.55,Climate Change and Sustainabil,Electricity,17 Aug 2022,2324/05,LGE,N,
0000423472,IMSERV EUROPE LTD,105.55,Creeting Rd Depot,Electricity,17 Aug 2022,2324/05,LGE,Y,50%
0000423472,IMSERV EUROPE LTD,182.00,Headquarters General,Electricity,17 Aug 2022,2324/05,LGE,N,
0000423472,IMSERV EUROPE LTD,257.00,Leisure Contract,Electricity,17 Aug 2022,2324/05,LGE,N,
0000423472,IMSERV EUROPE LTD,105.55,Needham Market Middle School,Electricity,17 Aug 2022,2324/05,LGE,N,
0000423472,IMSERV EUROPE LTD,316.65,Open Spaces,Electricity,17 Aug 2022,2324/05,LGE,N,
0000423472,IMSERV EUROPE LTD,105.55,Public Conveniences,Electricity,17 Aug 2022,2324/05,LGE,N,
0000423472,IMSERV EUROPE LTD,105.55,Recycling Centre,Electricity,17 Aug 2022,2324/05,LGE,N,
0000423472,IMSERV EUROPE LTD,844.40,Sewage Treatment Works,Electricity,17 Aug 2022,2324/05,LGE,N,
0000423472,IMSERV EUROPE LTD,"1,208.40",Sheltered Accommodation,Electricity,17 Aug 2022,2324/05,LGE,N,
0000423472,IMSERV EUROPE LTD,105.55,Tacon Close Eye TDP,Electricity,17 Aug 2022,2324/05,LGE,N,
0000423472,IMSERV EUROPE LTD,738.85,Temporary Accommodation,Electricity,17 Aug 2022,2324/05,LGE,N,
0000423472,IMSERV EUROPE LTD,"2,638.75",Tenancy Services,Electricity,17 Aug 2022,2324/05,LGE,N,
0000423474,FLICK & SON LTD,"1,494.23",Rent Deposit Scheme,Misc Premises Costs,29 Aug 2023,2324/06,SME,N,
0000423475,A M REMOVALS,"1,195.00",Homeless Prevention Fund,Removal Expenses,31 Aug 2023,2324/06,SME,N,
0000423476,COMPUTERSHARE ,796.00,Current Assets,ChildCare Vouchers-Control,29 Aug 2023,2324/06,LGE,N,
0000423477,MAXWELL BROWN INDEPENDENT PROPERTY AGENT,"1,900.00",Rent Deposit Scheme,Misc Premises Costs,04 Sep 2023,2324/06,SME,N,
0000423478,E.ON NEXT,-32.83,HRA Strategic Property,Electricity,08 Aug 2023,2324/06,LGE,N,
0000423478,E.ON NEXT,-341.71,HRA Strategic Property,Gas,08 Aug 2023,2324/06,LGE,N,
0000423479,ALLSTAR BUSINESS SOLUTIONS LTD,"10,511.52",Building Services,Plant & Vehicle Fuel,31 Aug 2023,2324/06,SME,Y,50%
0000423480,E.ON NEXT,-7.74,HRA Strategic Property,Electricity,20 Aug 2023,2324/06,LGE,N,
0000423480,E.ON NEXT,-494.03,HRA Strategic Property,Gas,20 Aug 2023,2324/06,LGE,N,
0000423481,PAUL WRIGHT & CO,"1,500.00",Guaranteed Rent Scheme,Misc Supplies & Services Costs,06 Sep 2023,2324/06,SME,N,
0000423481,PAUL WRIGHT & CO,575.00,Guaranteed Rent Scheme,Rent Payable,06 Sep 2023,2324/06,SME,N,
0000423482,RIX PETROLEUM (EAST ANGLIA) LTD,"6,040.71",Open Spaces,Plant & Vehicle Fuel,01 Sep 2023,2324/06,SME,N,
0000423483,AARON SERVICES LTD,"95,159.97",Planned Maint - Heating,Property Servicing,30 Aug 2023,2324/06,SME,N,
0000423483,AARON SERVICES LTD,"13,266.81",Voids Maintenance,Repairs,30 Aug 2023,2324/06,SME,N,
0000423484,SEFE ENERGY LIMITED,91.64,Creeting Rd Depot,Gas,15 Aug 2023,2324/06,LGE,Y,50%
0000423484,SEFE ENERGY LIMITED,30.90,Headquarters General,Gas,15 Aug 2023,2324/06,LGE,N,
0000423484,SEFE ENERGY LIMITED,24.63,HRA Strategic Property,Gas,15 Aug 2023,2324/06,LGE,N,
0000423484,SEFE ENERGY LIMITED,"16,017.47",Leisure Contract,Gas,15 Aug 2023,2324/06,LGE,N,
0000423484,SEFE ENERGY LIMITED,13.58,Open Spaces,Gas,15 Aug 2023,2324/06,LGE,N,
0000423484,SEFE ENERGY LIMITED,"3,744.93",Sheltered Accommodation,Gas,15 Aug 2023,2324/06,LGE,N,
0000423484,SEFE ENERGY LIMITED,232.42,Temporary Accommodation,Gas,15 Aug 2023,2324/06,LGE,N,
0000423484,SEFE ENERGY LIMITED,260.22,Tenancy Services,Gas,15 Aug 2023,2324/06,LGE,N,
0000423485,IMSERV EUROPE LTD,62.40,C Parks General,Electricity,11 Sep 2023,2324/06,LGE,N,
0000423485,IMSERV EUROPE LTD,137.40,Headquarters General,Electricity,11 Sep 2023,2324/06,LGE,N,
0000423485,IMSERV EUROPE LTD,137.40,Leisure Contract,Electricity,11 Sep 2023,2324/06,LGE,N,
0000423485,IMSERV EUROPE LTD,137.40,Open Spaces,Electricity,11 Sep 2023,2324/06,LGE,N,
0000423485,IMSERV EUROPE LTD,62.40,Pure Gym & Adjacent Building,Electricity,11 Sep 2023,2324/06,LGE,N,
0000423485,IMSERV EUROPE LTD,510.75,Sheltered Accommodation,Electricity,11 Sep 2023,2324/06,LGE,N,
0000423485,IMSERV EUROPE LTD,62.40,Wingfield Barns,Electricity,11 Sep 2023,2324/06,LGE,N,
0000423488,PAUL WRIGHT & CO,695.00,Guaranteed Rent Scheme,Rent Payable,07 Sep 2023,2324/06,SME,N,
0000423488,PAUL WRIGHT & CO,"1,500.00",Guaranteed Rent Scheme,Misc Supplies & Services Costs,07 Sep 2023,2324/06,SME,N,
0000423489,EYE TOWN COUNCIL,"6,566.72",CIL Funded REFCUS,Grants,11 Sep 2023,2324/06,SME,N,
0000423490,AARON SERVICES LTD,"5,073.93",Planned Maint - Heating,Property Servicing,11 Sep 2023,2324/06,SME,N,
0000423492,E.ON NEXT,-8.72,HRA Strategic Property,Electricity,24 Aug 2023,2324/06,LGE,N,
0000423492,E.ON NEXT,-8.73,HRA Strategic Property,Gas,24 Aug 2023,2324/06,LGE,N,
0000423493,E.ON NEXT,-157.05,HRA Strategic Property,Gas,25 Aug 2023,2324/06,LGE,N,
0000423493,E.ON NEXT,-35.71,HRA Strategic Property,Electricity,25 Aug 2023,2324/06,LGE,N,
0000423494,E.ON NEXT,-434.41,HRA Strategic Property,Gas,30 Aug 2023,2324/06,LGE,N,
0000423495,E.ON NEXT,-179.21,HRA Strategic Property,Gas,24 Aug 2023,2324/06,LGE,N,
0000423496,PAUL WRIGHT & CO,"1,500.00",Guaranteed Rent Scheme,Misc Supplies & Services Costs,14 Sep 2023,2324/06,SME,N,
0000423496,PAUL WRIGHT & CO,525.00,Guaranteed Rent Scheme,Rent Payable,14 Sep 2023,2324/06,SME,N,
0000423498,AARON SERVICES LTD,"19,918.85",Planned Maint - Heating,Property Servicing,21 Sep 2023,2324/06,SME,N,
0000423498,AARON SERVICES LTD,"1,552.34",Voids Maintenance,Repairs,21 Sep 2023,2324/06,SME,N,
0000423499,C J FROST TRANSPORT,525.00,Homeless Prevention Fund,Removal Expenses,20 Sep 2023,2324/06,SME,N,
0000423500,AARON SERVICES LTD,-25.00,Planned Maint - Heating,Property Servicing,24 May 2023,2324/06,SME,Y,0.5%
0000423501,AARON SERVICES LTD,-50.00,Planned Maint - Heating,Property Servicing,24 May 2023,2324/06,SME,N,
0000423503,SEFE ENERGY LIMITED,"20,312.76",Leisure Contract,Gas,16 Nov 2021,2324/06,LGE,N,
0000423504,ANGLIAN WATER BUS (NAT) LTD T/A WAVE,655.12,Creeting Rd Depot,Water Rates - Metered,12 Sep 2023,2324/06,LGE,Y,50%
0000423504,ANGLIAN WATER BUS (NAT) LTD T/A WAVE,-455.03,Headquarters General,Water Rates - Metered,12 Sep 2023,2324/06,LGE,Y,50%
0000423504,ANGLIAN WATER BUS (NAT) LTD T/A WAVE,17.10,HRA Strategic Property,Water Rates - Metered,12 Sep 2023,2324/06,LGE,N,
0000423504,ANGLIAN WATER BUS (NAT) LTD T/A WAVE,170.65,Open Spaces,Water Rates - Metered,12 Sep 2023,2324/06,LGE,N,
0000423504,ANGLIAN WATER BUS (NAT) LTD T/A WAVE,-305.74,Public Conveniences,Water Rates - Metered,12 Sep 2023,2324/06,LGE,N,
0000423504,ANGLIAN WATER BUS (NAT) LTD T/A WAVE,6.92,Recycling Centre,Water Rates - Metered,12 Sep 2023,2324/06,LGE,N,
0000423504,ANGLIAN WATER BUS (NAT) LTD T/A WAVE,6.92,Sewage Treatment Works,Water Rates - Metered,12 Sep 2023,2324/06,LGE,N,
0000423504,ANGLIAN WATER BUS (NAT) LTD T/A WAVE,"1,712.65",Sheltered Accommodation,Water Rates - Metered,12 Sep 2023,2324/06,LGE,N,
0000423504,ANGLIAN WATER BUS (NAT) LTD T/A WAVE,17.63,Tacon Close Eye TDP,Water Rates - Metered,12 Sep 2023,2324/06,LGE,N,
0000423504,ANGLIAN WATER BUS (NAT) LTD T/A WAVE,63.62,Temporary Accommodation,Water Rates - Metered,12 Sep 2023,2324/06,LGE,N,
0000423504,ANGLIAN WATER BUS (NAT) LTD T/A WAVE,16.61,Tenancy Services,Water Rates - Metered,12 Sep 2023,2324/06,LGE,N,
0000423504,ANGLIAN WATER BUS (NAT) LTD T/A WAVE,11.59,Wingfield Barns,Water Rates - Metered,12 Sep 2023,2324/06,LGE,N,
0000423505,IMSERV EUROPE LTD,"1,024.34",Climate Change and Sustainabil,Electricity,15 Sep 2022,2324/06,LGE,N,
0000423506,SEFE ENERGY LIMITED,90.46,Creeting Rd Depot,Gas,15 Sep 2023,2324/06,LGE,Y,50%
0000423506,SEFE ENERGY LIMITED,30.90,Headquarters General,Gas,15 Sep 2023,2324/06,LGE,N,
0000423506,SEFE ENERGY LIMITED,24.63,HRA Strategic Property,Gas,15 Sep 2023,2324/06,LGE,N,
0000423506,SEFE ENERGY LIMITED,"20,689.90",Leisure Contract,Gas,15 Sep 2023,2324/06,LGE,N,
0000423506,SEFE ENERGY LIMITED,13.58,Open Spaces,Gas,15 Sep 2023,2324/06,LGE,N,
0000423506,SEFE ENERGY LIMITED,"3,573.28",Sheltered Accommodation,Gas,15 Sep 2023,2324/06,LGE,N,
0000423506,SEFE ENERGY LIMITED,220.50,Temporary Accommodation,Gas,15 Sep 2023,2324/06,LGE,N,
0000423506,SEFE ENERGY LIMITED,264.74,Tenancy Services,Gas,15 Sep 2023,2324/06,LGE,N,
0000423507,EDF ENERGY,580.58,C Parks General,Electricity,15 Sep 2023,2324/06,LGE,N,
0000423507,EDF ENERGY,122.15,Climate Change and Sustainabil,Electricity,15 Sep 2023,2324/06,LGE,N,
0000423507,EDF ENERGY,863.01,Creeting Rd Depot,Electricity,15 Sep 2023,2324/06,LGE,Y,50%
0000423507,EDF ENERGY,160.26,Headquarters General,Electricity,15 Sep 2023,2324/06,LGE,N,
0000423507,EDF ENERGY,"6,166.90",Leisure Contract,Electricity,15 Sep 2023,2324/06,LGE,N,
0000423507,EDF ENERGY,138.42,Needham Market Middle School,Electricity,15 Sep 2023,2324/06,LGE,N,
0000423507,EDF ENERGY,166.99,Open Spaces,Electricity,15 Sep 2023,2324/06,LGE,N,
0000423507,EDF ENERGY,23.93,Other HRA Temp Accommodation,Electricity,15 Sep 2023,2324/06,LGE,N,
0000423507,EDF ENERGY,187.07,Public Conveniences,Electricity,15 Sep 2023,2324/06,LGE,N,
0000423507,EDF ENERGY,97.54,Pure Gym & Adjacent Building,Electricity,15 Sep 2023,2324/06,LGE,N,
0000423507,EDF ENERGY,4.18,Recycling Centre,Electricity,15 Sep 2023,2324/06,LGE,N,
0000423507,EDF ENERGY,629.08,Sewage Treatment Works,Electricity,15 Sep 2023,2324/06,LGE,N,
0000423507,EDF ENERGY,"7,286.76",Sheltered Accommodation,Electricity,15 Sep 2023,2324/06,LGE,N,
0000423507,EDF ENERGY,91.49,Tacon Close Eye TDP,Electricity,15 Sep 2023,2324/06,LGE,N,
0000423507,EDF ENERGY,390.20,Temporary Accommodation,Electricity,15 Sep 2023,2324/06,LGE,N,
0000423507,EDF ENERGY,"2,281.01",Tenancy Services,Electricity,15 Sep 2023,2324/06,LGE,N,
0000423507,EDF ENERGY,"1,270.58",Wingfield Barns,Electricity,15 Sep 2023,2324/06,LGE,N,
0000423508,EDF ENERGY,"-17,542.01",Leisure Contract,Electricity,15 Sep 2023,2324/06,LGE,N,
0000423510,GPC BARCLAYS,"9,055.92",Current Assets,Barclaycard Control,14 Sep 2023,2324/06,LGE,Y,12%
0000423511,AARON SERVICES LTD,"1,816.95",Voids Maintenance,Repairs,27 Sep 2023,2324/06,SME,N,
0000423511,AARON SERVICES LTD,"17,136.10",Planned Maint - Heating,Property Servicing,27 Sep 2023,2324/06,SME,N,
0000423512,HM COURTS & TRIBUNALS SERVICE  (DD ONLY),332.00,Building Servs Tech Staff,Legal Expenses,01 Sep 2023,2324/06,LGE,N,
0000423512,HM COURTS & TRIBUNALS SERVICE  (DD ONLY),"1,130.00",Planning Enforcement,Legal Expenses,01 Sep 2023,2324/06,LGE,N,
0000423514,COMPUTERSHARE ,796.00,Current Assets,ChildCare Vouchers-Control,28 Sep 2023,2324/06,LGE,N,
0000423515,IMSERV EUROPE LTD,"1,333.17",Climate Change and Sustainabil,Electricity,27 Sep 2023,2324/06,LGE,N,
EBC0052114,STRADBROKE SPORTS & COMMUNITY CENTRE,148.30,Current Assets,LLOYDS GENERAL PAYMENTS,10 Jul 2023,2324/04,SME,N,
0000000281,OAKPARK SECURITY SYSTEMS LTD,"-1,395.00",Temporary Accommodation,Misc Premises Costs,23 Aug 2023,2324/05,LGE,N,
0000000282,ST ANDREW'S CHURCH,-45.90,Bring Sites,Contributions & Donations,15 Sep 2023,2324/06,SME,N,
0000001048,STRADBROKE SPORTS & COMMUNITY CENTRE,-148.30,Elections,Misc Supplies & Services Costs,31 May 2023,2324/04,SME,N,
0000001052,LJ GAMMER (STOWMARKET) LTD,-808.83,Building Services,Plant & Vehicle - Other costs,07 Sep 2023,2324/06,SME,Y,50%
0000001055,LJ GAMMER (STOWMARKET) LTD,-725.56,Building Services,Plant & Vehicle - Other costs,07 Sep 2023,2324/06,SME,Y,50%
